Workbook

Sheet 入力手順
E1: 手順
P2: 以上
P3: ここまで
D11: ①登録予定者
D13: ↓色つきの部分に数値や文字を入力をしてくだい。A票にリンクしています。
D14: ５桁 | E14: 氏名 | F14: 全角 | G14: ﾌﾘｶﾞﾅ | H14: 半角 | I14: 学年 | J14: 省略校名 | L14: 性別
D15: 半角 | E15: 姓 | F15: 名 | G15: 姓 | H15: 名 | I15: 半角 | J15: ６文字全角 | L15: 全角
D16: 40380 | E16: 陸上 | F16: 駅男 | G16: ﾘｸｼﾞｮｳ | H16: ｴｷｵ | I16: 3 | J16: 都駅伝 | L16: 男
D17: 57791 | E17: 長距離 | F17: 走太 | G17: ﾁｮｳｷｮﾘ | H17: ｿｳﾀ | I17: 1 | J17: 都駅伝 | L17: 女
D18: 17201 | E18: 五千 | F18: 飛子 | G18: ｺﾞｾﾝ | H18: ﾄﾋﾞｺ | I18: 2 | J18: 都駅伝 | L18: 男
D19: 67201 | E19: 駅伝 | F19: 中子 | G19: ｴｷﾃﾞﾝ | H19: ﾅｶｺ | I19: 1 | J19: 都駅伝 | L19: 女
D24: ②入力ｼｰﾄ
D26: 競技会名 | F26: 新春駅伝競走大会 | K26: ←入力をしません
D27: 学校名（正式名称） | F27: 東京都立阿佐ヶ谷高等学校
D28: 学校長名 | F28: 駅伝 校長
D29: 学校所在地 | E29: 郵便番号 | F29: １６６－００１１ | P29: 以上
E30: 住所 | F30: 東京都杉並区阿佐谷南１－２３－４５ | P30: ここまで
E31: 電話番号 | F31: ０３－００００－００００
E32: ＦＡＸ番号 | F32: ０３－００００－００００
D33: 顧問氏名 | F33: 陸上 走太郎
D34: 連絡先 | F34: ０９０－００００－００００
D35: 審判氏名（審判をお願いできる場合にはすべての方の氏名を入力してください） | F35: 加藤 恭一、根津 善雄、金田 匡太
D36: 希望 審判種別 | F36: 計時、記録情報、広報
F38: 男子 | G38: 女子
D39: 参加チーム数 | F39: 2 | G39: 2
D40: 参加ロード人数 （半角） | F40: 2 | G40: 1
D41: プログラム冊数（半角） | F41: 1 | G41: 1
D42: 支部 | F42: 4
D43: 学校番号 | F43: 3
D44: 学校名（略称６文字） | F44: 都阿佐ヶ谷
D46: 男子出場選手情報
E47: 登録ﾅﾝﾊﾞｰ | F47: 氏名 | H47: ﾌﾘｶﾞﾅ
A48: ﾅﾝﾊﾞｰ | B48: 支部 | D48: Ａチーム | E48: ５桁 | F48: 姓 | G48: 名 | H48: 姓 | I48: 名 | J48: 学年 | K48: 性別 | M48: 性別
A49: 140301 | B49: 403 | C49: 1 | D49: 第１区 | E49: 40301 | F49: 宮内 | G49: 祐樹 | H49: ﾐﾔｳﾁ | I49: ﾕｳｷ | J49: 1 | K49: 男 | M49: 1
A50: 140302 | B50: 403 | C50: 2 | D50: 第２区 | E50: 40303 | F50: 白石 | G50: 朋 | H50: ｼﾗｲｼ | I50: ﾄﾓ | J50: 1 | K50: 男 | M50: 1
A51: 140303 | B51: 403 | C51: 3 | D51: 第３区 | E51: 40311 | F51: 伊藤 | G51: 悠理 | H51: ｲﾄｳ | I51: ﾕﾘ | J51: 3 | K51: 男 | M51: 1
A52: 140304 | B52: 403 | C52: 4 | D52: 第４区 | E52: 40312 | F52: 地﨑 | G52: 安里 | H52: ﾁｻﾞｷ | I52: ｱﾝﾘ | J52: 3 | K52: 男 | M52: 1
A53: 140305 | B53: 403 | C53: 5 | D53: 補欠 | E53: 40313 | F53: 北川 | G53: 祐 | H53: ｷﾀｶﾞﾜ | I53: ﾕｳ | J53: 3 | K53: 男 | M53: 1 | P53: 以上
A54: 140306 | B54: 403 | C54: 6 | D54: 補欠 | E54: 40314 | F54: 山本 | G54: 翼 | H54: ﾔﾏﾓﾄ | I54: ﾂﾊﾞｻ | J54: 2 | K54: 男 | M54: 1 | P54: ここまで
D55: Ｂチーム
A56: 140307 | B56: 403 | C56: 7 | D56: 第１区 | E56: 40315 | F56: 平山 | G56: 敏毅 | H56: ﾋﾗﾔﾏ | I56: ﾄｼｷ | J56: 2 | K56: 男 | M56: 1
A57: 140308 | B57: 403 | C57: 8 | D57: 第２区 | E57: 40316 | F57: 安齋 | G57: 成也 | H57: ｱﾝｻﾞｲ | I57: ｾｲﾔ | J57: 2 | K57: 男 | M57: 1
A58: 140309 | B58: 403 | C58: 9 | D58: 第３区 | E58: 40317 | F58: 山崎 | G58: 恭佑 | H58: ﾔﾏｻﾞｷ | I58: ｷｮｳｽｹ | J58: 2 | K58: 男 | M58: 1
A59: 140310 | B59: 403 | C59: 10 | D59: 第４区 | E59: 40318 | F59: 松本 | G59: 蛍一 | H59: ﾏﾂﾓﾄ | I59: ｹｲｲﾁ | J59: 2 | K59: 男 | M59: 1
A60: 140311 | B60: 403 | C60: 11 | D60: 補欠 | E60: 40319 | F60: 青山 | G60: 祥樹 | H60: ｱｵﾔﾏ | I60: ﾖｼｷ | J60: 1 | K60: 男 | M60: 1
A61: 140312 | B61: 403 | C61: 12 | D61: 補欠 | E61: 40320 | F61: 南川 | G61: 沙彩 | H61: ﾐﾅﾐｶﾜ | I61: ｻｱﾔ | J61: 2 | K61: 男 | M61: 1
D62: ロードレース
A63: 240301 | B63: 403 | C63: 1 | D63: 1 | E63: 40331 | F63: 鈴木 | G63: 智男 | H63: ｽｽﾞｷ | I63: ﾄﾓｵ | J63: 2 | K63: 男 | M63: 1
A64: 240302 | B64: 403 | C64: 2 | D64: 2 | E64: 40332 | F64: 関谷 | G64: 衿太 | H64: ｾｷﾔ | I64: ｴﾘﾀ | J64: 2 | K64: 男 | M64: 1
A65: 240303 | B65: 403 | C65: 3 | D65: 3 | E65: 40333 | F65: 山田 | G65: 英典 | H65: ﾔﾏﾀﾞ | I65: ヒデノリ | J65: 2 | K65: 男 | M65: 1
D67: 女子出場選手情報
E68: 登録ﾅﾝﾊﾞｰ | F68: 氏名 | H68: ﾌﾘｶﾞﾅ
A69: ﾅﾝﾊﾞｰ | B69: 支部 | D69: Ａチーム | E69: ５桁 | F69: 姓 | G69: 名 | H69: 姓 | I69: 名 | J69: 学年 | K69: 性別 | M69: 性別
A70: 340301 | B70: 403 | C70: 1 | D70: 第１区 | E70: 40351 | F70: 阿部 | G70: 真紀 | H70: ｱﾍﾞ | I70: ﾏｷ | J70: 2 | K70: 女 | M70: 2
A71: 340302 | B71: 403 | C71: 2 | D71: 第２区 | E71: 40352 | F71: 小林 | G71: 歩乃佳 | H71: ｺﾊﾞﾔｼ | I71: ﾎﾉｶ | J71: 2 | K71: 女 | M71: 2
A72: 340303 | B72: 403 | C72: 3 | D72: 第３区 | E72: 40353 | F72: 木場 | G72: 萌菜 | H72: ｺﾊﾞ | I72: ﾓｴﾅ | J72: 1 | K72: 女 | M72: 2
A73: 340304 | B73: 403 | C73: 4 | D73: 第４区 | E73: 40354 | F73: 鈴木 | G73: 真理子 | H73: ｽｽﾞｷ | I73: ﾏﾘｺ | J73: 2 | K73: 女 | M73: 2
A74: 340305 | B74: 403 | C74: 5 | D74: 補欠 | E74: 40355 | F74: 関谷 | G74: 美穂 | H74: ｾｷﾔ | I74: ﾐﾎ | J74: 2 | K74: 女 | M74: 2
A75: 340306 | B75: 403 | C75: 6 | D75: 補欠 | E75: 40356 | F75: 鈴木 | G75: 眞生子 | H75: ｽｽﾞｷ | I75: ﾏｵｺ | J75: 2 | K75: 女 | M75: 2 | P75: 以上
D76: Ｂチーム | P76: ここまで
A77: 340307 | B77: 403 | C77: 7 | D77: 第１区 | E77: 40370 | F77: 阿部 | G77: 遥 | H77: ｱﾍﾞ | I77: ﾊﾙｶ | J77: 2 | K77: 女 | M77: 2
A78: 340308 | B78: 403 | C78: 8 | D78: 第２区 | E78: 40372 | F78: 小林 | G78: 理沙子 | H78: ｺﾊﾞﾔｼ | I78: ﾘｻｺ | J78: 2 | K78: 女 | M78: 2
A79: 340309 | B79: 403 | C79: 9 | D79: 第３区 | E79: 40377 | F79: 木場 | G79: 捺月香 | H79: ｺﾊﾞ | I79: ﾅﾂｶ | J79: 1 | K79: 女 | M79: 2
A80: 340310 | B80: 403 | C80: 10 | D80: 第４区 | E80: 40374 | F80: 鈴木 | G80: 遥南 | H80: ｽｽﾞｷ | I80: ﾊﾙﾅ | J80: 2 | K80: 女 | M80: 2
A81: 340311 | B81: 403 | C81: 11 | D81: 補欠 | E81: 40375 | F81: 関谷 | G81: 千夏 | H81: ｾｷﾔ | I81: ﾁﾅﾂ | J81: 2 | K81: 女 | M81: 2
A82: 340312 | B82: 403 | C82: 12 | D82: 補欠 | E82: 40376 | F82: 鈴木 | G82: 夏帆 | H82: ｽｽﾞｷ | I82: ﾅﾂﾎ | J82: 2 | K82: 女 | M82: 2
D83: ロードレース
A84: 440301 | B84: 403 | C84: 1 | D84: 1 | E84: 40374 | F84: 小杉 | G84: 直子 | H84: ｺｽｷﾞ | I84: ﾅｵｺ | J84: 2 | K84: 女 | M84: 2
A85: 440302 | B85: 403 | C85: 2 | D85: 2 | E85: 40375 | F85: 小林 | G85: 実友紀 | H85: ｺﾊﾞﾔｼ | I85: ﾐﾕｷ | J85: 2 | K85: 女 | M85: 2
A86: 440303 | B86: 403 | C86: 3 | D86: 3 | E86: 40376 | F86: 鈴木 | G86: 織絵 | H86: ｽｽﾞｷ | I86: ｵﾘｴ | J86: 2 | K86: 女 | M86: 2
D89: 以上ここまで | I89: 以上ここまで

Sheet 登録予定者
A1: 0 | B1: ５桁 | C1: 氏名 | D1: 全角 | E1: ﾌﾘｶﾞﾅ | F1: 半角 | G1: 学年 | H1: 省略校名 | I1: 性別
A2: 0.1 | B2: 半角 | C2: 姓 | D2: 名 | E2: 姓 | F2: 名 | G2: 半角 | H2: ６文字 全角 | I2: 全角
A3: 0.2 | B3: 47201 | C3: 駅伝 | D3: 走太 | E3: ｴｷﾃﾞﾝ | F3: ｿｳﾀ | G3: 3 | H3: 都駅伝総合 | I3: 男 | J3: ←例
A4: 1
A5: 2
A6: 3
A7: 4
A8: 5
A9: 6
A10: 7
A11: 8
A12: 9
A13: 10
A14: 11
A15: 12
A16: 13
A17: 14
A18: 15
A19: 16
A20: 17
A21: 18
A22: 19
A23: 20
A24: 21
A25: 22
A26: 23
A27: 24
A28: 25
A29: 26
A30: 27
A31: 28
A32: 29
A33: 30
A34: 31
A35: 32
A36: 33
A37: 34
A38: 35
A39: 36
A40: 37
A41: 38
A42: 39
A43: 40
A44: 41
A45: 42
A46: 43
A47: 44
A48: 45
A49: 46
A50: 47
A51: 48
A52: 49
A53: 50
A54: 51
A55: 52
A56: 53
A57: 54
A58: 55
A59: 56
A60: 57
A61: 58
A62: 59
A63: 60
A64: 61
A65: 62
A66: 63
A67: 64
A68: 65
A69: 66
A70: 67
A71: 68
A72: 69
A73: 70
A74: 71
A75: 72
A76: 73
A77: 74
A78: 75
A79: 76
A80: 77
A81: 78
A82: 79
A83: 80
A84: 81
A85: 82
A86: 83
A87: 84
A88: 85
A89: 86
A90: 87
A91: 88
A92: 89
A93: 90
A94: 91
A95: 92
A96: 93
A97: 94
A98: 95
A99: 96
A100: 97
A101: 98
A102: 99
A103: 100

Sheet 入力ｼｰﾄ
A1: =CONCATENATE(A2,"\",A3) ->  | D1: 競技会名 | F1: 新春駅伝競走大会 | K1: _R4新春駅伝
A2: C:\Users\y-nezu\Desktop | D2: 学校名（正式名称）
A3: =CONCATENATE(VALUE(F17*100+F18),F19,K1,A5) ->  | D3: 学校長名
A4: =NOW() -> 44893.66206 | D4: 学校所在地 | E4: 郵便番号
A5: =TEXT(A4,"md") -> 1128 | E5: 住所
E6: 電話番号
E7: ＦＡＸ番号
D8: 顧問氏名
D9: 連絡先 | O9: 学校名 | P9: 顧問名 | Q9: 審判氏名 | U9: 希望審判
A10: =F17*100+F18 -> 0 | B10: =F19 ->  | D10: 審判氏名（審判をお願いできる場合にはすべての方の氏名を入力してください） | K10: =F11 -> 0 | O10: =F19 ->  | P10: =F8 -> 0 | Q10: =F10 -> 0 | R10: =G10 -> 0 | S10: =H10 -> 0 | T10: =I10 -> 0 | U10: =F11 -> 0
D11: 希望 審判種別
F13: 男子 | G13: 女子
D14: 参加チーム数 | E14: （半角） | F14: 0 | G14: 0
D15: 参加ロード人数（半角） | F15: 0 | G15: 0
D16: プログラム冊数（半角） | F16: 1 | G16: 1
D17: 支部 | E17: （半角） | G17: ←１～６を入力します | O17: =VLOOKUP(F17*100+F18,省略学校名!B:F,5,0) -> 
D18: 学校番号 | E18: （半角） | G18: ←２桁番号です | O18: =IF(ISERROR(VLOOKUP(F17*100+F18,省略学校名!B:F,5,0)),"",O17) -> 
D19: 学校名（略称６文字） | F19: =VLOOKUP(F17*100+F18,省略学校名!B:F,5,FALSE) ->  | O19: =IF(O18="",F19,O18) -> 
D21: 男子出場選手情報
E22: 登録ﾅﾝﾊﾞｰ | F22: 氏名 | H22: ﾌﾘｶﾞﾅ
A23: ﾅﾝﾊﾞｰ | B23: 支部 | D23: Ａチーム | E23: ５桁(半角) | F23: 姓 | G23: 名 | H23: 姓 | I23: 名 | J23: 学年 | K23: 性別 | N23: 性別 | O23: 学校名 | P23: 氏名 | Q23: 学年 | R23: 支部 | S23: 学校 | T23: 参加 | U23: 確認 | V23: プロ
A24: =100000+B24*100+1 -> 100001 | B24: =$F$17*100+$F$18 -> 0 | C24: 1 | D24: 第１区 | F24: =IF($E24="","",IF(ISERROR(VLOOKUP($E24,氏名ﾃﾞｰﾀ!$B:$I,2,0)),IF(ISERROR(VLOOKUP($E24,登録予定者!$B:$I,2,0)),"未登録",VLOOKUP($E24,登録予定者!$B:$I,2,0)),VLOOKUP($E24,氏名ﾃﾞｰﾀ!$B:$I,2,0))) ->  | G24: =IF($E24="","",IF(ISERROR(VLOOKUP($E24,氏名ﾃﾞｰﾀ!$B:$I,3,0)),IF(ISERROR(VLOOKUP($E24,登録予定者!$B:$I,3,0)),"未登録",VLOOKUP($E24,登録予定者!$B:$I,3,0)),VLOOKUP($E24,氏名ﾃﾞｰﾀ!$B:$I,3,0))) ->  | H24: =IF($E24="","",IF(ISERROR(VLOOKUP($E24,氏名ﾃﾞｰﾀ!$B:$I,4,0)),IF(ISERROR(VLOOKUP($E24,登録予定者!$B:$I,4,0)),"未登録",VLOOKUP($E24,登録予定者!$B:$I,4,0)),VLOOKUP($E24,氏名ﾃﾞｰﾀ!$B:$I,4,0))) ->  | I24: =IF($E24="","",IF(ISERROR(VLOOKUP($E24,氏名ﾃﾞｰﾀ!$B:$I,5,0)),IF(ISERROR(VLOOKUP($E24,登録予定者!$B:$I,5,0)),"未登録",VLOOKUP($E24,登録予定者!$B:$I,5,0)),VLOOKUP($E24,氏名ﾃﾞｰﾀ!$B:$I,5,0))) ->  | J24: =IF($E24="","",IF(ISERROR(VLOOKUP($E24,氏名ﾃﾞｰﾀ!$B:$I,6,0)),IF(ISERROR(VLOOKUP($E24,登録予定者!$B:$I,6,0)),"未登録",VLOOKUP($E24,登録予定者!$B:$I,6,0)),VLOOKUP($E24,氏名ﾃﾞｰﾀ!$B:$I,6,0))) ->  | K24: 男 | N24: 1 | O24: =CONCATENATE($O$19,IF($E$31="","","Ａ")) ->  | P24: =IF(E24="","",CONCATENATE(F24," ",G24)) ->  | Q24: =IF(E24="","",J24) ->  | R24: =IF(E24="","",$F$17) ->  | S24: =IF(U24="","",RIGHT(B24,2)) ->  | T24: =IF(U24="",1,0) -> 1 | U24: =IF($E$24="","",B24*10+1) ->  | V24: =IF(E24="","",F16) -> 
A25: =100000+B25*100+2 -> 100002 | B25: =$F$17*100+$F$18 -> 0 | C25: 2 | D25: 第２区 | F25: =IF($E25="","",IF(ISERROR(VLOOKUP($E25,氏名ﾃﾞｰﾀ!$B:$I,2,0)),IF(ISERROR(VLOOKUP($E25,登録予定者!$B:$I,2,0)),"未登録",VLOOKUP($E25,登録予定者!$B:$I,2,0)),VLOOKUP($E25,氏名ﾃﾞｰﾀ!$B:$I,2,0))) ->  | G25: =IF($E25="","",IF(ISERROR(VLOOKUP($E25,氏名ﾃﾞｰﾀ!$B:$I,3,0)),IF(ISERROR(VLOOKUP($E25,登録予定者!$B:$I,3,0)),"未登録",VLOOKUP($E25,登録予定者!$B:$I,3,0)),VLOOKUP($E25,氏名ﾃﾞｰﾀ!$B:$I,3,0))) ->  | H25: =IF($E25="","",IF(ISERROR(VLOOKUP($E25,氏名ﾃﾞｰﾀ!$B:$I,4,0)),IF(ISERROR(VLOOKUP($E25,登録予定者!$B:$I,4,0)),"未登録",VLOOKUP($E25,登録予定者!$B:$I,4,0)),VLOOKUP($E25,氏名ﾃﾞｰﾀ!$B:$I,4,0))) ->  | I25: =IF($E25="","",IF(ISERROR(VLOOKUP($E25,氏名ﾃﾞｰﾀ!$B:$I,5,0)),IF(ISERROR(VLOOKUP($E25,登録予定者!$B:$I,5,0)),"未登録",VLOOKUP($E25,登録予定者!$B:$I,5,0)),VLOOKUP($E25,氏名ﾃﾞｰﾀ!$B:$I,5,0))) ->  | J25: =IF($E25="","",IF(ISERROR(VLOOKUP($E25,氏名ﾃﾞｰﾀ!$B:$I,6,0)),IF(ISERROR(VLOOKUP($E25,登録予定者!$B:$I,6,0)),"未登録",VLOOKUP($E25,登録予定者!$B:$I,6,0)),VLOOKUP($E25,氏名ﾃﾞｰﾀ!$B:$I,6,0))) ->  | K25: 男 | N25: 1 | S25: =IF(U25="","",RIGHT(B25,2)) ->  | T25: =IF(U25="",1,0) -> 1
A26: =100000+B26*100+3 -> 100003 | B26: 0 | C26: 3 | D26: 第３区 | F26: =IF($E26="","",IF(ISERROR(VLOOKUP($E26,氏名ﾃﾞｰﾀ!$B:$I,2,0)),IF(ISERROR(VLOOKUP($E26,登録予定者!$B:$I,2,0)),"未登録",VLOOKUP($E26,登録予定者!$B:$I,2,0)),VLOOKUP($E26,氏名ﾃﾞｰﾀ!$B:$I,2,0))) ->  | G26: =IF($E26="","",IF(ISERROR(VLOOKUP($E26,氏名ﾃﾞｰﾀ!$B:$I,3,0)),IF(ISERROR(VLOOKUP($E26,登録予定者!$B:$I,3,0)),"未登録",VLOOKUP($E26,登録予定者!$B:$I,3,0)),VLOOKUP($E26,氏名ﾃﾞｰﾀ!$B:$I,3,0))) ->  | H26: =IF($E26="","",IF(ISERROR(VLOOKUP($E26,氏名ﾃﾞｰﾀ!$B:$I,4,0)),IF(ISERROR(VLOOKUP($E26,登録予定者!$B:$I,4,0)),"未登録",VLOOKUP($E26,登録予定者!$B:$I,4,0)),VLOOKUP($E26,氏名ﾃﾞｰﾀ!$B:$I,4,0))) ->  | I26: =IF($E26="","",IF(ISERROR(VLOOKUP($E26,氏名ﾃﾞｰﾀ!$B:$I,5,0)),IF(ISERROR(VLOOKUP($E26,登録予定者!$B:$I,5,0)),"未登録",VLOOKUP($E26,登録予定者!$B:$I,5,0)),VLOOKUP($E26,氏名ﾃﾞｰﾀ!$B:$I,5,0))) ->  | J26: =IF($E26="","",IF(ISERROR(VLOOKUP($E26,氏名ﾃﾞｰﾀ!$B:$I,6,0)),IF(ISERROR(VLOOKUP($E26,登録予定者!$B:$I,6,0)),"未登録",VLOOKUP($E26,登録予定者!$B:$I,6,0)),VLOOKUP($E26,氏名ﾃﾞｰﾀ!$B:$I,6,0))) ->  | K26: 男 | N26: 1 | T26: 1
A27: =100000+B27*100+4 -> 100004 | B27: 0 | C27: 4 | D27: 第４区 | F27: =IF($E27="","",IF(ISERROR(VLOOKUP($E27,氏名ﾃﾞｰﾀ!$B:$I,2,0)),IF(ISERROR(VLOOKUP($E27,登録予定者!$B:$I,2,0)),"未登録",VLOOKUP($E27,登録予定者!$B:$I,2,0)),VLOOKUP($E27,氏名ﾃﾞｰﾀ!$B:$I,2,0))) ->  | G27: =IF($E27="","",IF(ISERROR(VLOOKUP($E27,氏名ﾃﾞｰﾀ!$B:$I,3,0)),IF(ISERROR(VLOOKUP($E27,登録予定者!$B:$I,3,0)),"未登録",VLOOKUP($E27,登録予定者!$B:$I,3,0)),VLOOKUP($E27,氏名ﾃﾞｰﾀ!$B:$I,3,0))) ->  | H27: =IF($E27="","",IF(ISERROR(VLOOKUP($E27,氏名ﾃﾞｰﾀ!$B:$I,4,0)),IF(ISERROR(VLOOKUP($E27,登録予定者!$B:$I,4,0)),"未登録",VLOOKUP($E27,登録予定者!$B:$I,4,0)),VLOOKUP($E27,氏名ﾃﾞｰﾀ!$B:$I,4,0))) ->  | I27: =IF($E27="","",IF(ISERROR(VLOOKUP($E27,氏名ﾃﾞｰﾀ!$B:$I,5,0)),IF(ISERROR(VLOOKUP($E27,登録予定者!$B:$I,5,0)),"未登録",VLOOKUP($E27,登録予定者!$B:$I,5,0)),VLOOKUP($E27,氏名ﾃﾞｰﾀ!$B:$I,5,0))) ->  | J27: =IF($E27="","",IF(ISERROR(VLOOKUP($E27,氏名ﾃﾞｰﾀ!$B:$I,6,0)),IF(ISERROR(VLOOKUP($E27,登録予定者!$B:$I,6,0)),"未登録",VLOOKUP($E27,登録予定者!$B:$I,6,0)),VLOOKUP($E27,氏名ﾃﾞｰﾀ!$B:$I,6,0))) ->  | K27: 男 | N27: 1 | T27: 1
A28: =100000+B28*100+5 -> 100005 | B28: 0 | C28: 5 | D28: 補欠 | F28: =IF($E28="","",IF(ISERROR(VLOOKUP($E28,氏名ﾃﾞｰﾀ!$B:$I,2,0)),IF(ISERROR(VLOOKUP($E28,登録予定者!$B:$I,2,0)),"未登録",VLOOKUP($E28,登録予定者!$B:$I,2,0)),VLOOKUP($E28,氏名ﾃﾞｰﾀ!$B:$I,2,0))) ->  | G28: =IF($E28="","",IF(ISERROR(VLOOKUP($E28,氏名ﾃﾞｰﾀ!$B:$I,3,0)),IF(ISERROR(VLOOKUP($E28,登録予定者!$B:$I,3,0)),"未登録",VLOOKUP($E28,登録予定者!$B:$I,3,0)),VLOOKUP($E28,氏名ﾃﾞｰﾀ!$B:$I,3,0))) ->  | H28: =IF($E28="","",IF(ISERROR(VLOOKUP($E28,氏名ﾃﾞｰﾀ!$B:$I,4,0)),IF(ISERROR(VLOOKUP($E28,登録予定者!$B:$I,4,0)),"未登録",VLOOKUP($E28,登録予定者!$B:$I,4,0)),VLOOKUP($E28,氏名ﾃﾞｰﾀ!$B:$I,4,0))) ->  | I28: =IF($E28="","",IF(ISERROR(VLOOKUP($E28,氏名ﾃﾞｰﾀ!$B:$I,5,0)),IF(ISERROR(VLOOKUP($E28,登録予定者!$B:$I,5,0)),"未登録",VLOOKUP($E28,登録予定者!$B:$I,5,0)),VLOOKUP($E28,氏名ﾃﾞｰﾀ!$B:$I,5,0))) ->  | J28: =IF($E28="","",IF(ISERROR(VLOOKUP($E28,氏名ﾃﾞｰﾀ!$B:$I,6,0)),IF(ISERROR(VLOOKUP($E28,登録予定者!$B:$I,6,0)),"未登録",VLOOKUP($E28,登録予定者!$B:$I,6,0)),VLOOKUP($E28,氏名ﾃﾞｰﾀ!$B:$I,6,0))) ->  | K28: 男 | N28: 1 | T28: 1
A29: =100000+B29*100+6 -> 100006 | B29: 0 | C29: 6 | D29: 補欠 | F29: =IF($E29="","",IF(ISERROR(VLOOKUP($E29,氏名ﾃﾞｰﾀ!$B:$I,2,0)),IF(ISERROR(VLOOKUP($E29,登録予定者!$B:$I,2,0)),"未登録",VLOOKUP($E29,登録予定者!$B:$I,2,0)),VLOOKUP($E29,氏名ﾃﾞｰﾀ!$B:$I,2,0))) ->  | G29: =IF($E29="","",IF(ISERROR(VLOOKUP($E29,氏名ﾃﾞｰﾀ!$B:$I,3,0)),IF(ISERROR(VLOOKUP($E29,登録予定者!$B:$I,3,0)),"未登録",VLOOKUP($E29,登録予定者!$B:$I,3,0)),VLOOKUP($E29,氏名ﾃﾞｰﾀ!$B:$I,3,0))) ->  | H29: =IF($E29="","",IF(ISERROR(VLOOKUP($E29,氏名ﾃﾞｰﾀ!$B:$I,4,0)),IF(ISERROR(VLOOKUP($E29,登録予定者!$B:$I,4,0)),"未登録",VLOOKUP($E29,登録予定者!$B:$I,4,0)),VLOOKUP($E29,氏名ﾃﾞｰﾀ!$B:$I,4,0))) ->  | I29: =IF($E29="","",IF(ISERROR(VLOOKUP($E29,氏名ﾃﾞｰﾀ!$B:$I,5,0)),IF(ISERROR(VLOOKUP($E29,登録予定者!$B:$I,5,0)),"未登録",VLOOKUP($E29,登録予定者!$B:$I,5,0)),VLOOKUP($E29,氏名ﾃﾞｰﾀ!$B:$I,5,0))) ->  | J29: =IF($E29="","",IF(ISERROR(VLOOKUP($E29,氏名ﾃﾞｰﾀ!$B:$I,6,0)),IF(ISERROR(VLOOKUP($E29,登録予定者!$B:$I,6,0)),"未登録",VLOOKUP($E29,登録予定者!$B:$I,6,0)),VLOOKUP($E29,氏名ﾃﾞｰﾀ!$B:$I,6,0))) ->  | K29: 男 | N29: 1 | T29: 1
D30: Ｂチーム
A31: =100000+B31*100+7 -> 100007 | B31: =$F$17*100+$F$18 -> 0 | C31: 1 | D31: 第１区 | F31: =IF($E31="","",IF(ISERROR(VLOOKUP($E31,氏名ﾃﾞｰﾀ!$B:$I,2,0)),IF(ISERROR(VLOOKUP($E31,登録予定者!$B:$I,2,0)),"未登録",VLOOKUP($E31,登録予定者!$B:$I,2,0)),VLOOKUP($E31,氏名ﾃﾞｰﾀ!$B:$I,2,0))) ->  | G31: =IF($E31="","",IF(ISERROR(VLOOKUP($E31,氏名ﾃﾞｰﾀ!$B:$I,3,0)),IF(ISERROR(VLOOKUP($E31,登録予定者!$B:$I,3,0)),"未登録",VLOOKUP($E31,登録予定者!$B:$I,3,0)),VLOOKUP($E31,氏名ﾃﾞｰﾀ!$B:$I,3,0))) ->  | H31: =IF($E31="","",IF(ISERROR(VLOOKUP($E31,氏名ﾃﾞｰﾀ!$B:$I,4,0)),IF(ISERROR(VLOOKUP($E31,登録予定者!$B:$I,4,0)),"未登録",VLOOKUP($E31,登録予定者!$B:$I,4,0)),VLOOKUP($E31,氏名ﾃﾞｰﾀ!$B:$I,4,0))) ->  | I31: =IF($E31="","",IF(ISERROR(VLOOKUP($E31,氏名ﾃﾞｰﾀ!$B:$I,5,0)),IF(ISERROR(VLOOKUP($E31,登録予定者!$B:$I,5,0)),"未登録",VLOOKUP($E31,登録予定者!$B:$I,5,0)),VLOOKUP($E31,氏名ﾃﾞｰﾀ!$B:$I,5,0))) ->  | J31: =IF($E31="","",IF(ISERROR(VLOOKUP($E31,氏名ﾃﾞｰﾀ!$B:$I,6,0)),IF(ISERROR(VLOOKUP($E31,登録予定者!$B:$I,6,0)),"未登録",VLOOKUP($E31,登録予定者!$B:$I,6,0)),VLOOKUP($E31,氏名ﾃﾞｰﾀ!$B:$I,6,0))) ->  | K31: 男 | N31: 1 | O31: =CONCATENATE($O$19,"Ｂ") ->  | P31: =IF(E31="","",CONCATENATE(F31," ",G31)) ->  | Q31: =IF(E31="","",J31) ->  | R31: =IF(E31="","",$F$17) ->  | T31: 1 | U31: =IF($E$31="","",B31*10+1) -> 
A32: =100000+B32*100+8 -> 100008 | B32: 0 | C32: 2 | D32: 第２区 | F32: =IF($E32="","",IF(ISERROR(VLOOKUP($E32,氏名ﾃﾞｰﾀ!$B:$I,2,0)),IF(ISERROR(VLOOKUP($E32,登録予定者!$B:$I,2,0)),"未登録",VLOOKUP($E32,登録予定者!$B:$I,2,0)),VLOOKUP($E32,氏名ﾃﾞｰﾀ!$B:$I,2,0))) ->  | G32: =IF($E32="","",IF(ISERROR(VLOOKUP($E32,氏名ﾃﾞｰﾀ!$B:$I,3,0)),IF(ISERROR(VLOOKUP($E32,登録予定者!$B:$I,3,0)),"未登録",VLOOKUP($E32,登録予定者!$B:$I,3,0)),VLOOKUP($E32,氏名ﾃﾞｰﾀ!$B:$I,3,0))) ->  | H32: =IF($E32="","",IF(ISERROR(VLOOKUP($E32,氏名ﾃﾞｰﾀ!$B:$I,4,0)),IF(ISERROR(VLOOKUP($E32,登録予定者!$B:$I,4,0)),"未登録",VLOOKUP($E32,登録予定者!$B:$I,4,0)),VLOOKUP($E32,氏名ﾃﾞｰﾀ!$B:$I,4,0))) ->  | I32: =IF($E32="","",IF(ISERROR(VLOOKUP($E32,氏名ﾃﾞｰﾀ!$B:$I,5,0)),IF(ISERROR(VLOOKUP($E32,登録予定者!$B:$I,5,0)),"未登録",VLOOKUP($E32,登録予定者!$B:$I,5,0)),VLOOKUP($E32,氏名ﾃﾞｰﾀ!$B:$I,5,0))) ->  | J32: =IF($E32="","",IF(ISERROR(VLOOKUP($E32,氏名ﾃﾞｰﾀ!$B:$I,6,0)),IF(ISERROR(VLOOKUP($E32,登録予定者!$B:$I,6,0)),"未登録",VLOOKUP($E32,登録予定者!$B:$I,6,0)),VLOOKUP($E32,氏名ﾃﾞｰﾀ!$B:$I,6,0))) ->  | K32: 男 | N32: 1 | T32: 1
A33: =100000+B33*100+9 -> 100009 | B33: 0 | C33: 3 | D33: 第３区 | F33: =IF($E33="","",IF(ISERROR(VLOOKUP($E33,氏名ﾃﾞｰﾀ!$B:$I,2,0)),IF(ISERROR(VLOOKUP($E33,登録予定者!$B:$I,2,0)),"未登録",VLOOKUP($E33,登録予定者!$B:$I,2,0)),VLOOKUP($E33,氏名ﾃﾞｰﾀ!$B:$I,2,0))) ->  | G33: =IF($E33="","",IF(ISERROR(VLOOKUP($E33,氏名ﾃﾞｰﾀ!$B:$I,3,0)),IF(ISERROR(VLOOKUP($E33,登録予定者!$B:$I,3,0)),"未登録",VLOOKUP($E33,登録予定者!$B:$I,3,0)),VLOOKUP($E33,氏名ﾃﾞｰﾀ!$B:$I,3,0))) ->  | H33: =IF($E33="","",IF(ISERROR(VLOOKUP($E33,氏名ﾃﾞｰﾀ!$B:$I,4,0)),IF(ISERROR(VLOOKUP($E33,登録予定者!$B:$I,4,0)),"未登録",VLOOKUP($E33,登録予定者!$B:$I,4,0)),VLOOKUP($E33,氏名ﾃﾞｰﾀ!$B:$I,4,0))) ->  | I33: =IF($E33="","",IF(ISERROR(VLOOKUP($E33,氏名ﾃﾞｰﾀ!$B:$I,5,0)),IF(ISERROR(VLOOKUP($E33,登録予定者!$B:$I,5,0)),"未登録",VLOOKUP($E33,登録予定者!$B:$I,5,0)),VLOOKUP($E33,氏名ﾃﾞｰﾀ!$B:$I,5,0))) ->  | J33: =IF($E33="","",IF(ISERROR(VLOOKUP($E33,氏名ﾃﾞｰﾀ!$B:$I,6,0)),IF(ISERROR(VLOOKUP($E33,登録予定者!$B:$I,6,0)),"未登録",VLOOKUP($E33,登録予定者!$B:$I,6,0)),VLOOKUP($E33,氏名ﾃﾞｰﾀ!$B:$I,6,0))) ->  | K33: 男 | N33: 1 | T33: 1
A34: =100000+B34*100+10 -> 100010 | B34: 0 | C34: 4 | D34: 第４区 | F34: =IF($E34="","",IF(ISERROR(VLOOKUP($E34,氏名ﾃﾞｰﾀ!$B:$I,2,0)),IF(ISERROR(VLOOKUP($E34,登録予定者!$B:$I,2,0)),"未登録",VLOOKUP($E34,登録予定者!$B:$I,2,0)),VLOOKUP($E34,氏名ﾃﾞｰﾀ!$B:$I,2,0))) ->  | G34: =IF($E34="","",IF(ISERROR(VLOOKUP($E34,氏名ﾃﾞｰﾀ!$B:$I,3,0)),IF(ISERROR(VLOOKUP($E34,登録予定者!$B:$I,3,0)),"未登録",VLOOKUP($E34,登録予定者!$B:$I,3,0)),VLOOKUP($E34,氏名ﾃﾞｰﾀ!$B:$I,3,0))) ->  | H34: =IF($E34="","",IF(ISERROR(VLOOKUP($E34,氏名ﾃﾞｰﾀ!$B:$I,4,0)),IF(ISERROR(VLOOKUP($E34,登録予定者!$B:$I,4,0)),"未登録",VLOOKUP($E34,登録予定者!$B:$I,4,0)),VLOOKUP($E34,氏名ﾃﾞｰﾀ!$B:$I,4,0))) ->  | I34: =IF($E34="","",IF(ISERROR(VLOOKUP($E34,氏名ﾃﾞｰﾀ!$B:$I,5,0)),IF(ISERROR(VLOOKUP($E34,登録予定者!$B:$I,5,0)),"未登録",VLOOKUP($E34,登録予定者!$B:$I,5,0)),VLOOKUP($E34,氏名ﾃﾞｰﾀ!$B:$I,5,0))) ->  | J34: =IF($E34="","",IF(ISERROR(VLOOKUP($E34,氏名ﾃﾞｰﾀ!$B:$I,6,0)),IF(ISERROR(VLOOKUP($E34,登録予定者!$B:$I,6,0)),"未登録",VLOOKUP($E34,登録予定者!$B:$I,6,0)),VLOOKUP($E34,氏名ﾃﾞｰﾀ!$B:$I,6,0))) ->  | K34: 男 | N34: 1 | T34: 1
A35: =100000+B35*100+11 -> 100011 | B35: 0 | C35: 5 | D35: 補欠 | F35: =IF($E35="","",IF(ISERROR(VLOOKUP($E35,氏名ﾃﾞｰﾀ!$B:$I,2,0)),IF(ISERROR(VLOOKUP($E35,登録予定者!$B:$I,2,0)),"未登録",VLOOKUP($E35,登録予定者!$B:$I,2,0)),VLOOKUP($E35,氏名ﾃﾞｰﾀ!$B:$I,2,0))) ->  | G35: =IF($E35="","",IF(ISERROR(VLOOKUP($E35,氏名ﾃﾞｰﾀ!$B:$I,3,0)),IF(ISERROR(VLOOKUP($E35,登録予定者!$B:$I,3,0)),"未登録",VLOOKUP($E35,登録予定者!$B:$I,3,0)),VLOOKUP($E35,氏名ﾃﾞｰﾀ!$B:$I,3,0))) ->  | H35: =IF($E35="","",IF(ISERROR(VLOOKUP($E35,氏名ﾃﾞｰﾀ!$B:$I,4,0)),IF(ISERROR(VLOOKUP($E35,登録予定者!$B:$I,4,0)),"未登録",VLOOKUP($E35,登録予定者!$B:$I,4,0)),VLOOKUP($E35,氏名ﾃﾞｰﾀ!$B:$I,4,0))) ->  | I35: =IF($E35="","",IF(ISERROR(VLOOKUP($E35,氏名ﾃﾞｰﾀ!$B:$I,5,0)),IF(ISERROR(VLOOKUP($E35,登録予定者!$B:$I,5,0)),"未登録",VLOOKUP($E35,登録予定者!$B:$I,5,0)),VLOOKUP($E35,氏名ﾃﾞｰﾀ!$B:$I,5,0))) ->  | J35: =IF($E35="","",IF(ISERROR(VLOOKUP($E35,氏名ﾃﾞｰﾀ!$B:$I,6,0)),IF(ISERROR(VLOOKUP($E35,登録予定者!$B:$I,6,0)),"未登録",VLOOKUP($E35,登録予定者!$B:$I,6,0)),VLOOKUP($E35,氏名ﾃﾞｰﾀ!$B:$I,6,0))) ->  | K35: 男 | N35: 1 | T35: 1
A36: =100000+B36*100+12 -> 100012 | B36: 0 | C36: 6 | D36: 補欠 | F36: =IF($E36="","",IF(ISERROR(VLOOKUP($E36,氏名ﾃﾞｰﾀ!$B:$I,2,0)),IF(ISERROR(VLOOKUP($E36,登録予定者!$B:$I,2,0)),"未登録",VLOOKUP($E36,登録予定者!$B:$I,2,0)),VLOOKUP($E36,氏名ﾃﾞｰﾀ!$B:$I,2,0))) ->  | G36: =IF($E36="","",IF(ISERROR(VLOOKUP($E36,氏名ﾃﾞｰﾀ!$B:$I,3,0)),IF(ISERROR(VLOOKUP($E36,登録予定者!$B:$I,3,0)),"未登録",VLOOKUP($E36,登録予定者!$B:$I,3,0)),VLOOKUP($E36,氏名ﾃﾞｰﾀ!$B:$I,3,0))) ->  | H36: =IF($E36="","",IF(ISERROR(VLOOKUP($E36,氏名ﾃﾞｰﾀ!$B:$I,4,0)),IF(ISERROR(VLOOKUP($E36,登録予定者!$B:$I,4,0)),"未登録",VLOOKUP($E36,登録予定者!$B:$I,4,0)),VLOOKUP($E36,氏名ﾃﾞｰﾀ!$B:$I,4,0))) ->  | I36: =IF($E36="","",IF(ISERROR(VLOOKUP($E36,氏名ﾃﾞｰﾀ!$B:$I,5,0)),IF(ISERROR(VLOOKUP($E36,登録予定者!$B:$I,5,0)),"未登録",VLOOKUP($E36,登録予定者!$B:$I,5,0)),VLOOKUP($E36,氏名ﾃﾞｰﾀ!$B:$I,5,0))) ->  | J36: =IF($E36="","",IF(ISERROR(VLOOKUP($E36,氏名ﾃﾞｰﾀ!$B:$I,6,0)),IF(ISERROR(VLOOKUP($E36,登録予定者!$B:$I,6,0)),"未登録",VLOOKUP($E36,登録予定者!$B:$I,6,0)),VLOOKUP($E36,氏名ﾃﾞｰﾀ!$B:$I,6,0))) ->  | K36: 男 | N36: 1 | T36: 1
D37: Cチーム
A38: =100000+B38*100+13 -> 100013 | B38: =$F$17*100+$F$18 -> 0 | C38: 1 | D38: 第１区 | F38: =IF($E38="","",IF(ISERROR(VLOOKUP($E38,氏名ﾃﾞｰﾀ!$B:$I,2,0)),IF(ISERROR(VLOOKUP($E38,登録予定者!$B:$I,2,0)),"未登録",VLOOKUP($E38,登録予定者!$B:$I,2,0)),VLOOKUP($E38,氏名ﾃﾞｰﾀ!$B:$I,2,0))) ->  | G38: =IF($E38="","",IF(ISERROR(VLOOKUP($E38,氏名ﾃﾞｰﾀ!$B:$I,3,0)),IF(ISERROR(VLOOKUP($E38,登録予定者!$B:$I,3,0)),"未登録",VLOOKUP($E38,登録予定者!$B:$I,3,0)),VLOOKUP($E38,氏名ﾃﾞｰﾀ!$B:$I,3,0))) ->  | H38: =IF($E38="","",IF(ISERROR(VLOOKUP($E38,氏名ﾃﾞｰﾀ!$B:$I,4,0)),IF(ISERROR(VLOOKUP($E38,登録予定者!$B:$I,4,0)),"未登録",VLOOKUP($E38,登録予定者!$B:$I,4,0)),VLOOKUP($E38,氏名ﾃﾞｰﾀ!$B:$I,4,0))) ->  | I38: =IF($E38="","",IF(ISERROR(VLOOKUP($E38,氏名ﾃﾞｰﾀ!$B:$I,5,0)),IF(ISERROR(VLOOKUP($E38,登録予定者!$B:$I,5,0)),"未登録",VLOOKUP($E38,登録予定者!$B:$I,5,0)),VLOOKUP($E38,氏名ﾃﾞｰﾀ!$B:$I,5,0))) ->  | J38: =IF($E38="","",IF(ISERROR(VLOOKUP($E38,氏名ﾃﾞｰﾀ!$B:$I,6,0)),IF(ISERROR(VLOOKUP($E38,登録予定者!$B:$I,6,0)),"未登録",VLOOKUP($E38,登録予定者!$B:$I,6,0)),VLOOKUP($E38,氏名ﾃﾞｰﾀ!$B:$I,6,0))) ->  | K38: 男 | N38: 1 | O38: =CONCATENATE($O$19,"Ｃ") ->  | P38: =IF(E38="","",CONCATENATE(F38," ",G38)) ->  | Q38: =IF(E38="","",J38) ->  | R38: =IF(E38="","",$F$17) ->  | S38: =IF(U38="","",RIGHT(B38,2)) ->  | T38: =IF(U38="",1,0) -> 1 | U38: =IF($E$38="","",B38*10+1) -> 
A39: =100000+B39*100+14 -> 100014 | B39: 0 | C39: 2 | D39: 第２区 | F39: =IF($E39="","",IF(ISERROR(VLOOKUP($E39,氏名ﾃﾞｰﾀ!$B:$I,2,0)),IF(ISERROR(VLOOKUP($E39,登録予定者!$B:$I,2,0)),"未登録",VLOOKUP($E39,登録予定者!$B:$I,2,0)),VLOOKUP($E39,氏名ﾃﾞｰﾀ!$B:$I,2,0))) ->  | G39: =IF($E39="","",IF(ISERROR(VLOOKUP($E39,氏名ﾃﾞｰﾀ!$B:$I,3,0)),IF(ISERROR(VLOOKUP($E39,登録予定者!$B:$I,3,0)),"未登録",VLOOKUP($E39,登録予定者!$B:$I,3,0)),VLOOKUP($E39,氏名ﾃﾞｰﾀ!$B:$I,3,0))) ->  | H39: =IF($E39="","",IF(ISERROR(VLOOKUP($E39,氏名ﾃﾞｰﾀ!$B:$I,4,0)),IF(ISERROR(VLOOKUP($E39,登録予定者!$B:$I,4,0)),"未登録",VLOOKUP($E39,登録予定者!$B:$I,4,0)),VLOOKUP($E39,氏名ﾃﾞｰﾀ!$B:$I,4,0))) ->  | I39: =IF($E39="","",IF(ISERROR(VLOOKUP($E39,氏名ﾃﾞｰﾀ!$B:$I,5,0)),IF(ISERROR(VLOOKUP($E39,登録予定者!$B:$I,5,0)),"未登録",VLOOKUP($E39,登録予定者!$B:$I,5,0)),VLOOKUP($E39,氏名ﾃﾞｰﾀ!$B:$I,5,0))) ->  | J39: =IF($E39="","",IF(ISERROR(VLOOKUP($E39,氏名ﾃﾞｰﾀ!$B:$I,6,0)),IF(ISERROR(VLOOKUP($E39,登録予定者!$B:$I,6,0)),"未登録",VLOOKUP($E39,登録予定者!$B:$I,6,0)),VLOOKUP($E39,氏名ﾃﾞｰﾀ!$B:$I,6,0))) ->  | K39: 男 | N39: 1 | O39: =CONCATENATE($O$19,"Ｃ") ->  | T39: =IF(U39="",1,0) -> 1 | U39: =IF($E$38="","",B39*10+1) -> 
A40: =100000+B40*100+15 -> 100015 | B40: 0 | C40: 3 | D40: 第３区 | F40: =IF($E40="","",IF(ISERROR(VLOOKUP($E40,氏名ﾃﾞｰﾀ!$B:$I,2,0)),IF(ISERROR(VLOOKUP($E40,登録予定者!$B:$I,2,0)),"未登録",VLOOKUP($E40,登録予定者!$B:$I,2,0)),VLOOKUP($E40,氏名ﾃﾞｰﾀ!$B:$I,2,0))) ->  | G40: =IF($E40="","",IF(ISERROR(VLOOKUP($E40,氏名ﾃﾞｰﾀ!$B:$I,3,0)),IF(ISERROR(VLOOKUP($E40,登録予定者!$B:$I,3,0)),"未登録",VLOOKUP($E40,登録予定者!$B:$I,3,0)),VLOOKUP($E40,氏名ﾃﾞｰﾀ!$B:$I,3,0))) ->  | H40: =IF($E40="","",IF(ISERROR(VLOOKUP($E40,氏名ﾃﾞｰﾀ!$B:$I,4,0)),IF(ISERROR(VLOOKUP($E40,登録予定者!$B:$I,4,0)),"未登録",VLOOKUP($E40,登録予定者!$B:$I,4,0)),VLOOKUP($E40,氏名ﾃﾞｰﾀ!$B:$I,4,0))) ->  | I40: =IF($E40="","",IF(ISERROR(VLOOKUP($E40,氏名ﾃﾞｰﾀ!$B:$I,5,0)),IF(ISERROR(VLOOKUP($E40,登録予定者!$B:$I,5,0)),"未登録",VLOOKUP($E40,登録予定者!$B:$I,5,0)),VLOOKUP($E40,氏名ﾃﾞｰﾀ!$B:$I,5,0))) ->  | J40: =IF($E40="","",IF(ISERROR(VLOOKUP($E40,氏名ﾃﾞｰﾀ!$B:$I,6,0)),IF(ISERROR(VLOOKUP($E40,登録予定者!$B:$I,6,0)),"未登録",VLOOKUP($E40,登録予定者!$B:$I,6,0)),VLOOKUP($E40,氏名ﾃﾞｰﾀ!$B:$I,6,0))) ->  | K40: 男 | N40: 1 | T40: 1
A41: =100000+B41*100+16 -> 100016 | B41: 0 | C41: 4 | D41: 第４区 | F41: =IF($E41="","",IF(ISERROR(VLOOKUP($E41,氏名ﾃﾞｰﾀ!$B:$I,2,0)),IF(ISERROR(VLOOKUP($E41,登録予定者!$B:$I,2,0)),"未登録",VLOOKUP($E41,登録予定者!$B:$I,2,0)),VLOOKUP($E41,氏名ﾃﾞｰﾀ!$B:$I,2,0))) ->  | G41: =IF($E41="","",IF(ISERROR(VLOOKUP($E41,氏名ﾃﾞｰﾀ!$B:$I,3,0)),IF(ISERROR(VLOOKUP($E41,登録予定者!$B:$I,3,0)),"未登録",VLOOKUP($E41,登録予定者!$B:$I,3,0)),VLOOKUP($E41,氏名ﾃﾞｰﾀ!$B:$I,3,0))) ->  | H41: =IF($E41="","",IF(ISERROR(VLOOKUP($E41,氏名ﾃﾞｰﾀ!$B:$I,4,0)),IF(ISERROR(VLOOKUP($E41,登録予定者!$B:$I,4,0)),"未登録",VLOOKUP($E41,登録予定者!$B:$I,4,0)),VLOOKUP($E41,氏名ﾃﾞｰﾀ!$B:$I,4,0))) ->  | I41: =IF($E41="","",IF(ISERROR(VLOOKUP($E41,氏名ﾃﾞｰﾀ!$B:$I,5,0)),IF(ISERROR(VLOOKUP($E41,登録予定者!$B:$I,5,0)),"未登録",VLOOKUP($E41,登録予定者!$B:$I,5,0)),VLOOKUP($E41,氏名ﾃﾞｰﾀ!$B:$I,5,0))) ->  | J41: =IF($E41="","",IF(ISERROR(VLOOKUP($E41,氏名ﾃﾞｰﾀ!$B:$I,6,0)),IF(ISERROR(VLOOKUP($E41,登録予定者!$B:$I,6,0)),"未登録",VLOOKUP($E41,登録予定者!$B:$I,6,0)),VLOOKUP($E41,氏名ﾃﾞｰﾀ!$B:$I,6,0))) ->  | K41: 男 | N41: 1 | T41: 1
A42: =100000+B42*100+16 -> 100016 | B42: 0 | C42: 5 | D42: 補欠 | F42: =IF($E42="","",IF(ISERROR(VLOOKUP($E42,氏名ﾃﾞｰﾀ!$B:$I,2,0)),IF(ISERROR(VLOOKUP($E42,登録予定者!$B:$I,2,0)),"未登録",VLOOKUP($E42,登録予定者!$B:$I,2,0)),VLOOKUP($E42,氏名ﾃﾞｰﾀ!$B:$I,2,0))) ->  | G42: =IF($E42="","",IF(ISERROR(VLOOKUP($E42,氏名ﾃﾞｰﾀ!$B:$I,3,0)),IF(ISERROR(VLOOKUP($E42,登録予定者!$B:$I,3,0)),"未登録",VLOOKUP($E42,登録予定者!$B:$I,3,0)),VLOOKUP($E42,氏名ﾃﾞｰﾀ!$B:$I,3,0))) ->  | H42: =IF($E42="","",IF(ISERROR(VLOOKUP($E42,氏名ﾃﾞｰﾀ!$B:$I,4,0)),IF(ISERROR(VLOOKUP($E42,登録予定者!$B:$I,4,0)),"未登録",VLOOKUP($E42,登録予定者!$B:$I,4,0)),VLOOKUP($E42,氏名ﾃﾞｰﾀ!$B:$I,4,0))) ->  | I42: =IF($E42="","",IF(ISERROR(VLOOKUP($E42,氏名ﾃﾞｰﾀ!$B:$I,5,0)),IF(ISERROR(VLOOKUP($E42,登録予定者!$B:$I,5,0)),"未登録",VLOOKUP($E42,登録予定者!$B:$I,5,0)),VLOOKUP($E42,氏名ﾃﾞｰﾀ!$B:$I,5,0))) ->  | J42: =IF($E42="","",IF(ISERROR(VLOOKUP($E42,氏名ﾃﾞｰﾀ!$B:$I,6,0)),IF(ISERROR(VLOOKUP($E42,登録予定者!$B:$I,6,0)),"未登録",VLOOKUP($E42,登録予定者!$B:$I,6,0)),VLOOKUP($E42,氏名ﾃﾞｰﾀ!$B:$I,6,0))) ->  | K42: 男 | N42: 1 | T42: 1
A43: =100000+B43*100+18 -> 100018 | B43: 0 | C43: 6 | D43: 補欠 | F43: =IF($E43="","",IF(ISERROR(VLOOKUP($E43,氏名ﾃﾞｰﾀ!$B:$I,2,0)),IF(ISERROR(VLOOKUP($E43,登録予定者!$B:$I,2,0)),"未登録",VLOOKUP($E43,登録予定者!$B:$I,2,0)),VLOOKUP($E43,氏名ﾃﾞｰﾀ!$B:$I,2,0))) ->  | G43: =IF($E43="","",IF(ISERROR(VLOOKUP($E43,氏名ﾃﾞｰﾀ!$B:$I,3,0)),IF(ISERROR(VLOOKUP($E43,登録予定者!$B:$I,3,0)),"未登録",VLOOKUP($E43,登録予定者!$B:$I,3,0)),VLOOKUP($E43,氏名ﾃﾞｰﾀ!$B:$I,3,0))) ->  | H43: =IF($E43="","",IF(ISERROR(VLOOKUP($E43,氏名ﾃﾞｰﾀ!$B:$I,4,0)),IF(ISERROR(VLOOKUP($E43,登録予定者!$B:$I,4,0)),"未登録",VLOOKUP($E43,登録予定者!$B:$I,4,0)),VLOOKUP($E43,氏名ﾃﾞｰﾀ!$B:$I,4,0))) ->  | I43: =IF($E43="","",IF(ISERROR(VLOOKUP($E43,氏名ﾃﾞｰﾀ!$B:$I,5,0)),IF(ISERROR(VLOOKUP($E43,登録予定者!$B:$I,5,0)),"未登録",VLOOKUP($E43,登録予定者!$B:$I,5,0)),VLOOKUP($E43,氏名ﾃﾞｰﾀ!$B:$I,5,0))) ->  | J43: =IF($E43="","",IF(ISERROR(VLOOKUP($E43,氏名ﾃﾞｰﾀ!$B:$I,6,0)),IF(ISERROR(VLOOKUP($E43,登録予定者!$B:$I,6,0)),"未登録",VLOOKUP($E43,登録予定者!$B:$I,6,0)),VLOOKUP($E43,氏名ﾃﾞｰﾀ!$B:$I,6,0))) ->  | K43: 男 | N43: 1 | T43: 1
D44: Dチーム
A45: =100000+B45*100+19 -> 100019 | B45: =$F$17*100+$F$18 -> 0 | C45: 1 | D45: 第１区 | F45: =IF($E45="","",IF(ISERROR(VLOOKUP($E45,氏名ﾃﾞｰﾀ!$B:$I,2,0)),IF(ISERROR(VLOOKUP($E45,登録予定者!$B:$I,2,0)),"未登録",VLOOKUP($E45,登録予定者!$B:$I,2,0)),VLOOKUP($E45,氏名ﾃﾞｰﾀ!$B:$I,2,0))) ->  | G45: =IF($E45="","",IF(ISERROR(VLOOKUP($E45,氏名ﾃﾞｰﾀ!$B:$I,3,0)),IF(ISERROR(VLOOKUP($E45,登録予定者!$B:$I,3,0)),"未登録",VLOOKUP($E45,登録予定者!$B:$I,3,0)),VLOOKUP($E45,氏名ﾃﾞｰﾀ!$B:$I,3,0))) ->  | H45: =IF($E45="","",IF(ISERROR(VLOOKUP($E45,氏名ﾃﾞｰﾀ!$B:$I,4,0)),IF(ISERROR(VLOOKUP($E45,登録予定者!$B:$I,4,0)),"未登録",VLOOKUP($E45,登録予定者!$B:$I,4,0)),VLOOKUP($E45,氏名ﾃﾞｰﾀ!$B:$I,4,0))) ->  | I45: =IF($E45="","",IF(ISERROR(VLOOKUP($E45,氏名ﾃﾞｰﾀ!$B:$I,5,0)),IF(ISERROR(VLOOKUP($E45,登録予定者!$B:$I,5,0)),"未登録",VLOOKUP($E45,登録予定者!$B:$I,5,0)),VLOOKUP($E45,氏名ﾃﾞｰﾀ!$B:$I,5,0))) ->  | J45: =IF($E45="","",IF(ISERROR(VLOOKUP($E45,氏名ﾃﾞｰﾀ!$B:$I,6,0)),IF(ISERROR(VLOOKUP($E45,登録予定者!$B:$I,6,0)),"未登録",VLOOKUP($E45,登録予定者!$B:$I,6,0)),VLOOKUP($E45,氏名ﾃﾞｰﾀ!$B:$I,6,0))) ->  | K45: 男 | N45: 1 | O45: =CONCATENATE($O$19,"Ｄ") ->  | P45: =IF(E45="","",CONCATENATE(F45," ",G45)) ->  | Q45: =IF(E45="","",J45) ->  | R45: =IF(E45="","",$F$17) ->  | S45: =IF(U45="","",RIGHT(B45,2)) ->  | T45: =IF(U45="",1,0) -> 1 | U45: =IF($E$31="","",B45*10+1) -> 
A46: =100000+B46*100+20 -> 100020 | B46: 0 | C46: 2 | D46: 第２区 | F46: =IF($E46="","",IF(ISERROR(VLOOKUP($E46,氏名ﾃﾞｰﾀ!$B:$I,2,0)),IF(ISERROR(VLOOKUP($E46,登録予定者!$B:$I,2,0)),"未登録",VLOOKUP($E46,登録予定者!$B:$I,2,0)),VLOOKUP($E46,氏名ﾃﾞｰﾀ!$B:$I,2,0))) ->  | G46: =IF($E46="","",IF(ISERROR(VLOOKUP($E46,氏名ﾃﾞｰﾀ!$B:$I,3,0)),IF(ISERROR(VLOOKUP($E46,登録予定者!$B:$I,3,0)),"未登録",VLOOKUP($E46,登録予定者!$B:$I,3,0)),VLOOKUP($E46,氏名ﾃﾞｰﾀ!$B:$I,3,0))) ->  | H46: =IF($E46="","",IF(ISERROR(VLOOKUP($E46,氏名ﾃﾞｰﾀ!$B:$I,4,0)),IF(ISERROR(VLOOKUP($E46,登録予定者!$B:$I,4,0)),"未登録",VLOOKUP($E46,登録予定者!$B:$I,4,0)),VLOOKUP($E46,氏名ﾃﾞｰﾀ!$B:$I,4,0))) ->  | I46: =IF($E46="","",IF(ISERROR(VLOOKUP($E46,氏名ﾃﾞｰﾀ!$B:$I,5,0)),IF(ISERROR(VLOOKUP($E46,登録予定者!$B:$I,5,0)),"未登録",VLOOKUP($E46,登録予定者!$B:$I,5,0)),VLOOKUP($E46,氏名ﾃﾞｰﾀ!$B:$I,5,0))) ->  | J46: =IF($E46="","",IF(ISERROR(VLOOKUP($E46,氏名ﾃﾞｰﾀ!$B:$I,6,0)),IF(ISERROR(VLOOKUP($E46,登録予定者!$B:$I,6,0)),"未登録",VLOOKUP($E46,登録予定者!$B:$I,6,0)),VLOOKUP($E46,氏名ﾃﾞｰﾀ!$B:$I,6,0))) ->  | K46: 男 | N46: 1 | O46: =CONCATENATE($O$19,"Ｄ") ->  | T46: 1
A47: =100000+B47*100+21 -> 100021 | B47: 0 | C47: 3 | D47: 第３区 | F47: =IF($E47="","",IF(ISERROR(VLOOKUP($E47,氏名ﾃﾞｰﾀ!$B:$I,2,0)),IF(ISERROR(VLOOKUP($E47,登録予定者!$B:$I,2,0)),"未登録",VLOOKUP($E47,登録予定者!$B:$I,2,0)),VLOOKUP($E47,氏名ﾃﾞｰﾀ!$B:$I,2,0))) ->  | G47: =IF($E47="","",IF(ISERROR(VLOOKUP($E47,氏名ﾃﾞｰﾀ!$B:$I,3,0)),IF(ISERROR(VLOOKUP($E47,登録予定者!$B:$I,3,0)),"未登録",VLOOKUP($E47,登録予定者!$B:$I,3,0)),VLOOKUP($E47,氏名ﾃﾞｰﾀ!$B:$I,3,0))) ->  | H47: =IF($E47="","",IF(ISERROR(VLOOKUP($E47,氏名ﾃﾞｰﾀ!$B:$I,4,0)),IF(ISERROR(VLOOKUP($E47,登録予定者!$B:$I,4,0)),"未登録",VLOOKUP($E47,登録予定者!$B:$I,4,0)),VLOOKUP($E47,氏名ﾃﾞｰﾀ!$B:$I,4,0))) ->  | I47: =IF($E47="","",IF(ISERROR(VLOOKUP($E47,氏名ﾃﾞｰﾀ!$B:$I,5,0)),IF(ISERROR(VLOOKUP($E47,登録予定者!$B:$I,5,0)),"未登録",VLOOKUP($E47,登録予定者!$B:$I,5,0)),VLOOKUP($E47,氏名ﾃﾞｰﾀ!$B:$I,5,0))) ->  | J47: =IF($E47="","",IF(ISERROR(VLOOKUP($E47,氏名ﾃﾞｰﾀ!$B:$I,6,0)),IF(ISERROR(VLOOKUP($E47,登録予定者!$B:$I,6,0)),"未登録",VLOOKUP($E47,登録予定者!$B:$I,6,0)),VLOOKUP($E47,氏名ﾃﾞｰﾀ!$B:$I,6,0))) ->  | K47: 男 | N47: 1 | T47: 1
A48: =100000+B48*100+22 -> 100022 | B48: 0 | C48: 4 | D48: 第４区 | F48: =IF($E48="","",IF(ISERROR(VLOOKUP($E48,氏名ﾃﾞｰﾀ!$B:$I,2,0)),IF(ISERROR(VLOOKUP($E48,登録予定者!$B:$I,2,0)),"未登録",VLOOKUP($E48,登録予定者!$B:$I,2,0)),VLOOKUP($E48,氏名ﾃﾞｰﾀ!$B:$I,2,0))) ->  | G48: =IF($E48="","",IF(ISERROR(VLOOKUP($E48,氏名ﾃﾞｰﾀ!$B:$I,3,0)),IF(ISERROR(VLOOKUP($E48,登録予定者!$B:$I,3,0)),"未登録",VLOOKUP($E48,登録予定者!$B:$I,3,0)),VLOOKUP($E48,氏名ﾃﾞｰﾀ!$B:$I,3,0))) ->  | H48: =IF($E48="","",IF(ISERROR(VLOOKUP($E48,氏名ﾃﾞｰﾀ!$B:$I,4,0)),IF(ISERROR(VLOOKUP($E48,登録予定者!$B:$I,4,0)),"未登録",VLOOKUP($E48,登録予定者!$B:$I,4,0)),VLOOKUP($E48,氏名ﾃﾞｰﾀ!$B:$I,4,0))) ->  | I48: =IF($E48="","",IF(ISERROR(VLOOKUP($E48,氏名ﾃﾞｰﾀ!$B:$I,5,0)),IF(ISERROR(VLOOKUP($E48,登録予定者!$B:$I,5,0)),"未登録",VLOOKUP($E48,登録予定者!$B:$I,5,0)),VLOOKUP($E48,氏名ﾃﾞｰﾀ!$B:$I,5,0))) ->  | J48: =IF($E48="","",IF(ISERROR(VLOOKUP($E48,氏名ﾃﾞｰﾀ!$B:$I,6,0)),IF(ISERROR(VLOOKUP($E48,登録予定者!$B:$I,6,0)),"未登録",VLOOKUP($E48,登録予定者!$B:$I,6,0)),VLOOKUP($E48,氏名ﾃﾞｰﾀ!$B:$I,6,0))) ->  | K48: 男 | N48: 1 | T48: 1
A49: =100000+B49*100+223 -> 100223 | B49: 0 | C49: 5 | D49: 補欠 | F49: =IF($E49="","",IF(ISERROR(VLOOKUP($E49,氏名ﾃﾞｰﾀ!$B:$I,2,0)),IF(ISERROR(VLOOKUP($E49,登録予定者!$B:$I,2,0)),"未登録",VLOOKUP($E49,登録予定者!$B:$I,2,0)),VLOOKUP($E49,氏名ﾃﾞｰﾀ!$B:$I,2,0))) ->  | G49: =IF($E49="","",IF(ISERROR(VLOOKUP($E49,氏名ﾃﾞｰﾀ!$B:$I,3,0)),IF(ISERROR(VLOOKUP($E49,登録予定者!$B:$I,3,0)),"未登録",VLOOKUP($E49,登録予定者!$B:$I,3,0)),VLOOKUP($E49,氏名ﾃﾞｰﾀ!$B:$I,3,0))) ->  | H49: =IF($E49="","",IF(ISERROR(VLOOKUP($E49,氏名ﾃﾞｰﾀ!$B:$I,4,0)),IF(ISERROR(VLOOKUP($E49,登録予定者!$B:$I,4,0)),"未登録",VLOOKUP($E49,登録予定者!$B:$I,4,0)),VLOOKUP($E49,氏名ﾃﾞｰﾀ!$B:$I,4,0))) ->  | I49: =IF($E49="","",IF(ISERROR(VLOOKUP($E49,氏名ﾃﾞｰﾀ!$B:$I,5,0)),IF(ISERROR(VLOOKUP($E49,登録予定者!$B:$I,5,0)),"未登録",VLOOKUP($E49,登録予定者!$B:$I,5,0)),VLOOKUP($E49,氏名ﾃﾞｰﾀ!$B:$I,5,0))) ->  | J49: =IF($E49="","",IF(ISERROR(VLOOKUP($E49,氏名ﾃﾞｰﾀ!$B:$I,6,0)),IF(ISERROR(VLOOKUP($E49,登録予定者!$B:$I,6,0)),"未登録",VLOOKUP($E49,登録予定者!$B:$I,6,0)),VLOOKUP($E49,氏名ﾃﾞｰﾀ!$B:$I,6,0))) ->  | K49: 男 | N49: 1 | T49: 1
A50: =100000+B50*100+24 -> 100024 | B50: 0 | C50: 6 | D50: 補欠 | F50: =IF($E50="","",IF(ISERROR(VLOOKUP($E50,氏名ﾃﾞｰﾀ!$B:$I,2,0)),IF(ISERROR(VLOOKUP($E50,登録予定者!$B:$I,2,0)),"未登録",VLOOKUP($E50,登録予定者!$B:$I,2,0)),VLOOKUP($E50,氏名ﾃﾞｰﾀ!$B:$I,2,0))) ->  | G50: =IF($E50="","",IF(ISERROR(VLOOKUP($E50,氏名ﾃﾞｰﾀ!$B:$I,3,0)),IF(ISERROR(VLOOKUP($E50,登録予定者!$B:$I,3,0)),"未登録",VLOOKUP($E50,登録予定者!$B:$I,3,0)),VLOOKUP($E50,氏名ﾃﾞｰﾀ!$B:$I,3,0))) ->  | H50: =IF($E50="","",IF(ISERROR(VLOOKUP($E50,氏名ﾃﾞｰﾀ!$B:$I,4,0)),IF(ISERROR(VLOOKUP($E50,登録予定者!$B:$I,4,0)),"未登録",VLOOKUP($E50,登録予定者!$B:$I,4,0)),VLOOKUP($E50,氏名ﾃﾞｰﾀ!$B:$I,4,0))) ->  | I50: =IF($E50="","",IF(ISERROR(VLOOKUP($E50,氏名ﾃﾞｰﾀ!$B:$I,5,0)),IF(ISERROR(VLOOKUP($E50,登録予定者!$B:$I,5,0)),"未登録",VLOOKUP($E50,登録予定者!$B:$I,5,0)),VLOOKUP($E50,氏名ﾃﾞｰﾀ!$B:$I,5,0))) ->  | J50: =IF($E50="","",IF(ISERROR(VLOOKUP($E50,氏名ﾃﾞｰﾀ!$B:$I,6,0)),IF(ISERROR(VLOOKUP($E50,登録予定者!$B:$I,6,0)),"未登録",VLOOKUP($E50,登録予定者!$B:$I,6,0)),VLOOKUP($E50,氏名ﾃﾞｰﾀ!$B:$I,6,0))) ->  | K50: 男 | N50: 1 | T50: 1
D51: Eチーム
A52: =100000+B52*100+25 -> 100025 | B52: =$F$17*100+$F$18 -> 0 | C52: 1 | D52: 第１区 | F52: =IF($E52="","",IF(ISERROR(VLOOKUP($E52,氏名ﾃﾞｰﾀ!$B:$I,2,0)),IF(ISERROR(VLOOKUP($E52,登録予定者!$B:$I,2,0)),"未登録",VLOOKUP($E52,登録予定者!$B:$I,2,0)),VLOOKUP($E52,氏名ﾃﾞｰﾀ!$B:$I,2,0))) ->  | G52: =IF($E52="","",IF(ISERROR(VLOOKUP($E52,氏名ﾃﾞｰﾀ!$B:$I,3,0)),IF(ISERROR(VLOOKUP($E52,登録予定者!$B:$I,3,0)),"未登録",VLOOKUP($E52,登録予定者!$B:$I,3,0)),VLOOKUP($E52,氏名ﾃﾞｰﾀ!$B:$I,3,0))) ->  | H52: =IF($E52="","",IF(ISERROR(VLOOKUP($E52,氏名ﾃﾞｰﾀ!$B:$I,4,0)),IF(ISERROR(VLOOKUP($E52,登録予定者!$B:$I,4,0)),"未登録",VLOOKUP($E52,登録予定者!$B:$I,4,0)),VLOOKUP($E52,氏名ﾃﾞｰﾀ!$B:$I,4,0))) ->  | I52: =IF($E52="","",IF(ISERROR(VLOOKUP($E52,氏名ﾃﾞｰﾀ!$B:$I,5,0)),IF(ISERROR(VLOOKUP($E52,登録予定者!$B:$I,5,0)),"未登録",VLOOKUP($E52,登録予定者!$B:$I,5,0)),VLOOKUP($E52,氏名ﾃﾞｰﾀ!$B:$I,5,0))) ->  | J52: =IF($E52="","",IF(ISERROR(VLOOKUP($E52,氏名ﾃﾞｰﾀ!$B:$I,6,0)),IF(ISERROR(VLOOKUP($E52,登録予定者!$B:$I,6,0)),"未登録",VLOOKUP($E52,登録予定者!$B:$I,6,0)),VLOOKUP($E52,氏名ﾃﾞｰﾀ!$B:$I,6,0))) ->  | K52: 男 | N52: 1 | O52: =CONCATENATE($O$19,"Ｅ") ->  | P52: =IF(E52="","",CONCATENATE(F52," ",G52)) ->  | Q52: =IF(E52="","",J52) ->  | R52: =IF(E52="","",$F$17) ->  | S52: =IF(U52="","",RIGHT(B52,2)) ->  | T52: =IF(U52="",1,0) -> 1 | U52: =IF($E$38="","",B52*10+1) -> 
A53: =100000+B53*100+26 -> 100026 | B53: 0 | C53: 2 | D53: 第２区 | F53: =IF($E53="","",IF(ISERROR(VLOOKUP($E53,氏名ﾃﾞｰﾀ!$B:$I,2,0)),IF(ISERROR(VLOOKUP($E53,登録予定者!$B:$I,2,0)),"未登録",VLOOKUP($E53,登録予定者!$B:$I,2,0)),VLOOKUP($E53,氏名ﾃﾞｰﾀ!$B:$I,2,0))) ->  | G53: =IF($E53="","",IF(ISERROR(VLOOKUP($E53,氏名ﾃﾞｰﾀ!$B:$I,3,0)),IF(ISERROR(VLOOKUP($E53,登録予定者!$B:$I,3,0)),"未登録",VLOOKUP($E53,登録予定者!$B:$I,3,0)),VLOOKUP($E53,氏名ﾃﾞｰﾀ!$B:$I,3,0))) ->  | H53: =IF($E53="","",IF(ISERROR(VLOOKUP($E53,氏名ﾃﾞｰﾀ!$B:$I,4,0)),IF(ISERROR(VLOOKUP($E53,登録予定者!$B:$I,4,0)),"未登録",VLOOKUP($E53,登録予定者!$B:$I,4,0)),VLOOKUP($E53,氏名ﾃﾞｰﾀ!$B:$I,4,0))) ->  | I53: =IF($E53="","",IF(ISERROR(VLOOKUP($E53,氏名ﾃﾞｰﾀ!$B:$I,5,0)),IF(ISERROR(VLOOKUP($E53,登録予定者!$B:$I,5,0)),"未登録",VLOOKUP($E53,登録予定者!$B:$I,5,0)),VLOOKUP($E53,氏名ﾃﾞｰﾀ!$B:$I,5,0))) ->  | J53: =IF($E53="","",IF(ISERROR(VLOOKUP($E53,氏名ﾃﾞｰﾀ!$B:$I,6,0)),IF(ISERROR(VLOOKUP($E53,登録予定者!$B:$I,6,0)),"未登録",VLOOKUP($E53,登録予定者!$B:$I,6,0)),VLOOKUP($E53,氏名ﾃﾞｰﾀ!$B:$I,6,0))) ->  | K53: 男 | N53: 1 | O53: =CONCATENATE($O$19,"Ｅ") ->  | T53: =IF(U53="",1,0) -> 1 | U53: =IF($E$38="","",B53*10+1) -> 
A54: =100000+B54*100+27 -> 100027 | B54: 0 | C54: 3 | D54: 第３区 | F54: =IF($E54="","",IF(ISERROR(VLOOKUP($E54,氏名ﾃﾞｰﾀ!$B:$I,2,0)),IF(ISERROR(VLOOKUP($E54,登録予定者!$B:$I,2,0)),"未登録",VLOOKUP($E54,登録予定者!$B:$I,2,0)),VLOOKUP($E54,氏名ﾃﾞｰﾀ!$B:$I,2,0))) ->  | G54: =IF($E54="","",IF(ISERROR(VLOOKUP($E54,氏名ﾃﾞｰﾀ!$B:$I,3,0)),IF(ISERROR(VLOOKUP($E54,登録予定者!$B:$I,3,0)),"未登録",VLOOKUP($E54,登録予定者!$B:$I,3,0)),VLOOKUP($E54,氏名ﾃﾞｰﾀ!$B:$I,3,0))) ->  | H54: =IF($E54="","",IF(ISERROR(VLOOKUP($E54,氏名ﾃﾞｰﾀ!$B:$I,4,0)),IF(ISERROR(VLOOKUP($E54,登録予定者!$B:$I,4,0)),"未登録",VLOOKUP($E54,登録予定者!$B:$I,4,0)),VLOOKUP($E54,氏名ﾃﾞｰﾀ!$B:$I,4,0))) ->  | I54: =IF($E54="","",IF(ISERROR(VLOOKUP($E54,氏名ﾃﾞｰﾀ!$B:$I,5,0)),IF(ISERROR(VLOOKUP($E54,登録予定者!$B:$I,5,0)),"未登録",VLOOKUP($E54,登録予定者!$B:$I,5,0)),VLOOKUP($E54,氏名ﾃﾞｰﾀ!$B:$I,5,0))) ->  | J54: =IF($E54="","",IF(ISERROR(VLOOKUP($E54,氏名ﾃﾞｰﾀ!$B:$I,6,0)),IF(ISERROR(VLOOKUP($E54,登録予定者!$B:$I,6,0)),"未登録",VLOOKUP($E54,登録予定者!$B:$I,6,0)),VLOOKUP($E54,氏名ﾃﾞｰﾀ!$B:$I,6,0))) ->  | K54: 男 | N54: 1 | T54: 1
A55: =100000+B55*100+28 -> 100028 | B55: 0 | C55: 4 | D55: 第４区 | F55: =IF($E55="","",IF(ISERROR(VLOOKUP($E55,氏名ﾃﾞｰﾀ!$B:$I,2,0)),IF(ISERROR(VLOOKUP($E55,登録予定者!$B:$I,2,0)),"未登録",VLOOKUP($E55,登録予定者!$B:$I,2,0)),VLOOKUP($E55,氏名ﾃﾞｰﾀ!$B:$I,2,0))) ->  | G55: =IF($E55="","",IF(ISERROR(VLOOKUP($E55,氏名ﾃﾞｰﾀ!$B:$I,3,0)),IF(ISERROR(VLOOKUP($E55,登録予定者!$B:$I,3,0)),"未登録",VLOOKUP($E55,登録予定者!$B:$I,3,0)),VLOOKUP($E55,氏名ﾃﾞｰﾀ!$B:$I,3,0))) ->  | H55: =IF($E55="","",IF(ISERROR(VLOOKUP($E55,氏名ﾃﾞｰﾀ!$B:$I,4,0)),IF(ISERROR(VLOOKUP($E55,登録予定者!$B:$I,4,0)),"未登録",VLOOKUP($E55,登録予定者!$B:$I,4,0)),VLOOKUP($E55,氏名ﾃﾞｰﾀ!$B:$I,4,0))) ->  | I55: =IF($E55="","",IF(ISERROR(VLOOKUP($E55,氏名ﾃﾞｰﾀ!$B:$I,5,0)),IF(ISERROR(VLOOKUP($E55,登録予定者!$B:$I,5,0)),"未登録",VLOOKUP($E55,登録予定者!$B:$I,5,0)),VLOOKUP($E55,氏名ﾃﾞｰﾀ!$B:$I,5,0))) ->  | J55: =IF($E55="","",IF(ISERROR(VLOOKUP($E55,氏名ﾃﾞｰﾀ!$B:$I,6,0)),IF(ISERROR(VLOOKUP($E55,登録予定者!$B:$I,6,0)),"未登録",VLOOKUP($E55,登録予定者!$B:$I,6,0)),VLOOKUP($E55,氏名ﾃﾞｰﾀ!$B:$I,6,0))) ->  | K55: 男 | N55: 1 | T55: 1
A56: =100000+B56*100+29 -> 100029 | B56: 0 | C56: 5 | D56: 補欠 | F56: =IF($E56="","",IF(ISERROR(VLOOKUP($E56,氏名ﾃﾞｰﾀ!$B:$I,2,0)),IF(ISERROR(VLOOKUP($E56,登録予定者!$B:$I,2,0)),"未登録",VLOOKUP($E56,登録予定者!$B:$I,2,0)),VLOOKUP($E56,氏名ﾃﾞｰﾀ!$B:$I,2,0))) ->  | G56: =IF($E56="","",IF(ISERROR(VLOOKUP($E56,氏名ﾃﾞｰﾀ!$B:$I,3,0)),IF(ISERROR(VLOOKUP($E56,登録予定者!$B:$I,3,0)),"未登録",VLOOKUP($E56,登録予定者!$B:$I,3,0)),VLOOKUP($E56,氏名ﾃﾞｰﾀ!$B:$I,3,0))) ->  | H56: =IF($E56="","",IF(ISERROR(VLOOKUP($E56,氏名ﾃﾞｰﾀ!$B:$I,4,0)),IF(ISERROR(VLOOKUP($E56,登録予定者!$B:$I,4,0)),"未登録",VLOOKUP($E56,登録予定者!$B:$I,4,0)),VLOOKUP($E56,氏名ﾃﾞｰﾀ!$B:$I,4,0))) ->  | I56: =IF($E56="","",IF(ISERROR(VLOOKUP($E56,氏名ﾃﾞｰﾀ!$B:$I,5,0)),IF(ISERROR(VLOOKUP($E56,登録予定者!$B:$I,5,0)),"未登録",VLOOKUP($E56,登録予定者!$B:$I,5,0)),VLOOKUP($E56,氏名ﾃﾞｰﾀ!$B:$I,5,0))) ->  | J56: =IF($E56="","",IF(ISERROR(VLOOKUP($E56,氏名ﾃﾞｰﾀ!$B:$I,6,0)),IF(ISERROR(VLOOKUP($E56,登録予定者!$B:$I,6,0)),"未登録",VLOOKUP($E56,登録予定者!$B:$I,6,0)),VLOOKUP($E56,氏名ﾃﾞｰﾀ!$B:$I,6,0))) ->  | K56: 男 | N56: 1 | T56: 1
A57: =100000+B57*100+30 -> 100030 | B57: 0 | C57: 6 | D57: 補欠 | F57: =IF($E57="","",IF(ISERROR(VLOOKUP($E57,氏名ﾃﾞｰﾀ!$B:$I,2,0)),IF(ISERROR(VLOOKUP($E57,登録予定者!$B:$I,2,0)),"未登録",VLOOKUP($E57,登録予定者!$B:$I,2,0)),VLOOKUP($E57,氏名ﾃﾞｰﾀ!$B:$I,2,0))) ->  | G57: =IF($E57="","",IF(ISERROR(VLOOKUP($E57,氏名ﾃﾞｰﾀ!$B:$I,3,0)),IF(ISERROR(VLOOKUP($E57,登録予定者!$B:$I,3,0)),"未登録",VLOOKUP($E57,登録予定者!$B:$I,3,0)),VLOOKUP($E57,氏名ﾃﾞｰﾀ!$B:$I,3,0))) ->  | H57: =IF($E57="","",IF(ISERROR(VLOOKUP($E57,氏名ﾃﾞｰﾀ!$B:$I,4,0)),IF(ISERROR(VLOOKUP($E57,登録予定者!$B:$I,4,0)),"未登録",VLOOKUP($E57,登録予定者!$B:$I,4,0)),VLOOKUP($E57,氏名ﾃﾞｰﾀ!$B:$I,4,0))) ->  | I57: =IF($E57="","",IF(ISERROR(VLOOKUP($E57,氏名ﾃﾞｰﾀ!$B:$I,5,0)),IF(ISERROR(VLOOKUP($E57,登録予定者!$B:$I,5,0)),"未登録",VLOOKUP($E57,登録予定者!$B:$I,5,0)),VLOOKUP($E57,氏名ﾃﾞｰﾀ!$B:$I,5,0))) ->  | J57: =IF($E57="","",IF(ISERROR(VLOOKUP($E57,氏名ﾃﾞｰﾀ!$B:$I,6,0)),IF(ISERROR(VLOOKUP($E57,登録予定者!$B:$I,6,0)),"未登録",VLOOKUP($E57,登録予定者!$B:$I,6,0)),VLOOKUP($E57,氏名ﾃﾞｰﾀ!$B:$I,6,0))) ->  | K57: 男 | N57: 1 | T57: 1
D58: 男子ロードレース
A59: =200000+B59*100+C59 -> 200001 | B59: =$F$17*100+$F$18 -> 0 | C59: 1 | D59: 1 | F59: =IF($E59="","",IF(ISERROR(VLOOKUP($E59,氏名ﾃﾞｰﾀ!$B:$I,2,0)),IF(ISERROR(VLOOKUP($E59,登録予定者!$B:$I,2,0)),"未登録",VLOOKUP($E59,登録予定者!$B:$I,2,0)),VLOOKUP($E59,氏名ﾃﾞｰﾀ!$B:$I,2,0))) ->  | G59: =IF($E59="","",IF(ISERROR(VLOOKUP($E59,氏名ﾃﾞｰﾀ!$B:$I,3,0)),IF(ISERROR(VLOOKUP($E59,登録予定者!$B:$I,3,0)),"未登録",VLOOKUP($E59,登録予定者!$B:$I,3,0)),VLOOKUP($E59,氏名ﾃﾞｰﾀ!$B:$I,3,0))) ->  | H59: =IF($E59="","",IF(ISERROR(VLOOKUP($E59,氏名ﾃﾞｰﾀ!$B:$I,4,0)),IF(ISERROR(VLOOKUP($E59,登録予定者!$B:$I,4,0)),"未登録",VLOOKUP($E59,登録予定者!$B:$I,4,0)),VLOOKUP($E59,氏名ﾃﾞｰﾀ!$B:$I,4,0))) ->  | I59: =IF($E59="","",IF(ISERROR(VLOOKUP($E59,氏名ﾃﾞｰﾀ!$B:$I,5,0)),IF(ISERROR(VLOOKUP($E59,登録予定者!$B:$I,5,0)),"未登録",VLOOKUP($E59,登録予定者!$B:$I,5,0)),VLOOKUP($E59,氏名ﾃﾞｰﾀ!$B:$I,5,0))) ->  | J59: =IF($E59="","",IF(ISERROR(VLOOKUP($E59,氏名ﾃﾞｰﾀ!$B:$I,6,0)),IF(ISERROR(VLOOKUP($E59,登録予定者!$B:$I,6,0)),"未登録",VLOOKUP($E59,登録予定者!$B:$I,6,0)),VLOOKUP($E59,氏名ﾃﾞｰﾀ!$B:$I,6,0))) ->  | K59: 男 | N59: 1 | O59: =$O$19 ->  | P59: =IF(E59="","",CONCATENATE(F59," ",G59)) ->  | Q59: =IF(E59="","",J59) ->  | R59: =IF(E59="","",$F$17) ->  | T59: 1 | U59: =IF(E59="","",B59*10+2) ->  | V59: =IF(E59="","",F16) -> 
A60: =200000+B60*100+C60 -> 200002 | B60: 0 | C60: 2 | D60: 2 | F60: =IF($E60="","",IF(ISERROR(VLOOKUP($E60,氏名ﾃﾞｰﾀ!$B:$I,2,0)),IF(ISERROR(VLOOKUP($E60,登録予定者!$B:$I,2,0)),"未登録",VLOOKUP($E60,登録予定者!$B:$I,2,0)),VLOOKUP($E60,氏名ﾃﾞｰﾀ!$B:$I,2,0))) ->  | G60: =IF($E60="","",IF(ISERROR(VLOOKUP($E60,氏名ﾃﾞｰﾀ!$B:$I,3,0)),IF(ISERROR(VLOOKUP($E60,登録予定者!$B:$I,3,0)),"未登録",VLOOKUP($E60,登録予定者!$B:$I,3,0)),VLOOKUP($E60,氏名ﾃﾞｰﾀ!$B:$I,3,0))) ->  | H60: =IF($E60="","",IF(ISERROR(VLOOKUP($E60,氏名ﾃﾞｰﾀ!$B:$I,4,0)),IF(ISERROR(VLOOKUP($E60,登録予定者!$B:$I,4,0)),"未登録",VLOOKUP($E60,登録予定者!$B:$I,4,0)),VLOOKUP($E60,氏名ﾃﾞｰﾀ!$B:$I,4,0))) ->  | I60: =IF($E60="","",IF(ISERROR(VLOOKUP($E60,氏名ﾃﾞｰﾀ!$B:$I,5,0)),IF(ISERROR(VLOOKUP($E60,登録予定者!$B:$I,5,0)),"未登録",VLOOKUP($E60,登録予定者!$B:$I,5,0)),VLOOKUP($E60,氏名ﾃﾞｰﾀ!$B:$I,5,0))) ->  | J60: =IF($E60="","",IF(ISERROR(VLOOKUP($E60,氏名ﾃﾞｰﾀ!$B:$I,6,0)),IF(ISERROR(VLOOKUP($E60,登録予定者!$B:$I,6,0)),"未登録",VLOOKUP($E60,登録予定者!$B:$I,6,0)),VLOOKUP($E60,氏名ﾃﾞｰﾀ!$B:$I,6,0))) ->  | K60: 男 | N60: 1 | O60: =$O$19 ->  | P60: =IF(E60="","",CONCATENATE(F60," ",G60)) ->  | Q60: =IF(E60="","",J60) ->  | R60: =IF(E60="","",$F$17) ->  | T60: 1 | U60: =IF(E60="","",B60*10+2) -> 
A61: =200000+B61*100+C61 -> 200003 | B61: 0 | C61: 3 | D61: 3 | F61: =IF($E61="","",IF(ISERROR(VLOOKUP($E61,氏名ﾃﾞｰﾀ!$B:$I,2,0)),IF(ISERROR(VLOOKUP($E61,登録予定者!$B:$I,2,0)),"未登録",VLOOKUP($E61,登録予定者!$B:$I,2,0)),VLOOKUP($E61,氏名ﾃﾞｰﾀ!$B:$I,2,0))) ->  | G61: =IF($E61="","",IF(ISERROR(VLOOKUP($E61,氏名ﾃﾞｰﾀ!$B:$I,3,0)),IF(ISERROR(VLOOKUP($E61,登録予定者!$B:$I,3,0)),"未登録",VLOOKUP($E61,登録予定者!$B:$I,3,0)),VLOOKUP($E61,氏名ﾃﾞｰﾀ!$B:$I,3,0))) ->  | H61: =IF($E61="","",IF(ISERROR(VLOOKUP($E61,氏名ﾃﾞｰﾀ!$B:$I,4,0)),IF(ISERROR(VLOOKUP($E61,登録予定者!$B:$I,4,0)),"未登録",VLOOKUP($E61,登録予定者!$B:$I,4,0)),VLOOKUP($E61,氏名ﾃﾞｰﾀ!$B:$I,4,0))) ->  | I61: =IF($E61="","",IF(ISERROR(VLOOKUP($E61,氏名ﾃﾞｰﾀ!$B:$I,5,0)),IF(ISERROR(VLOOKUP($E61,登録予定者!$B:$I,5,0)),"未登録",VLOOKUP($E61,登録予定者!$B:$I,5,0)),VLOOKUP($E61,氏名ﾃﾞｰﾀ!$B:$I,5,0))) ->  | J61: =IF($E61="","",IF(ISERROR(VLOOKUP($E61,氏名ﾃﾞｰﾀ!$B:$I,6,0)),IF(ISERROR(VLOOKUP($E61,登録予定者!$B:$I,6,0)),"未登録",VLOOKUP($E61,登録予定者!$B:$I,6,0)),VLOOKUP($E61,氏名ﾃﾞｰﾀ!$B:$I,6,0))) ->  | K61: 男 | N61: 1 | O61: =$O$19 ->  | P61: =IF(E61="","",CONCATENATE(F61," ",G61)) ->  | Q61: =IF(E61="","",J61) ->  | R61: =IF(E61="","",$F$17) ->  | T61: 1 | U61: =IF(E61="","",B61*10+2) -> 
D63: 女子出場選手情報
E64: 登録ﾅﾝﾊﾞｰ | F64: 氏名 | H64: ﾌﾘｶﾞﾅ
A65: ﾅﾝﾊﾞｰ | B65: 支部 | D65: Ａチーム | E65: ５桁(半角) | F65: 姓 | G65: 名 | H65: 姓 | I65: 名 | J65: 学年 | K65: 性別 | N65: 性別
A66: =300000+B66*100+1 -> 300001 | B66: =$F$17*100+$F$18 -> 0 | C66: 1 | D66: 第１区 | F66: =IF($E66="","",IF(ISERROR(VLOOKUP($E66,氏名ﾃﾞｰﾀ!$B:$I,2,0)),IF(ISERROR(VLOOKUP($E66,登録予定者!$B:$I,2,0)),"未登録",VLOOKUP($E66,登録予定者!$B:$I,2,0)),VLOOKUP($E66,氏名ﾃﾞｰﾀ!$B:$I,2,0))) ->  | G66: =IF($E66="","",IF(ISERROR(VLOOKUP($E66,氏名ﾃﾞｰﾀ!$B:$I,3,0)),IF(ISERROR(VLOOKUP($E66,登録予定者!$B:$I,3,0)),"未登録",VLOOKUP($E66,登録予定者!$B:$I,3,0)),VLOOKUP($E66,氏名ﾃﾞｰﾀ!$B:$I,3,0))) ->  | H66: =IF($E66="","",IF(ISERROR(VLOOKUP($E66,氏名ﾃﾞｰﾀ!$B:$I,4,0)),IF(ISERROR(VLOOKUP($E66,登録予定者!$B:$I,4,0)),"未登録",VLOOKUP($E66,登録予定者!$B:$I,4,0)),VLOOKUP($E66,氏名ﾃﾞｰﾀ!$B:$I,4,0))) ->  | I66: =IF($E66="","",IF(ISERROR(VLOOKUP($E66,氏名ﾃﾞｰﾀ!$B:$I,5,0)),IF(ISERROR(VLOOKUP($E66,登録予定者!$B:$I,5,0)),"未登録",VLOOKUP($E66,登録予定者!$B:$I,5,0)),VLOOKUP($E66,氏名ﾃﾞｰﾀ!$B:$I,5,0))) ->  | J66: =IF($E66="","",IF(ISERROR(VLOOKUP($E66,氏名ﾃﾞｰﾀ!$B:$I,6,0)),IF(ISERROR(VLOOKUP($E66,登録予定者!$B:$I,6,0)),"未登録",VLOOKUP($E66,登録予定者!$B:$I,6,0)),VLOOKUP($E66,氏名ﾃﾞｰﾀ!$B:$I,6,0))) ->  | K66: 女 | N66: 2 | O66: =CONCATENATE($O$19,IF($E$73="","","Ａ")) ->  | P66: =IF(E66="","",CONCATENATE(F66," ",G66)) ->  | Q66: =IF(E66="","",J66) ->  | R66: =IF(E66="","",$F$17) ->  | T66: 1 | U66: =IF($E$66="","",B66*10+3) ->  | V66: =IF(E66="","",G16) -> 
A67: =300000+B67*100+2 -> 300002 | B67: 0 | C67: 2 | D67: 第２区 | F67: =IF($E67="","",IF(ISERROR(VLOOKUP($E67,氏名ﾃﾞｰﾀ!$B:$I,2,0)),IF(ISERROR(VLOOKUP($E67,登録予定者!$B:$I,2,0)),"未登録",VLOOKUP($E67,登録予定者!$B:$I,2,0)),VLOOKUP($E67,氏名ﾃﾞｰﾀ!$B:$I,2,0))) ->  | G67: =IF($E67="","",IF(ISERROR(VLOOKUP($E67,氏名ﾃﾞｰﾀ!$B:$I,3,0)),IF(ISERROR(VLOOKUP($E67,登録予定者!$B:$I,3,0)),"未登録",VLOOKUP($E67,登録予定者!$B:$I,3,0)),VLOOKUP($E67,氏名ﾃﾞｰﾀ!$B:$I,3,0))) ->  | H67: =IF($E67="","",IF(ISERROR(VLOOKUP($E67,氏名ﾃﾞｰﾀ!$B:$I,4,0)),IF(ISERROR(VLOOKUP($E67,登録予定者!$B:$I,4,0)),"未登録",VLOOKUP($E67,登録予定者!$B:$I,4,0)),VLOOKUP($E67,氏名ﾃﾞｰﾀ!$B:$I,4,0))) ->  | I67: =IF($E67="","",IF(ISERROR(VLOOKUP($E67,氏名ﾃﾞｰﾀ!$B:$I,5,0)),IF(ISERROR(VLOOKUP($E67,登録予定者!$B:$I,5,0)),"未登録",VLOOKUP($E67,登録予定者!$B:$I,5,0)),VLOOKUP($E67,氏名ﾃﾞｰﾀ!$B:$I,5,0))) ->  | J67: =IF($E67="","",IF(ISERROR(VLOOKUP($E67,氏名ﾃﾞｰﾀ!$B:$I,6,0)),IF(ISERROR(VLOOKUP($E67,登録予定者!$B:$I,6,0)),"未登録",VLOOKUP($E67,登録予定者!$B:$I,6,0)),VLOOKUP($E67,氏名ﾃﾞｰﾀ!$B:$I,6,0))) ->  | K67: 女 | N67: 2 | T67: 1
A68: =300000+B68*100+3 -> 300003 | B68: 0 | C68: 3 | D68: 第３区 | F68: =IF($E68="","",IF(ISERROR(VLOOKUP($E68,氏名ﾃﾞｰﾀ!$B:$I,2,0)),IF(ISERROR(VLOOKUP($E68,登録予定者!$B:$I,2,0)),"未登録",VLOOKUP($E68,登録予定者!$B:$I,2,0)),VLOOKUP($E68,氏名ﾃﾞｰﾀ!$B:$I,2,0))) ->  | G68: =IF($E68="","",IF(ISERROR(VLOOKUP($E68,氏名ﾃﾞｰﾀ!$B:$I,3,0)),IF(ISERROR(VLOOKUP($E68,登録予定者!$B:$I,3,0)),"未登録",VLOOKUP($E68,登録予定者!$B:$I,3,0)),VLOOKUP($E68,氏名ﾃﾞｰﾀ!$B:$I,3,0))) ->  | H68: =IF($E68="","",IF(ISERROR(VLOOKUP($E68,氏名ﾃﾞｰﾀ!$B:$I,4,0)),IF(ISERROR(VLOOKUP($E68,登録予定者!$B:$I,4,0)),"未登録",VLOOKUP($E68,登録予定者!$B:$I,4,0)),VLOOKUP($E68,氏名ﾃﾞｰﾀ!$B:$I,4,0))) ->  | I68: =IF($E68="","",IF(ISERROR(VLOOKUP($E68,氏名ﾃﾞｰﾀ!$B:$I,5,0)),IF(ISERROR(VLOOKUP($E68,登録予定者!$B:$I,5,0)),"未登録",VLOOKUP($E68,登録予定者!$B:$I,5,0)),VLOOKUP($E68,氏名ﾃﾞｰﾀ!$B:$I,5,0))) ->  | J68: =IF($E68="","",IF(ISERROR(VLOOKUP($E68,氏名ﾃﾞｰﾀ!$B:$I,6,0)),IF(ISERROR(VLOOKUP($E68,登録予定者!$B:$I,6,0)),"未登録",VLOOKUP($E68,登録予定者!$B:$I,6,0)),VLOOKUP($E68,氏名ﾃﾞｰﾀ!$B:$I,6,0))) ->  | K68: 女 | N68: 2 | T68: 1
A69: =300000+B69*100+4 -> 300004 | B69: 0 | C69: 4 | D69: 第４区 | F69: =IF($E69="","",IF(ISERROR(VLOOKUP($E69,氏名ﾃﾞｰﾀ!$B:$I,2,0)),IF(ISERROR(VLOOKUP($E69,登録予定者!$B:$I,2,0)),"未登録",VLOOKUP($E69,登録予定者!$B:$I,2,0)),VLOOKUP($E69,氏名ﾃﾞｰﾀ!$B:$I,2,0))) ->  | G69: =IF($E69="","",IF(ISERROR(VLOOKUP($E69,氏名ﾃﾞｰﾀ!$B:$I,3,0)),IF(ISERROR(VLOOKUP($E69,登録予定者!$B:$I,3,0)),"未登録",VLOOKUP($E69,登録予定者!$B:$I,3,0)),VLOOKUP($E69,氏名ﾃﾞｰﾀ!$B:$I,3,0))) ->  | H69: =IF($E69="","",IF(ISERROR(VLOOKUP($E69,氏名ﾃﾞｰﾀ!$B:$I,4,0)),IF(ISERROR(VLOOKUP($E69,登録予定者!$B:$I,4,0)),"未登録",VLOOKUP($E69,登録予定者!$B:$I,4,0)),VLOOKUP($E69,氏名ﾃﾞｰﾀ!$B:$I,4,0))) ->  | I69: =IF($E69="","",IF(ISERROR(VLOOKUP($E69,氏名ﾃﾞｰﾀ!$B:$I,5,0)),IF(ISERROR(VLOOKUP($E69,登録予定者!$B:$I,5,0)),"未登録",VLOOKUP($E69,登録予定者!$B:$I,5,0)),VLOOKUP($E69,氏名ﾃﾞｰﾀ!$B:$I,5,0))) ->  | J69: =IF($E69="","",IF(ISERROR(VLOOKUP($E69,氏名ﾃﾞｰﾀ!$B:$I,6,0)),IF(ISERROR(VLOOKUP($E69,登録予定者!$B:$I,6,0)),"未登録",VLOOKUP($E69,登録予定者!$B:$I,6,0)),VLOOKUP($E69,氏名ﾃﾞｰﾀ!$B:$I,6,0))) ->  | K69: 女 | N69: 2 | T69: 1
A70: =300000+B70*100+5 -> 300005 | B70: 0 | C70: 5 | D70: 補欠 | F70: =IF($E70="","",IF(ISERROR(VLOOKUP($E70,氏名ﾃﾞｰﾀ!$B:$I,2,0)),IF(ISERROR(VLOOKUP($E70,登録予定者!$B:$I,2,0)),"未登録",VLOOKUP($E70,登録予定者!$B:$I,2,0)),VLOOKUP($E70,氏名ﾃﾞｰﾀ!$B:$I,2,0))) ->  | G70: =IF($E70="","",IF(ISERROR(VLOOKUP($E70,氏名ﾃﾞｰﾀ!$B:$I,3,0)),IF(ISERROR(VLOOKUP($E70,登録予定者!$B:$I,3,0)),"未登録",VLOOKUP($E70,登録予定者!$B:$I,3,0)),VLOOKUP($E70,氏名ﾃﾞｰﾀ!$B:$I,3,0))) ->  | H70: =IF($E70="","",IF(ISERROR(VLOOKUP($E70,氏名ﾃﾞｰﾀ!$B:$I,4,0)),IF(ISERROR(VLOOKUP($E70,登録予定者!$B:$I,4,0)),"未登録",VLOOKUP($E70,登録予定者!$B:$I,4,0)),VLOOKUP($E70,氏名ﾃﾞｰﾀ!$B:$I,4,0))) ->  | I70: =IF($E70="","",IF(ISERROR(VLOOKUP($E70,氏名ﾃﾞｰﾀ!$B:$I,5,0)),IF(ISERROR(VLOOKUP($E70,登録予定者!$B:$I,5,0)),"未登録",VLOOKUP($E70,登録予定者!$B:$I,5,0)),VLOOKUP($E70,氏名ﾃﾞｰﾀ!$B:$I,5,0))) ->  | J70: =IF($E70="","",IF(ISERROR(VLOOKUP($E70,氏名ﾃﾞｰﾀ!$B:$I,6,0)),IF(ISERROR(VLOOKUP($E70,登録予定者!$B:$I,6,0)),"未登録",VLOOKUP($E70,登録予定者!$B:$I,6,0)),VLOOKUP($E70,氏名ﾃﾞｰﾀ!$B:$I,6,0))) ->  | K70: 女 | N70: 2 | T70: 1
A71: =300000+B71*100+6 -> 300006 | B71: 0 | C71: 6 | D71: 補欠 | F71: =IF($E71="","",IF(ISERROR(VLOOKUP($E71,氏名ﾃﾞｰﾀ!$B:$I,2,0)),IF(ISERROR(VLOOKUP($E71,登録予定者!$B:$I,2,0)),"未登録",VLOOKUP($E71,登録予定者!$B:$I,2,0)),VLOOKUP($E71,氏名ﾃﾞｰﾀ!$B:$I,2,0))) ->  | G71: =IF($E71="","",IF(ISERROR(VLOOKUP($E71,氏名ﾃﾞｰﾀ!$B:$I,3,0)),IF(ISERROR(VLOOKUP($E71,登録予定者!$B:$I,3,0)),"未登録",VLOOKUP($E71,登録予定者!$B:$I,3,0)),VLOOKUP($E71,氏名ﾃﾞｰﾀ!$B:$I,3,0))) ->  | H71: =IF($E71="","",IF(ISERROR(VLOOKUP($E71,氏名ﾃﾞｰﾀ!$B:$I,4,0)),IF(ISERROR(VLOOKUP($E71,登録予定者!$B:$I,4,0)),"未登録",VLOOKUP($E71,登録予定者!$B:$I,4,0)),VLOOKUP($E71,氏名ﾃﾞｰﾀ!$B:$I,4,0))) ->  | I71: =IF($E71="","",IF(ISERROR(VLOOKUP($E71,氏名ﾃﾞｰﾀ!$B:$I,5,0)),IF(ISERROR(VLOOKUP($E71,登録予定者!$B:$I,5,0)),"未登録",VLOOKUP($E71,登録予定者!$B:$I,5,0)),VLOOKUP($E71,氏名ﾃﾞｰﾀ!$B:$I,5,0))) ->  | J71: =IF($E71="","",IF(ISERROR(VLOOKUP($E71,氏名ﾃﾞｰﾀ!$B:$I,6,0)),IF(ISERROR(VLOOKUP($E71,登録予定者!$B:$I,6,0)),"未登録",VLOOKUP($E71,登録予定者!$B:$I,6,0)),VLOOKUP($E71,氏名ﾃﾞｰﾀ!$B:$I,6,0))) ->  | K71: 女 | N71: 2 | T71: 1
D72: Ｂチーム
A73: =300000+B73*100+7 -> 300007 | B73: =$F$17*100+$F$18 -> 0 | C73: 1 | D73: 第１区 | F73: =IF($E73="","",IF(ISERROR(VLOOKUP($E73,氏名ﾃﾞｰﾀ!$B:$I,2,0)),IF(ISERROR(VLOOKUP($E73,登録予定者!$B:$I,2,0)),"未登録",VLOOKUP($E73,登録予定者!$B:$I,2,0)),VLOOKUP($E73,氏名ﾃﾞｰﾀ!$B:$I,2,0))) ->  | G73: =IF($E73="","",IF(ISERROR(VLOOKUP($E73,氏名ﾃﾞｰﾀ!$B:$I,3,0)),IF(ISERROR(VLOOKUP($E73,登録予定者!$B:$I,3,0)),"未登録",VLOOKUP($E73,登録予定者!$B:$I,3,0)),VLOOKUP($E73,氏名ﾃﾞｰﾀ!$B:$I,3,0))) ->  | H73: =IF($E73="","",IF(ISERROR(VLOOKUP($E73,氏名ﾃﾞｰﾀ!$B:$I,4,0)),IF(ISERROR(VLOOKUP($E73,登録予定者!$B:$I,4,0)),"未登録",VLOOKUP($E73,登録予定者!$B:$I,4,0)),VLOOKUP($E73,氏名ﾃﾞｰﾀ!$B:$I,4,0))) ->  | I73: =IF($E73="","",IF(ISERROR(VLOOKUP($E73,氏名ﾃﾞｰﾀ!$B:$I,5,0)),IF(ISERROR(VLOOKUP($E73,登録予定者!$B:$I,5,0)),"未登録",VLOOKUP($E73,登録予定者!$B:$I,5,0)),VLOOKUP($E73,氏名ﾃﾞｰﾀ!$B:$I,5,0))) ->  | J73: =IF($E73="","",IF(ISERROR(VLOOKUP($E73,氏名ﾃﾞｰﾀ!$B:$I,6,0)),IF(ISERROR(VLOOKUP($E73,登録予定者!$B:$I,6,0)),"未登録",VLOOKUP($E73,登録予定者!$B:$I,6,0)),VLOOKUP($E73,氏名ﾃﾞｰﾀ!$B:$I,6,0))) ->  | K73: 女 | N73: 2 | O73: =CONCATENATE($O$19,"Ｂ") ->  | P73: =IF(E73="","",CONCATENATE(F73," ",G73)) ->  | Q73: =IF(E73="","",J73) ->  | R73: =IF(E73="","",$F$17) ->  | T73: 1 | U73: =IF($E$73="","",B73*10+3) -> 
A74: =300000+B74*100+8 -> 300008 | B74: 0 | C74: 2 | D74: 第２区 | F74: =IF($E74="","",IF(ISERROR(VLOOKUP($E74,氏名ﾃﾞｰﾀ!$B:$I,2,0)),IF(ISERROR(VLOOKUP($E74,登録予定者!$B:$I,2,0)),"未登録",VLOOKUP($E74,登録予定者!$B:$I,2,0)),VLOOKUP($E74,氏名ﾃﾞｰﾀ!$B:$I,2,0))) ->  | G74: =IF($E74="","",IF(ISERROR(VLOOKUP($E74,氏名ﾃﾞｰﾀ!$B:$I,3,0)),IF(ISERROR(VLOOKUP($E74,登録予定者!$B:$I,3,0)),"未登録",VLOOKUP($E74,登録予定者!$B:$I,3,0)),VLOOKUP($E74,氏名ﾃﾞｰﾀ!$B:$I,3,0))) ->  | H74: =IF($E74="","",IF(ISERROR(VLOOKUP($E74,氏名ﾃﾞｰﾀ!$B:$I,4,0)),IF(ISERROR(VLOOKUP($E74,登録予定者!$B:$I,4,0)),"未登録",VLOOKUP($E74,登録予定者!$B:$I,4,0)),VLOOKUP($E74,氏名ﾃﾞｰﾀ!$B:$I,4,0))) ->  | I74: =IF($E74="","",IF(ISERROR(VLOOKUP($E74,氏名ﾃﾞｰﾀ!$B:$I,5,0)),IF(ISERROR(VLOOKUP($E74,登録予定者!$B:$I,5,0)),"未登録",VLOOKUP($E74,登録予定者!$B:$I,5,0)),VLOOKUP($E74,氏名ﾃﾞｰﾀ!$B:$I,5,0))) ->  | J74: =IF($E74="","",IF(ISERROR(VLOOKUP($E74,氏名ﾃﾞｰﾀ!$B:$I,6,0)),IF(ISERROR(VLOOKUP($E74,登録予定者!$B:$I,6,0)),"未登録",VLOOKUP($E74,登録予定者!$B:$I,6,0)),VLOOKUP($E74,氏名ﾃﾞｰﾀ!$B:$I,6,0))) ->  | K74: 女 | N74: 2 | T74: 1
A75: =300000+B75*100+9 -> 300009 | B75: 0 | C75: 3 | D75: 第３区 | F75: =IF($E75="","",IF(ISERROR(VLOOKUP($E75,氏名ﾃﾞｰﾀ!$B:$I,2,0)),IF(ISERROR(VLOOKUP($E75,登録予定者!$B:$I,2,0)),"未登録",VLOOKUP($E75,登録予定者!$B:$I,2,0)),VLOOKUP($E75,氏名ﾃﾞｰﾀ!$B:$I,2,0))) ->  | G75: =IF($E75="","",IF(ISERROR(VLOOKUP($E75,氏名ﾃﾞｰﾀ!$B:$I,3,0)),IF(ISERROR(VLOOKUP($E75,登録予定者!$B:$I,3,0)),"未登録",VLOOKUP($E75,登録予定者!$B:$I,3,0)),VLOOKUP($E75,氏名ﾃﾞｰﾀ!$B:$I,3,0))) ->  | H75: =IF($E75="","",IF(ISERROR(VLOOKUP($E75,氏名ﾃﾞｰﾀ!$B:$I,4,0)),IF(ISERROR(VLOOKUP($E75,登録予定者!$B:$I,4,0)),"未登録",VLOOKUP($E75,登録予定者!$B:$I,4,0)),VLOOKUP($E75,氏名ﾃﾞｰﾀ!$B:$I,4,0))) ->  | I75: =IF($E75="","",IF(ISERROR(VLOOKUP($E75,氏名ﾃﾞｰﾀ!$B:$I,5,0)),IF(ISERROR(VLOOKUP($E75,登録予定者!$B:$I,5,0)),"未登録",VLOOKUP($E75,登録予定者!$B:$I,5,0)),VLOOKUP($E75,氏名ﾃﾞｰﾀ!$B:$I,5,0))) ->  | J75: =IF($E75="","",IF(ISERROR(VLOOKUP($E75,氏名ﾃﾞｰﾀ!$B:$I,6,0)),IF(ISERROR(VLOOKUP($E75,登録予定者!$B:$I,6,0)),"未登録",VLOOKUP($E75,登録予定者!$B:$I,6,0)),VLOOKUP($E75,氏名ﾃﾞｰﾀ!$B:$I,6,0))) ->  | K75: 女 | N75: 2 | T75: 1
A76: =300000+B76*100+10 -> 300010 | B76: 0 | C76: 4 | D76: 第４区 | F76: =IF($E76="","",IF(ISERROR(VLOOKUP($E76,氏名ﾃﾞｰﾀ!$B:$I,2,0)),IF(ISERROR(VLOOKUP($E76,登録予定者!$B:$I,2,0)),"未登録",VLOOKUP($E76,登録予定者!$B:$I,2,0)),VLOOKUP($E76,氏名ﾃﾞｰﾀ!$B:$I,2,0))) ->  | G76: =IF($E76="","",IF(ISERROR(VLOOKUP($E76,氏名ﾃﾞｰﾀ!$B:$I,3,0)),IF(ISERROR(VLOOKUP($E76,登録予定者!$B:$I,3,0)),"未登録",VLOOKUP($E76,登録予定者!$B:$I,3,0)),VLOOKUP($E76,氏名ﾃﾞｰﾀ!$B:$I,3,0))) ->  | H76: =IF($E76="","",IF(ISERROR(VLOOKUP($E76,氏名ﾃﾞｰﾀ!$B:$I,4,0)),IF(ISERROR(VLOOKUP($E76,登録予定者!$B:$I,4,0)),"未登録",VLOOKUP($E76,登録予定者!$B:$I,4,0)),VLOOKUP($E76,氏名ﾃﾞｰﾀ!$B:$I,4,0))) ->  | I76: =IF($E76="","",IF(ISERROR(VLOOKUP($E76,氏名ﾃﾞｰﾀ!$B:$I,5,0)),IF(ISERROR(VLOOKUP($E76,登録予定者!$B:$I,5,0)),"未登録",VLOOKUP($E76,登録予定者!$B:$I,5,0)),VLOOKUP($E76,氏名ﾃﾞｰﾀ!$B:$I,5,0))) ->  | J76: =IF($E76="","",IF(ISERROR(VLOOKUP($E76,氏名ﾃﾞｰﾀ!$B:$I,6,0)),IF(ISERROR(VLOOKUP($E76,登録予定者!$B:$I,6,0)),"未登録",VLOOKUP($E76,登録予定者!$B:$I,6,0)),VLOOKUP($E76,氏名ﾃﾞｰﾀ!$B:$I,6,0))) ->  | K76: 女 | N76: 2 | T76: 1
A77: =300000+B77*100+11 -> 300011 | B77: 0 | C77: 5 | D77: 補欠 | F77: =IF($E77="","",IF(ISERROR(VLOOKUP($E77,氏名ﾃﾞｰﾀ!$B:$I,2,0)),IF(ISERROR(VLOOKUP($E77,登録予定者!$B:$I,2,0)),"未登録",VLOOKUP($E77,登録予定者!$B:$I,2,0)),VLOOKUP($E77,氏名ﾃﾞｰﾀ!$B:$I,2,0))) ->  | G77: =IF($E77="","",IF(ISERROR(VLOOKUP($E77,氏名ﾃﾞｰﾀ!$B:$I,3,0)),IF(ISERROR(VLOOKUP($E77,登録予定者!$B:$I,3,0)),"未登録",VLOOKUP($E77,登録予定者!$B:$I,3,0)),VLOOKUP($E77,氏名ﾃﾞｰﾀ!$B:$I,3,0))) ->  | H77: =IF($E77="","",IF(ISERROR(VLOOKUP($E77,氏名ﾃﾞｰﾀ!$B:$I,4,0)),IF(ISERROR(VLOOKUP($E77,登録予定者!$B:$I,4,0)),"未登録",VLOOKUP($E77,登録予定者!$B:$I,4,0)),VLOOKUP($E77,氏名ﾃﾞｰﾀ!$B:$I,4,0))) ->  | I77: =IF($E77="","",IF(ISERROR(VLOOKUP($E77,氏名ﾃﾞｰﾀ!$B:$I,5,0)),IF(ISERROR(VLOOKUP($E77,登録予定者!$B:$I,5,0)),"未登録",VLOOKUP($E77,登録予定者!$B:$I,5,0)),VLOOKUP($E77,氏名ﾃﾞｰﾀ!$B:$I,5,0))) ->  | J77: =IF($E77="","",IF(ISERROR(VLOOKUP($E77,氏名ﾃﾞｰﾀ!$B:$I,6,0)),IF(ISERROR(VLOOKUP($E77,登録予定者!$B:$I,6,0)),"未登録",VLOOKUP($E77,登録予定者!$B:$I,6,0)),VLOOKUP($E77,氏名ﾃﾞｰﾀ!$B:$I,6,0))) ->  | K77: 女 | N77: 2 | T77: 1
A78: =300000+B78*100+12 -> 300012 | B78: 0 | C78: 6 | D78: 補欠 | F78: =IF($E78="","",IF(ISERROR(VLOOKUP($E78,氏名ﾃﾞｰﾀ!$B:$I,2,0)),IF(ISERROR(VLOOKUP($E78,登録予定者!$B:$I,2,0)),"未登録",VLOOKUP($E78,登録予定者!$B:$I,2,0)),VLOOKUP($E78,氏名ﾃﾞｰﾀ!$B:$I,2,0))) ->  | G78: =IF($E78="","",IF(ISERROR(VLOOKUP($E78,氏名ﾃﾞｰﾀ!$B:$I,3,0)),IF(ISERROR(VLOOKUP($E78,登録予定者!$B:$I,3,0)),"未登録",VLOOKUP($E78,登録予定者!$B:$I,3,0)),VLOOKUP($E78,氏名ﾃﾞｰﾀ!$B:$I,3,0))) ->  | H78: =IF($E78="","",IF(ISERROR(VLOOKUP($E78,氏名ﾃﾞｰﾀ!$B:$I,4,0)),IF(ISERROR(VLOOKUP($E78,登録予定者!$B:$I,4,0)),"未登録",VLOOKUP($E78,登録予定者!$B:$I,4,0)),VLOOKUP($E78,氏名ﾃﾞｰﾀ!$B:$I,4,0))) ->  | I78: =IF($E78="","",IF(ISERROR(VLOOKUP($E78,氏名ﾃﾞｰﾀ!$B:$I,5,0)),IF(ISERROR(VLOOKUP($E78,登録予定者!$B:$I,5,0)),"未登録",VLOOKUP($E78,登録予定者!$B:$I,5,0)),VLOOKUP($E78,氏名ﾃﾞｰﾀ!$B:$I,5,0))) ->  | J78: =IF($E78="","",IF(ISERROR(VLOOKUP($E78,氏名ﾃﾞｰﾀ!$B:$I,6,0)),IF(ISERROR(VLOOKUP($E78,登録予定者!$B:$I,6,0)),"未登録",VLOOKUP($E78,登録予定者!$B:$I,6,0)),VLOOKUP($E78,氏名ﾃﾞｰﾀ!$B:$I,6,0))) ->  | K78: 女 | N78: 2 | T78: 1
D79: Cチーム
A80: =300000+B80*100+13 -> 300013 | B80: =$F$17*100+$F$18 -> 0 | C80: 1 | D80: 第１区 | F80: =IF($E80="","",IF(ISERROR(VLOOKUP($E80,氏名ﾃﾞｰﾀ!$B:$I,2,0)),IF(ISERROR(VLOOKUP($E80,登録予定者!$B:$I,2,0)),"未登録",VLOOKUP($E80,登録予定者!$B:$I,2,0)),VLOOKUP($E80,氏名ﾃﾞｰﾀ!$B:$I,2,0))) ->  | G80: =IF($E80="","",IF(ISERROR(VLOOKUP($E80,氏名ﾃﾞｰﾀ!$B:$I,3,0)),IF(ISERROR(VLOOKUP($E80,登録予定者!$B:$I,3,0)),"未登録",VLOOKUP($E80,登録予定者!$B:$I,3,0)),VLOOKUP($E80,氏名ﾃﾞｰﾀ!$B:$I,3,0))) ->  | H80: =IF($E80="","",IF(ISERROR(VLOOKUP($E80,氏名ﾃﾞｰﾀ!$B:$I,4,0)),IF(ISERROR(VLOOKUP($E80,登録予定者!$B:$I,4,0)),"未登録",VLOOKUP($E80,登録予定者!$B:$I,4,0)),VLOOKUP($E80,氏名ﾃﾞｰﾀ!$B:$I,4,0))) ->  | I80: =IF($E80="","",IF(ISERROR(VLOOKUP($E80,氏名ﾃﾞｰﾀ!$B:$I,5,0)),IF(ISERROR(VLOOKUP($E80,登録予定者!$B:$I,5,0)),"未登録",VLOOKUP($E80,登録予定者!$B:$I,5,0)),VLOOKUP($E80,氏名ﾃﾞｰﾀ!$B:$I,5,0))) ->  | J80: =IF($E80="","",IF(ISERROR(VLOOKUP($E80,氏名ﾃﾞｰﾀ!$B:$I,6,0)),IF(ISERROR(VLOOKUP($E80,登録予定者!$B:$I,6,0)),"未登録",VLOOKUP($E80,登録予定者!$B:$I,6,0)),VLOOKUP($E80,氏名ﾃﾞｰﾀ!$B:$I,6,0))) ->  | K80: 女 | N80: 2 | O80: =CONCATENATE($O$19,"Ｃ") ->  | P80: =IF(E80="","",CONCATENATE(F80," ",G80)) ->  | Q80: =IF(E80="","",J80) ->  | R80: =IF(E80="","",$F$17) ->  | S80: =IF(U80="","",RIGHT(B80,2)) ->  | T80: =IF(U80="",1,0) -> 1 | U80: =IF($E$80="","",B80*10+3) -> 
A81: =300000+B81*100+14 -> 300014 | B81: 0 | C81: 2 | D81: 第２区 | F81: =IF($E81="","",IF(ISERROR(VLOOKUP($E81,氏名ﾃﾞｰﾀ!$B:$I,2,0)),IF(ISERROR(VLOOKUP($E81,登録予定者!$B:$I,2,0)),"未登録",VLOOKUP($E81,登録予定者!$B:$I,2,0)),VLOOKUP($E81,氏名ﾃﾞｰﾀ!$B:$I,2,0))) ->  | G81: =IF($E81="","",IF(ISERROR(VLOOKUP($E81,氏名ﾃﾞｰﾀ!$B:$I,3,0)),IF(ISERROR(VLOOKUP($E81,登録予定者!$B:$I,3,0)),"未登録",VLOOKUP($E81,登録予定者!$B:$I,3,0)),VLOOKUP($E81,氏名ﾃﾞｰﾀ!$B:$I,3,0))) ->  | H81: =IF($E81="","",IF(ISERROR(VLOOKUP($E81,氏名ﾃﾞｰﾀ!$B:$I,4,0)),IF(ISERROR(VLOOKUP($E81,登録予定者!$B:$I,4,0)),"未登録",VLOOKUP($E81,登録予定者!$B:$I,4,0)),VLOOKUP($E81,氏名ﾃﾞｰﾀ!$B:$I,4,0))) ->  | I81: =IF($E81="","",IF(ISERROR(VLOOKUP($E81,氏名ﾃﾞｰﾀ!$B:$I,5,0)),IF(ISERROR(VLOOKUP($E81,登録予定者!$B:$I,5,0)),"未登録",VLOOKUP($E81,登録予定者!$B:$I,5,0)),VLOOKUP($E81,氏名ﾃﾞｰﾀ!$B:$I,5,0))) ->  | J81: =IF($E81="","",IF(ISERROR(VLOOKUP($E81,氏名ﾃﾞｰﾀ!$B:$I,6,0)),IF(ISERROR(VLOOKUP($E81,登録予定者!$B:$I,6,0)),"未登録",VLOOKUP($E81,登録予定者!$B:$I,6,0)),VLOOKUP($E81,氏名ﾃﾞｰﾀ!$B:$I,6,0))) ->  | K81: 女 | N81: 2 | O81: =CONCATENATE($O$19,"Ｃ") ->  | T81: 1 | U81: =IF($E$80="","",B81*10+3) -> 
A82: =300000+B82*100+15 -> 300015 | B82: 0 | C82: 3 | D82: 第３区 | F82: =IF($E82="","",IF(ISERROR(VLOOKUP($E82,氏名ﾃﾞｰﾀ!$B:$I,2,0)),IF(ISERROR(VLOOKUP($E82,登録予定者!$B:$I,2,0)),"未登録",VLOOKUP($E82,登録予定者!$B:$I,2,0)),VLOOKUP($E82,氏名ﾃﾞｰﾀ!$B:$I,2,0))) ->  | G82: =IF($E82="","",IF(ISERROR(VLOOKUP($E82,氏名ﾃﾞｰﾀ!$B:$I,3,0)),IF(ISERROR(VLOOKUP($E82,登録予定者!$B:$I,3,0)),"未登録",VLOOKUP($E82,登録予定者!$B:$I,3,0)),VLOOKUP($E82,氏名ﾃﾞｰﾀ!$B:$I,3,0))) ->  | H82: =IF($E82="","",IF(ISERROR(VLOOKUP($E82,氏名ﾃﾞｰﾀ!$B:$I,4,0)),IF(ISERROR(VLOOKUP($E82,登録予定者!$B:$I,4,0)),"未登録",VLOOKUP($E82,登録予定者!$B:$I,4,0)),VLOOKUP($E82,氏名ﾃﾞｰﾀ!$B:$I,4,0))) ->  | I82: =IF($E82="","",IF(ISERROR(VLOOKUP($E82,氏名ﾃﾞｰﾀ!$B:$I,5,0)),IF(ISERROR(VLOOKUP($E82,登録予定者!$B:$I,5,0)),"未登録",VLOOKUP($E82,登録予定者!$B:$I,5,0)),VLOOKUP($E82,氏名ﾃﾞｰﾀ!$B:$I,5,0))) ->  | J82: =IF($E82="","",IF(ISERROR(VLOOKUP($E82,氏名ﾃﾞｰﾀ!$B:$I,6,0)),IF(ISERROR(VLOOKUP($E82,登録予定者!$B:$I,6,0)),"未登録",VLOOKUP($E82,登録予定者!$B:$I,6,0)),VLOOKUP($E82,氏名ﾃﾞｰﾀ!$B:$I,6,0))) ->  | K82: 女 | N82: 2 | T82: 1
A83: =300000+B83*100+16 -> 300016 | B83: 0 | C83: 4 | D83: 第４区 | F83: =IF($E83="","",IF(ISERROR(VLOOKUP($E83,氏名ﾃﾞｰﾀ!$B:$I,2,0)),IF(ISERROR(VLOOKUP($E83,登録予定者!$B:$I,2,0)),"未登録",VLOOKUP($E83,登録予定者!$B:$I,2,0)),VLOOKUP($E83,氏名ﾃﾞｰﾀ!$B:$I,2,0))) ->  | G83: =IF($E83="","",IF(ISERROR(VLOOKUP($E83,氏名ﾃﾞｰﾀ!$B:$I,3,0)),IF(ISERROR(VLOOKUP($E83,登録予定者!$B:$I,3,0)),"未登録",VLOOKUP($E83,登録予定者!$B:$I,3,0)),VLOOKUP($E83,氏名ﾃﾞｰﾀ!$B:$I,3,0))) ->  | H83: =IF($E83="","",IF(ISERROR(VLOOKUP($E83,氏名ﾃﾞｰﾀ!$B:$I,4,0)),IF(ISERROR(VLOOKUP($E83,登録予定者!$B:$I,4,0)),"未登録",VLOOKUP($E83,登録予定者!$B:$I,4,0)),VLOOKUP($E83,氏名ﾃﾞｰﾀ!$B:$I,4,0))) ->  | I83: =IF($E83="","",IF(ISERROR(VLOOKUP($E83,氏名ﾃﾞｰﾀ!$B:$I,5,0)),IF(ISERROR(VLOOKUP($E83,登録予定者!$B:$I,5,0)),"未登録",VLOOKUP($E83,登録予定者!$B:$I,5,0)),VLOOKUP($E83,氏名ﾃﾞｰﾀ!$B:$I,5,0))) ->  | J83: =IF($E83="","",IF(ISERROR(VLOOKUP($E83,氏名ﾃﾞｰﾀ!$B:$I,6,0)),IF(ISERROR(VLOOKUP($E83,登録予定者!$B:$I,6,0)),"未登録",VLOOKUP($E83,登録予定者!$B:$I,6,0)),VLOOKUP($E83,氏名ﾃﾞｰﾀ!$B:$I,6,0))) ->  | K83: 女 | N83: 2 | T83: 1
A84: =300000+B84*100+17 -> 300017 | B84: 0 | C84: 5 | D84: 補欠 | F84: =IF($E84="","",IF(ISERROR(VLOOKUP($E84,氏名ﾃﾞｰﾀ!$B:$I,2,0)),IF(ISERROR(VLOOKUP($E84,登録予定者!$B:$I,2,0)),"未登録",VLOOKUP($E84,登録予定者!$B:$I,2,0)),VLOOKUP($E84,氏名ﾃﾞｰﾀ!$B:$I,2,0))) ->  | G84: =IF($E84="","",IF(ISERROR(VLOOKUP($E84,氏名ﾃﾞｰﾀ!$B:$I,3,0)),IF(ISERROR(VLOOKUP($E84,登録予定者!$B:$I,3,0)),"未登録",VLOOKUP($E84,登録予定者!$B:$I,3,0)),VLOOKUP($E84,氏名ﾃﾞｰﾀ!$B:$I,3,0))) ->  | H84: =IF($E84="","",IF(ISERROR(VLOOKUP($E84,氏名ﾃﾞｰﾀ!$B:$I,4,0)),IF(ISERROR(VLOOKUP($E84,登録予定者!$B:$I,4,0)),"未登録",VLOOKUP($E84,登録予定者!$B:$I,4,0)),VLOOKUP($E84,氏名ﾃﾞｰﾀ!$B:$I,4,0))) ->  | I84: =IF($E84="","",IF(ISERROR(VLOOKUP($E84,氏名ﾃﾞｰﾀ!$B:$I,5,0)),IF(ISERROR(VLOOKUP($E84,登録予定者!$B:$I,5,0)),"未登録",VLOOKUP($E84,登録予定者!$B:$I,5,0)),VLOOKUP($E84,氏名ﾃﾞｰﾀ!$B:$I,5,0))) ->  | J84: =IF($E84="","",IF(ISERROR(VLOOKUP($E84,氏名ﾃﾞｰﾀ!$B:$I,6,0)),IF(ISERROR(VLOOKUP($E84,登録予定者!$B:$I,6,0)),"未登録",VLOOKUP($E84,登録予定者!$B:$I,6,0)),VLOOKUP($E84,氏名ﾃﾞｰﾀ!$B:$I,6,0))) ->  | K84: 女 | N84: 2 | T84: 1
A85: =300000+B85*100+18 -> 300018 | B85: 0 | C85: 6 | D85: 補欠 | F85: =IF($E85="","",IF(ISERROR(VLOOKUP($E85,氏名ﾃﾞｰﾀ!$B:$I,2,0)),IF(ISERROR(VLOOKUP($E85,登録予定者!$B:$I,2,0)),"未登録",VLOOKUP($E85,登録予定者!$B:$I,2,0)),VLOOKUP($E85,氏名ﾃﾞｰﾀ!$B:$I,2,0))) ->  | G85: =IF($E85="","",IF(ISERROR(VLOOKUP($E85,氏名ﾃﾞｰﾀ!$B:$I,3,0)),IF(ISERROR(VLOOKUP($E85,登録予定者!$B:$I,3,0)),"未登録",VLOOKUP($E85,登録予定者!$B:$I,3,0)),VLOOKUP($E85,氏名ﾃﾞｰﾀ!$B:$I,3,0))) ->  | H85: =IF($E85="","",IF(ISERROR(VLOOKUP($E85,氏名ﾃﾞｰﾀ!$B:$I,4,0)),IF(ISERROR(VLOOKUP($E85,登録予定者!$B:$I,4,0)),"未登録",VLOOKUP($E85,登録予定者!$B:$I,4,0)),VLOOKUP($E85,氏名ﾃﾞｰﾀ!$B:$I,4,0))) ->  | I85: =IF($E85="","",IF(ISERROR(VLOOKUP($E85,氏名ﾃﾞｰﾀ!$B:$I,5,0)),IF(ISERROR(VLOOKUP($E85,登録予定者!$B:$I,5,0)),"未登録",VLOOKUP($E85,登録予定者!$B:$I,5,0)),VLOOKUP($E85,氏名ﾃﾞｰﾀ!$B:$I,5,0))) ->  | J85: =IF($E85="","",IF(ISERROR(VLOOKUP($E85,氏名ﾃﾞｰﾀ!$B:$I,6,0)),IF(ISERROR(VLOOKUP($E85,登録予定者!$B:$I,6,0)),"未登録",VLOOKUP($E85,登録予定者!$B:$I,6,0)),VLOOKUP($E85,氏名ﾃﾞｰﾀ!$B:$I,6,0))) ->  | K85: 女 | N85: 2 | T85: 1
D86: Ｄチーム
A87: =300000+B87*100+19 -> 300019 | B87: =$F$17*100+$F$18 -> 0 | C87: 1 | D87: 第１区 | F87: =IF($E87="","",IF(ISERROR(VLOOKUP($E87,氏名ﾃﾞｰﾀ!$B:$I,2,0)),IF(ISERROR(VLOOKUP($E87,登録予定者!$B:$I,2,0)),"未登録",VLOOKUP($E87,登録予定者!$B:$I,2,0)),VLOOKUP($E87,氏名ﾃﾞｰﾀ!$B:$I,2,0))) ->  | G87: =IF($E87="","",IF(ISERROR(VLOOKUP($E87,氏名ﾃﾞｰﾀ!$B:$I,3,0)),IF(ISERROR(VLOOKUP($E87,登録予定者!$B:$I,3,0)),"未登録",VLOOKUP($E87,登録予定者!$B:$I,3,0)),VLOOKUP($E87,氏名ﾃﾞｰﾀ!$B:$I,3,0))) ->  | H87: =IF($E87="","",IF(ISERROR(VLOOKUP($E87,氏名ﾃﾞｰﾀ!$B:$I,4,0)),IF(ISERROR(VLOOKUP($E87,登録予定者!$B:$I,4,0)),"未登録",VLOOKUP($E87,登録予定者!$B:$I,4,0)),VLOOKUP($E87,氏名ﾃﾞｰﾀ!$B:$I,4,0))) ->  | I87: =IF($E87="","",IF(ISERROR(VLOOKUP($E87,氏名ﾃﾞｰﾀ!$B:$I,5,0)),IF(ISERROR(VLOOKUP($E87,登録予定者!$B:$I,5,0)),"未登録",VLOOKUP($E87,登録予定者!$B:$I,5,0)),VLOOKUP($E87,氏名ﾃﾞｰﾀ!$B:$I,5,0))) ->  | J87: =IF($E87="","",IF(ISERROR(VLOOKUP($E87,氏名ﾃﾞｰﾀ!$B:$I,6,0)),IF(ISERROR(VLOOKUP($E87,登録予定者!$B:$I,6,0)),"未登録",VLOOKUP($E87,登録予定者!$B:$I,6,0)),VLOOKUP($E87,氏名ﾃﾞｰﾀ!$B:$I,6,0))) ->  | K87: 女 | N87: 2 | O87: =CONCATENATE($O$19,"Ｄ") ->  | P87: =IF(E87="","",CONCATENATE(F87," ",G87)) ->  | Q87: =IF(E87="","",J87) ->  | R87: =IF(E87="","",$F$17) ->  | S87: =IF(U87="","",RIGHT(B87,2)) ->  | T87: =IF(U87="",1,0) -> 1 | U87: =IF($E$73="","",B87*10+3) -> 
A88: =300000+B88*100+20 -> 300020 | B88: 0 | C88: 2 | D88: 第２区 | F88: =IF($E88="","",IF(ISERROR(VLOOKUP($E88,氏名ﾃﾞｰﾀ!$B:$I,2,0)),IF(ISERROR(VLOOKUP($E88,登録予定者!$B:$I,2,0)),"未登録",VLOOKUP($E88,登録予定者!$B:$I,2,0)),VLOOKUP($E88,氏名ﾃﾞｰﾀ!$B:$I,2,0))) ->  | G88: =IF($E88="","",IF(ISERROR(VLOOKUP($E88,氏名ﾃﾞｰﾀ!$B:$I,3,0)),IF(ISERROR(VLOOKUP($E88,登録予定者!$B:$I,3,0)),"未登録",VLOOKUP($E88,登録予定者!$B:$I,3,0)),VLOOKUP($E88,氏名ﾃﾞｰﾀ!$B:$I,3,0))) ->  | H88: =IF($E88="","",IF(ISERROR(VLOOKUP($E88,氏名ﾃﾞｰﾀ!$B:$I,4,0)),IF(ISERROR(VLOOKUP($E88,登録予定者!$B:$I,4,0)),"未登録",VLOOKUP($E88,登録予定者!$B:$I,4,0)),VLOOKUP($E88,氏名ﾃﾞｰﾀ!$B:$I,4,0))) ->  | I88: =IF($E88="","",IF(ISERROR(VLOOKUP($E88,氏名ﾃﾞｰﾀ!$B:$I,5,0)),IF(ISERROR(VLOOKUP($E88,登録予定者!$B:$I,5,0)),"未登録",VLOOKUP($E88,登録予定者!$B:$I,5,0)),VLOOKUP($E88,氏名ﾃﾞｰﾀ!$B:$I,5,0))) ->  | J88: =IF($E88="","",IF(ISERROR(VLOOKUP($E88,氏名ﾃﾞｰﾀ!$B:$I,6,0)),IF(ISERROR(VLOOKUP($E88,登録予定者!$B:$I,6,0)),"未登録",VLOOKUP($E88,登録予定者!$B:$I,6,0)),VLOOKUP($E88,氏名ﾃﾞｰﾀ!$B:$I,6,0))) ->  | K88: 女 | N88: 2 | O88: =CONCATENATE($O$19,"Ｄ") ->  | T88: 1
A89: =300000+B89*100+21 -> 300021 | B89: 0 | C89: 3 | D89: 第３区 | F89: =IF($E89="","",IF(ISERROR(VLOOKUP($E89,氏名ﾃﾞｰﾀ!$B:$I,2,0)),IF(ISERROR(VLOOKUP($E89,登録予定者!$B:$I,2,0)),"未登録",VLOOKUP($E89,登録予定者!$B:$I,2,0)),VLOOKUP($E89,氏名ﾃﾞｰﾀ!$B:$I,2,0))) ->  | G89: =IF($E89="","",IF(ISERROR(VLOOKUP($E89,氏名ﾃﾞｰﾀ!$B:$I,3,0)),IF(ISERROR(VLOOKUP($E89,登録予定者!$B:$I,3,0)),"未登録",VLOOKUP($E89,登録予定者!$B:$I,3,0)),VLOOKUP($E89,氏名ﾃﾞｰﾀ!$B:$I,3,0))) ->  | H89: =IF($E89="","",IF(ISERROR(VLOOKUP($E89,氏名ﾃﾞｰﾀ!$B:$I,4,0)),IF(ISERROR(VLOOKUP($E89,登録予定者!$B:$I,4,0)),"未登録",VLOOKUP($E89,登録予定者!$B:$I,4,0)),VLOOKUP($E89,氏名ﾃﾞｰﾀ!$B:$I,4,0))) ->  | I89: =IF($E89="","",IF(ISERROR(VLOOKUP($E89,氏名ﾃﾞｰﾀ!$B:$I,5,0)),IF(ISERROR(VLOOKUP($E89,登録予定者!$B:$I,5,0)),"未登録",VLOOKUP($E89,登録予定者!$B:$I,5,0)),VLOOKUP($E89,氏名ﾃﾞｰﾀ!$B:$I,5,0))) ->  | J89: =IF($E89="","",IF(ISERROR(VLOOKUP($E89,氏名ﾃﾞｰﾀ!$B:$I,6,0)),IF(ISERROR(VLOOKUP($E89,登録予定者!$B:$I,6,0)),"未登録",VLOOKUP($E89,登録予定者!$B:$I,6,0)),VLOOKUP($E89,氏名ﾃﾞｰﾀ!$B:$I,6,0))) ->  | K89: 女 | N89: 2 | T89: 1
A90: =300000+B90*100+22 -> 300022 | B90: 0 | C90: 4 | D90: 第４区 | F90: =IF($E90="","",IF(ISERROR(VLOOKUP($E90,氏名ﾃﾞｰﾀ!$B:$I,2,0)),IF(ISERROR(VLOOKUP($E90,登録予定者!$B:$I,2,0)),"未登録",VLOOKUP($E90,登録予定者!$B:$I,2,0)),VLOOKUP($E90,氏名ﾃﾞｰﾀ!$B:$I,2,0))) ->  | G90: =IF($E90="","",IF(ISERROR(VLOOKUP($E90,氏名ﾃﾞｰﾀ!$B:$I,3,0)),IF(ISERROR(VLOOKUP($E90,登録予定者!$B:$I,3,0)),"未登録",VLOOKUP($E90,登録予定者!$B:$I,3,0)),VLOOKUP($E90,氏名ﾃﾞｰﾀ!$B:$I,3,0))) ->  | H90: =IF($E90="","",IF(ISERROR(VLOOKUP($E90,氏名ﾃﾞｰﾀ!$B:$I,4,0)),IF(ISERROR(VLOOKUP($E90,登録予定者!$B:$I,4,0)),"未登録",VLOOKUP($E90,登録予定者!$B:$I,4,0)),VLOOKUP($E90,氏名ﾃﾞｰﾀ!$B:$I,4,0))) ->  | I90: =IF($E90="","",IF(ISERROR(VLOOKUP($E90,氏名ﾃﾞｰﾀ!$B:$I,5,0)),IF(ISERROR(VLOOKUP($E90,登録予定者!$B:$I,5,0)),"未登録",VLOOKUP($E90,登録予定者!$B:$I,5,0)),VLOOKUP($E90,氏名ﾃﾞｰﾀ!$B:$I,5,0))) ->  | J90: =IF($E90="","",IF(ISERROR(VLOOKUP($E90,氏名ﾃﾞｰﾀ!$B:$I,6,0)),IF(ISERROR(VLOOKUP($E90,登録予定者!$B:$I,6,0)),"未登録",VLOOKUP($E90,登録予定者!$B:$I,6,0)),VLOOKUP($E90,氏名ﾃﾞｰﾀ!$B:$I,6,0))) ->  | K90: 女 | N90: 2 | T90: 1
A91: =300000+B91*100+23 -> 300023 | B91: 0 | C91: 5 | D91: 補欠 | F91: =IF($E91="","",IF(ISERROR(VLOOKUP($E91,氏名ﾃﾞｰﾀ!$B:$I,2,0)),IF(ISERROR(VLOOKUP($E91,登録予定者!$B:$I,2,0)),"未登録",VLOOKUP($E91,登録予定者!$B:$I,2,0)),VLOOKUP($E91,氏名ﾃﾞｰﾀ!$B:$I,2,0))) ->  | G91: =IF($E91="","",IF(ISERROR(VLOOKUP($E91,氏名ﾃﾞｰﾀ!$B:$I,3,0)),IF(ISERROR(VLOOKUP($E91,登録予定者!$B:$I,3,0)),"未登録",VLOOKUP($E91,登録予定者!$B:$I,3,0)),VLOOKUP($E91,氏名ﾃﾞｰﾀ!$B:$I,3,0))) ->  | H91: =IF($E91="","",IF(ISERROR(VLOOKUP($E91,氏名ﾃﾞｰﾀ!$B:$I,4,0)),IF(ISERROR(VLOOKUP($E91,登録予定者!$B:$I,4,0)),"未登録",VLOOKUP($E91,登録予定者!$B:$I,4,0)),VLOOKUP($E91,氏名ﾃﾞｰﾀ!$B:$I,4,0))) ->  | I91: =IF($E91="","",IF(ISERROR(VLOOKUP($E91,氏名ﾃﾞｰﾀ!$B:$I,5,0)),IF(ISERROR(VLOOKUP($E91,登録予定者!$B:$I,5,0)),"未登録",VLOOKUP($E91,登録予定者!$B:$I,5,0)),VLOOKUP($E91,氏名ﾃﾞｰﾀ!$B:$I,5,0))) ->  | J91: =IF($E91="","",IF(ISERROR(VLOOKUP($E91,氏名ﾃﾞｰﾀ!$B:$I,6,0)),IF(ISERROR(VLOOKUP($E91,登録予定者!$B:$I,6,0)),"未登録",VLOOKUP($E91,登録予定者!$B:$I,6,0)),VLOOKUP($E91,氏名ﾃﾞｰﾀ!$B:$I,6,0))) ->  | K91: 女 | N91: 2 | T91: 1
A92: =300000+B92*100+24 -> 300024 | B92: 0 | C92: 6 | D92: 補欠 | F92: =IF($E92="","",IF(ISERROR(VLOOKUP($E92,氏名ﾃﾞｰﾀ!$B:$I,2,0)),IF(ISERROR(VLOOKUP($E92,登録予定者!$B:$I,2,0)),"未登録",VLOOKUP($E92,登録予定者!$B:$I,2,0)),VLOOKUP($E92,氏名ﾃﾞｰﾀ!$B:$I,2,0))) ->  | G92: =IF($E92="","",IF(ISERROR(VLOOKUP($E92,氏名ﾃﾞｰﾀ!$B:$I,3,0)),IF(ISERROR(VLOOKUP($E92,登録予定者!$B:$I,3,0)),"未登録",VLOOKUP($E92,登録予定者!$B:$I,3,0)),VLOOKUP($E92,氏名ﾃﾞｰﾀ!$B:$I,3,0))) ->  | H92: =IF($E92="","",IF(ISERROR(VLOOKUP($E92,氏名ﾃﾞｰﾀ!$B:$I,4,0)),IF(ISERROR(VLOOKUP($E92,登録予定者!$B:$I,4,0)),"未登録",VLOOKUP($E92,登録予定者!$B:$I,4,0)),VLOOKUP($E92,氏名ﾃﾞｰﾀ!$B:$I,4,0))) ->  | I92: =IF($E92="","",IF(ISERROR(VLOOKUP($E92,氏名ﾃﾞｰﾀ!$B:$I,5,0)),IF(ISERROR(VLOOKUP($E92,登録予定者!$B:$I,5,0)),"未登録",VLOOKUP($E92,登録予定者!$B:$I,5,0)),VLOOKUP($E92,氏名ﾃﾞｰﾀ!$B:$I,5,0))) ->  | J92: =IF($E92="","",IF(ISERROR(VLOOKUP($E92,氏名ﾃﾞｰﾀ!$B:$I,6,0)),IF(ISERROR(VLOOKUP($E92,登録予定者!$B:$I,6,0)),"未登録",VLOOKUP($E92,登録予定者!$B:$I,6,0)),VLOOKUP($E92,氏名ﾃﾞｰﾀ!$B:$I,6,0))) ->  | K92: 女 | N92: 2 | T92: 1
D93: Ｅチーム
A94: =300000+B94*100+25 -> 300025 | B94: =$F$17*100+$F$18 -> 0 | C94: 1 | D94: 第１区 | F94: =IF($E94="","",IF(ISERROR(VLOOKUP($E94,氏名ﾃﾞｰﾀ!$B:$I,2,0)),IF(ISERROR(VLOOKUP($E94,登録予定者!$B:$I,2,0)),"未登録",VLOOKUP($E94,登録予定者!$B:$I,2,0)),VLOOKUP($E94,氏名ﾃﾞｰﾀ!$B:$I,2,0))) ->  | G94: =IF($E94="","",IF(ISERROR(VLOOKUP($E94,氏名ﾃﾞｰﾀ!$B:$I,3,0)),IF(ISERROR(VLOOKUP($E94,登録予定者!$B:$I,3,0)),"未登録",VLOOKUP($E94,登録予定者!$B:$I,3,0)),VLOOKUP($E94,氏名ﾃﾞｰﾀ!$B:$I,3,0))) ->  | H94: =IF($E94="","",IF(ISERROR(VLOOKUP($E94,氏名ﾃﾞｰﾀ!$B:$I,4,0)),IF(ISERROR(VLOOKUP($E94,登録予定者!$B:$I,4,0)),"未登録",VLOOKUP($E94,登録予定者!$B:$I,4,0)),VLOOKUP($E94,氏名ﾃﾞｰﾀ!$B:$I,4,0))) ->  | I94: =IF($E94="","",IF(ISERROR(VLOOKUP($E94,氏名ﾃﾞｰﾀ!$B:$I,5,0)),IF(ISERROR(VLOOKUP($E94,登録予定者!$B:$I,5,0)),"未登録",VLOOKUP($E94,登録予定者!$B:$I,5,0)),VLOOKUP($E94,氏名ﾃﾞｰﾀ!$B:$I,5,0))) ->  | J94: =IF($E94="","",IF(ISERROR(VLOOKUP($E94,氏名ﾃﾞｰﾀ!$B:$I,6,0)),IF(ISERROR(VLOOKUP($E94,登録予定者!$B:$I,6,0)),"未登録",VLOOKUP($E94,登録予定者!$B:$I,6,0)),VLOOKUP($E94,氏名ﾃﾞｰﾀ!$B:$I,6,0))) ->  | K94: 女 | N94: 2 | O94: =CONCATENATE($O$19,"Ｅ") ->  | P94: =IF(E94="","",CONCATENATE(F94," ",G94)) ->  | Q94: =IF(E94="","",J94) ->  | R94: =IF(E94="","",$F$17) ->  | S94: =IF(U94="","",RIGHT(B94,2)) ->  | T94: =IF(U94="",1,0) -> 1 | U94: =IF($E$80="","",B94*10+3) -> 
A95: =300000+B95*100+26 -> 300026 | B95: 0 | C95: 2 | D95: 第２区 | F95: =IF($E95="","",IF(ISERROR(VLOOKUP($E95,氏名ﾃﾞｰﾀ!$B:$I,2,0)),IF(ISERROR(VLOOKUP($E95,登録予定者!$B:$I,2,0)),"未登録",VLOOKUP($E95,登録予定者!$B:$I,2,0)),VLOOKUP($E95,氏名ﾃﾞｰﾀ!$B:$I,2,0))) ->  | G95: =IF($E95="","",IF(ISERROR(VLOOKUP($E95,氏名ﾃﾞｰﾀ!$B:$I,3,0)),IF(ISERROR(VLOOKUP($E95,登録予定者!$B:$I,3,0)),"未登録",VLOOKUP($E95,登録予定者!$B:$I,3,0)),VLOOKUP($E95,氏名ﾃﾞｰﾀ!$B:$I,3,0))) ->  | H95: =IF($E95="","",IF(ISERROR(VLOOKUP($E95,氏名ﾃﾞｰﾀ!$B:$I,4,0)),IF(ISERROR(VLOOKUP($E95,登録予定者!$B:$I,4,0)),"未登録",VLOOKUP($E95,登録予定者!$B:$I,4,0)),VLOOKUP($E95,氏名ﾃﾞｰﾀ!$B:$I,4,0))) ->  | I95: =IF($E95="","",IF(ISERROR(VLOOKUP($E95,氏名ﾃﾞｰﾀ!$B:$I,5,0)),IF(ISERROR(VLOOKUP($E95,登録予定者!$B:$I,5,0)),"未登録",VLOOKUP($E95,登録予定者!$B:$I,5,0)),VLOOKUP($E95,氏名ﾃﾞｰﾀ!$B:$I,5,0))) ->  | J95: =IF($E95="","",IF(ISERROR(VLOOKUP($E95,氏名ﾃﾞｰﾀ!$B:$I,6,0)),IF(ISERROR(VLOOKUP($E95,登録予定者!$B:$I,6,0)),"未登録",VLOOKUP($E95,登録予定者!$B:$I,6,0)),VLOOKUP($E95,氏名ﾃﾞｰﾀ!$B:$I,6,0))) ->  | K95: 女 | N95: 2 | O95: =CONCATENATE($O$19,"Ｅ") ->  | T95: 1 | U95: =IF($E$80="","",B95*10+3) -> 
A96: =300000+B96*100+27 -> 300027 | B96: 0 | C96: 3 | D96: 第３区 | F96: =IF($E96="","",IF(ISERROR(VLOOKUP($E96,氏名ﾃﾞｰﾀ!$B:$I,2,0)),IF(ISERROR(VLOOKUP($E96,登録予定者!$B:$I,2,0)),"未登録",VLOOKUP($E96,登録予定者!$B:$I,2,0)),VLOOKUP($E96,氏名ﾃﾞｰﾀ!$B:$I,2,0))) ->  | G96: =IF($E96="","",IF(ISERROR(VLOOKUP($E96,氏名ﾃﾞｰﾀ!$B:$I,3,0)),IF(ISERROR(VLOOKUP($E96,登録予定者!$B:$I,3,0)),"未登録",VLOOKUP($E96,登録予定者!$B:$I,3,0)),VLOOKUP($E96,氏名ﾃﾞｰﾀ!$B:$I,3,0))) ->  | H96: =IF($E96="","",IF(ISERROR(VLOOKUP($E96,氏名ﾃﾞｰﾀ!$B:$I,4,0)),IF(ISERROR(VLOOKUP($E96,登録予定者!$B:$I,4,0)),"未登録",VLOOKUP($E96,登録予定者!$B:$I,4,0)),VLOOKUP($E96,氏名ﾃﾞｰﾀ!$B:$I,4,0))) ->  | I96: =IF($E96="","",IF(ISERROR(VLOOKUP($E96,氏名ﾃﾞｰﾀ!$B:$I,5,0)),IF(ISERROR(VLOOKUP($E96,登録予定者!$B:$I,5,0)),"未登録",VLOOKUP($E96,登録予定者!$B:$I,5,0)),VLOOKUP($E96,氏名ﾃﾞｰﾀ!$B:$I,5,0))) ->  | J96: =IF($E96="","",IF(ISERROR(VLOOKUP($E96,氏名ﾃﾞｰﾀ!$B:$I,6,0)),IF(ISERROR(VLOOKUP($E96,登録予定者!$B:$I,6,0)),"未登録",VLOOKUP($E96,登録予定者!$B:$I,6,0)),VLOOKUP($E96,氏名ﾃﾞｰﾀ!$B:$I,6,0))) ->  | K96: 女 | N96: 2 | T96: 1
A97: =300000+B97*100+28 -> 300028 | B97: 0 | C97: 4 | D97: 第４区 | F97: =IF($E97="","",IF(ISERROR(VLOOKUP($E97,氏名ﾃﾞｰﾀ!$B:$I,2,0)),IF(ISERROR(VLOOKUP($E97,登録予定者!$B:$I,2,0)),"未登録",VLOOKUP($E97,登録予定者!$B:$I,2,0)),VLOOKUP($E97,氏名ﾃﾞｰﾀ!$B:$I,2,0))) ->  | G97: =IF($E97="","",IF(ISERROR(VLOOKUP($E97,氏名ﾃﾞｰﾀ!$B:$I,3,0)),IF(ISERROR(VLOOKUP($E97,登録予定者!$B:$I,3,0)),"未登録",VLOOKUP($E97,登録予定者!$B:$I,3,0)),VLOOKUP($E97,氏名ﾃﾞｰﾀ!$B:$I,3,0))) ->  | H97: =IF($E97="","",IF(ISERROR(VLOOKUP($E97,氏名ﾃﾞｰﾀ!$B:$I,4,0)),IF(ISERROR(VLOOKUP($E97,登録予定者!$B:$I,4,0)),"未登録",VLOOKUP($E97,登録予定者!$B:$I,4,0)),VLOOKUP($E97,氏名ﾃﾞｰﾀ!$B:$I,4,0))) ->  | I97: =IF($E97="","",IF(ISERROR(VLOOKUP($E97,氏名ﾃﾞｰﾀ!$B:$I,5,0)),IF(ISERROR(VLOOKUP($E97,登録予定者!$B:$I,5,0)),"未登録",VLOOKUP($E97,登録予定者!$B:$I,5,0)),VLOOKUP($E97,氏名ﾃﾞｰﾀ!$B:$I,5,0))) ->  | J97: =IF($E97="","",IF(ISERROR(VLOOKUP($E97,氏名ﾃﾞｰﾀ!$B:$I,6,0)),IF(ISERROR(VLOOKUP($E97,登録予定者!$B:$I,6,0)),"未登録",VLOOKUP($E97,登録予定者!$B:$I,6,0)),VLOOKUP($E97,氏名ﾃﾞｰﾀ!$B:$I,6,0))) ->  | K97: 女 | N97: 2 | T97: 1
A98: =300000+B98*100+29 -> 300029 | B98: 0 | C98: 5 | D98: 補欠 | F98: =IF($E98="","",IF(ISERROR(VLOOKUP($E98,氏名ﾃﾞｰﾀ!$B:$I,2,0)),IF(ISERROR(VLOOKUP($E98,登録予定者!$B:$I,2,0)),"未登録",VLOOKUP($E98,登録予定者!$B:$I,2,0)),VLOOKUP($E98,氏名ﾃﾞｰﾀ!$B:$I,2,0))) ->  | G98: =IF($E98="","",IF(ISERROR(VLOOKUP($E98,氏名ﾃﾞｰﾀ!$B:$I,3,0)),IF(ISERROR(VLOOKUP($E98,登録予定者!$B:$I,3,0)),"未登録",VLOOKUP($E98,登録予定者!$B:$I,3,0)),VLOOKUP($E98,氏名ﾃﾞｰﾀ!$B:$I,3,0))) ->  | H98: =IF($E98="","",IF(ISERROR(VLOOKUP($E98,氏名ﾃﾞｰﾀ!$B:$I,4,0)),IF(ISERROR(VLOOKUP($E98,登録予定者!$B:$I,4,0)),"未登録",VLOOKUP($E98,登録予定者!$B:$I,4,0)),VLOOKUP($E98,氏名ﾃﾞｰﾀ!$B:$I,4,0))) ->  | I98: =IF($E98="","",IF(ISERROR(VLOOKUP($E98,氏名ﾃﾞｰﾀ!$B:$I,5,0)),IF(ISERROR(VLOOKUP($E98,登録予定者!$B:$I,5,0)),"未登録",VLOOKUP($E98,登録予定者!$B:$I,5,0)),VLOOKUP($E98,氏名ﾃﾞｰﾀ!$B:$I,5,0))) ->  | J98: =IF($E98="","",IF(ISERROR(VLOOKUP($E98,氏名ﾃﾞｰﾀ!$B:$I,6,0)),IF(ISERROR(VLOOKUP($E98,登録予定者!$B:$I,6,0)),"未登録",VLOOKUP($E98,登録予定者!$B:$I,6,0)),VLOOKUP($E98,氏名ﾃﾞｰﾀ!$B:$I,6,0))) ->  | K98: 女 | N98: 2 | T98: 1
A99: =300000+B99*100+30 -> 300030 | B99: 0 | C99: 6 | D99: 補欠 | F99: =IF($E99="","",IF(ISERROR(VLOOKUP($E99,氏名ﾃﾞｰﾀ!$B:$I,2,0)),IF(ISERROR(VLOOKUP($E99,登録予定者!$B:$I,2,0)),"未登録",VLOOKUP($E99,登録予定者!$B:$I,2,0)),VLOOKUP($E99,氏名ﾃﾞｰﾀ!$B:$I,2,0))) ->  | G99: =IF($E99="","",IF(ISERROR(VLOOKUP($E99,氏名ﾃﾞｰﾀ!$B:$I,3,0)),IF(ISERROR(VLOOKUP($E99,登録予定者!$B:$I,3,0)),"未登録",VLOOKUP($E99,登録予定者!$B:$I,3,0)),VLOOKUP($E99,氏名ﾃﾞｰﾀ!$B:$I,3,0))) ->  | H99: =IF($E99="","",IF(ISERROR(VLOOKUP($E99,氏名ﾃﾞｰﾀ!$B:$I,4,0)),IF(ISERROR(VLOOKUP($E99,登録予定者!$B:$I,4,0)),"未登録",VLOOKUP($E99,登録予定者!$B:$I,4,0)),VLOOKUP($E99,氏名ﾃﾞｰﾀ!$B:$I,4,0))) ->  | I99: =IF($E99="","",IF(ISERROR(VLOOKUP($E99,氏名ﾃﾞｰﾀ!$B:$I,5,0)),IF(ISERROR(VLOOKUP($E99,登録予定者!$B:$I,5,0)),"未登録",VLOOKUP($E99,登録予定者!$B:$I,5,0)),VLOOKUP($E99,氏名ﾃﾞｰﾀ!$B:$I,5,0))) ->  | J99: =IF($E99="","",IF(ISERROR(VLOOKUP($E99,氏名ﾃﾞｰﾀ!$B:$I,6,0)),IF(ISERROR(VLOOKUP($E99,登録予定者!$B:$I,6,0)),"未登録",VLOOKUP($E99,登録予定者!$B:$I,6,0)),VLOOKUP($E99,氏名ﾃﾞｰﾀ!$B:$I,6,0))) ->  | K99: 女 | N99: 2 | T99: 1
D100: 女子ロードレース
A101: =400000+B101*100+C101 -> 400001 | B101: =$F$17*100+$F$18 -> 0 | C101: 1 | D101: 1 | F101: =IF($E101="","",IF(ISERROR(VLOOKUP($E101,氏名ﾃﾞｰﾀ!$B:$I,2,0)),IF(ISERROR(VLOOKUP($E101,登録予定者!$B:$I,2,0)),"未登録",VLOOKUP($E101,登録予定者!$B:$I,2,0)),VLOOKUP($E101,氏名ﾃﾞｰﾀ!$B:$I,2,0))) ->  | G101: =IF($E101="","",IF(ISERROR(VLOOKUP($E101,氏名ﾃﾞｰﾀ!$B:$I,3,0)),IF(ISERROR(VLOOKUP($E101,登録予定者!$B:$I,3,0)),"未登録",VLOOKUP($E101,登録予定者!$B:$I,3,0)),VLOOKUP($E101,氏名ﾃﾞｰﾀ!$B:$I,3,0))) ->  | H101: =IF($E101="","",IF(ISERROR(VLOOKUP($E101,氏名ﾃﾞｰﾀ!$B:$I,4,0)),IF(ISERROR(VLOOKUP($E101,登録予定者!$B:$I,4,0)),"未登録",VLOOKUP($E101,登録予定者!$B:$I,4,0)),VLOOKUP($E101,氏名ﾃﾞｰﾀ!$B:$I,4,0))) ->  | I101: =IF($E101="","",IF(ISERROR(VLOOKUP($E101,氏名ﾃﾞｰﾀ!$B:$I,5,0)),IF(ISERROR(VLOOKUP($E101,登録予定者!$B:$I,5,0)),"未登録",VLOOKUP($E101,登録予定者!$B:$I,5,0)),VLOOKUP($E101,氏名ﾃﾞｰﾀ!$B:$I,5,0))) ->  | J101: =IF($E101="","",IF(ISERROR(VLOOKUP($E101,氏名ﾃﾞｰﾀ!$B:$I,6,0)),IF(ISERROR(VLOOKUP($E101,登録予定者!$B:$I,6,0)),"未登録",VLOOKUP($E101,登録予定者!$B:$I,6,0)),VLOOKUP($E101,氏名ﾃﾞｰﾀ!$B:$I,6,0))) ->  | K101: 女 | N101: 2 | O101: =$O$19 ->  | P101: =IF(E101="","",CONCATENATE(F101," ",G101)) ->  | Q101: =IF(E101="","",J101) ->  | R101: =IF(E101="","",$F$17) ->  | T101: 1 | U101: =IF(E101="","",B101*10+4) ->  | V101: =IF(E101="","",G16) -> 
A102: =400000+B102*100+C102 -> 400002 | B102: 0 | C102: 2 | D102: 2 | F102: =IF($E102="","",IF(ISERROR(VLOOKUP($E102,氏名ﾃﾞｰﾀ!$B:$I,2,0)),IF(ISERROR(VLOOKUP($E102,登録予定者!$B:$I,2,0)),"未登録",VLOOKUP($E102,登録予定者!$B:$I,2,0)),VLOOKUP($E102,氏名ﾃﾞｰﾀ!$B:$I,2,0))) ->  | G102: =IF($E102="","",IF(ISERROR(VLOOKUP($E102,氏名ﾃﾞｰﾀ!$B:$I,3,0)),IF(ISERROR(VLOOKUP($E102,登録予定者!$B:$I,3,0)),"未登録",VLOOKUP($E102,登録予定者!$B:$I,3,0)),VLOOKUP($E102,氏名ﾃﾞｰﾀ!$B:$I,3,0))) ->  | H102: =IF($E102="","",IF(ISERROR(VLOOKUP($E102,氏名ﾃﾞｰﾀ!$B:$I,4,0)),IF(ISERROR(VLOOKUP($E102,登録予定者!$B:$I,4,0)),"未登録",VLOOKUP($E102,登録予定者!$B:$I,4,0)),VLOOKUP($E102,氏名ﾃﾞｰﾀ!$B:$I,4,0))) ->  | I102: =IF($E102="","",IF(ISERROR(VLOOKUP($E102,氏名ﾃﾞｰﾀ!$B:$I,5,0)),IF(ISERROR(VLOOKUP($E102,登録予定者!$B:$I,5,0)),"未登録",VLOOKUP($E102,登録予定者!$B:$I,5,0)),VLOOKUP($E102,氏名ﾃﾞｰﾀ!$B:$I,5,0))) ->  | J102: =IF($E102="","",IF(ISERROR(VLOOKUP($E102,氏名ﾃﾞｰﾀ!$B:$I,6,0)),IF(ISERROR(VLOOKUP($E102,登録予定者!$B:$I,6,0)),"未登録",VLOOKUP($E102,登録予定者!$B:$I,6,0)),VLOOKUP($E102,氏名ﾃﾞｰﾀ!$B:$I,6,0))) ->  | K102: 女 | N102: 2 | O102: =$O$19 ->  | P102: =IF(E102="","",CONCATENATE(F102," ",G102)) ->  | Q102: =IF(E102="","",J102) ->  | R102: =IF(E102="","",$F$17) ->  | T102: 1 | U102: =IF(E102="","",B102*10+4) -> 
A103: =400000+B103*100+C103 -> 400003 | B103: 0 | C103: 3 | D103: 3 | F103: =IF($E103="","",IF(ISERROR(VLOOKUP($E103,氏名ﾃﾞｰﾀ!$B:$I,2,0)),IF(ISERROR(VLOOKUP($E103,登録予定者!$B:$I,2,0)),"未登録",VLOOKUP($E103,登録予定者!$B:$I,2,0)),VLOOKUP($E103,氏名ﾃﾞｰﾀ!$B:$I,2,0))) ->  | G103: =IF($E103="","",IF(ISERROR(VLOOKUP($E103,氏名ﾃﾞｰﾀ!$B:$I,3,0)),IF(ISERROR(VLOOKUP($E103,登録予定者!$B:$I,3,0)),"未登録",VLOOKUP($E103,登録予定者!$B:$I,3,0)),VLOOKUP($E103,氏名ﾃﾞｰﾀ!$B:$I,3,0))) ->  | H103: =IF($E103="","",IF(ISERROR(VLOOKUP($E103,氏名ﾃﾞｰﾀ!$B:$I,4,0)),IF(ISERROR(VLOOKUP($E103,登録予定者!$B:$I,4,0)),"未登録",VLOOKUP($E103,登録予定者!$B:$I,4,0)),VLOOKUP($E103,氏名ﾃﾞｰﾀ!$B:$I,4,0))) ->  | I103: =IF($E103="","",IF(ISERROR(VLOOKUP($E103,氏名ﾃﾞｰﾀ!$B:$I,5,0)),IF(ISERROR(VLOOKUP($E103,登録予定者!$B:$I,5,0)),"未登録",VLOOKUP($E103,登録予定者!$B:$I,5,0)),VLOOKUP($E103,氏名ﾃﾞｰﾀ!$B:$I,5,0))) ->  | J103: =IF($E103="","",IF(ISERROR(VLOOKUP($E103,氏名ﾃﾞｰﾀ!$B:$I,6,0)),IF(ISERROR(VLOOKUP($E103,登録予定者!$B:$I,6,0)),"未登録",VLOOKUP($E103,登録予定者!$B:$I,6,0)),VLOOKUP($E103,氏名ﾃﾞｰﾀ!$B:$I,6,0))) ->  | K103: 女 | N103: 2 | O103: =$O$19 ->  | P103: =IF(E103="","",CONCATENATE(F103," ",G103)) ->  | Q103: =IF(E103="","",J103) ->  | R103: =IF(E103="","",$F$17) ->  | T103: 1 | U103: =IF(E103="","",B103*10+4) -> 

Sheet 男子申込書
A1: 令和４年度 新春駅伝競走大会（４・５・６支部）申込書 男子用
A3: =CONCATENATE("第",入力ｼｰﾄ!F17,"支部 学校番号",入力ｼｰﾄ!F18) -> 第支部 学校番号
A4: 学校名 | C4: =入力ｼｰﾄ!F2 -> 0 | K4: 学校 所在地 | M4: =CONCATENATE("〒",入力ｼｰﾄ!F4) -> 〒
M5: =入力ｼｰﾄ!F5 -> 0
A6: 学校長名 | C6: =入力ｼｰﾄ!F3 -> 0 | I6: 印 | K6: 顧問名 | M6: =入力ｼｰﾄ!F8 -> 0 | S6: 印
A7: 省略 学校名 | C7: =入力ｼｰﾄ!O19 ->  | H7: 電話番号 （学校） | J7: =入力ｼｰﾄ!F6 -> 0 | N7: 顧問 連絡先 | P7: =入力ｼｰﾄ!F9 -> 0
A8: Ａチーム | K8: Ｄチーム
A9: 区間 | B9: 登録番号 | D9: 氏名 | F9: 学年 | G9: 健康診断結果 | K9: 区間 | L9: 登録番号 | N9: 氏名 | P9: 学年 | Q9: 健康診断結果
A10: 第１区 | B10: =IF(入力ｼｰﾄ!E24="","",入力ｼｰﾄ!E24) ->  | C10: =CONCATENATE(入力ｼｰﾄ!F24," ",入力ｼｰﾄ!G24) ->  | F10: =入力ｼｰﾄ!J24 ->  | G10: 出場は（ 可 ・ 否 ） | K10: 第１区 | L10: =IF(入力ｼｰﾄ!E45="","",入力ｼｰﾄ!E45) ->  | M10: =CONCATENATE(入力ｼｰﾄ!F45," ",入力ｼｰﾄ!G45) ->  | P10: =入力ｼｰﾄ!J45 ->  | Q10: 出場は（ 可 ・ 否 ）
A11: 第２区 | B11: =IF(入力ｼｰﾄ!E25="","",入力ｼｰﾄ!E25) ->  | C11: =CONCATENATE(入力ｼｰﾄ!F25," ",入力ｼｰﾄ!G25) ->  | F11: =入力ｼｰﾄ!J25 ->  | G11: 出場は（ 可 ・ 否 ） | K11: 第２区 | L11: =IF(入力ｼｰﾄ!E46="","",入力ｼｰﾄ!E46) ->  | M11: =CONCATENATE(入力ｼｰﾄ!F46," ",入力ｼｰﾄ!G46) ->  | P11: =入力ｼｰﾄ!J46 ->  | Q11: 出場は（ 可 ・ 否 ）
A12: 第３区 | B12: =IF(入力ｼｰﾄ!E26="","",入力ｼｰﾄ!E26) ->  | C12: =CONCATENATE(入力ｼｰﾄ!F26," ",入力ｼｰﾄ!G26) ->  | F12: =入力ｼｰﾄ!J26 ->  | G12: 出場は（ 可 ・ 否 ） | K12: 第３区 | L12: =IF(入力ｼｰﾄ!E47="","",入力ｼｰﾄ!E47) ->  | M12: =CONCATENATE(入力ｼｰﾄ!F47," ",入力ｼｰﾄ!G47) ->  | P12: =入力ｼｰﾄ!J47 ->  | Q12: 出場は（ 可 ・ 否 ）
A13: 第４区 | B13: =IF(入力ｼｰﾄ!E27="","",入力ｼｰﾄ!E27) ->  | C13: =CONCATENATE(入力ｼｰﾄ!F27," ",入力ｼｰﾄ!G27) ->  | F13: =入力ｼｰﾄ!J27 ->  | G13: 出場は（ 可 ・ 否 ） | K13: 第４区 | L13: =IF(入力ｼｰﾄ!E48="","",入力ｼｰﾄ!E48) ->  | M13: =CONCATENATE(入力ｼｰﾄ!F48," ",入力ｼｰﾄ!G48) ->  | P13: =入力ｼｰﾄ!J48 ->  | Q13: 出場は（ 可 ・ 否 ）
A14: 補欠 | B14: =IF(入力ｼｰﾄ!E28="","",入力ｼｰﾄ!E28) ->  | C14: =CONCATENATE(入力ｼｰﾄ!F28," ",入力ｼｰﾄ!G28) ->  | F14: =入力ｼｰﾄ!J28 ->  | G14: 出場は（ 可 ・ 否 ） | K14: 補欠 | L14: =IF(入力ｼｰﾄ!E49="","",入力ｼｰﾄ!E49) ->  | M14: =CONCATENATE(入力ｼｰﾄ!F49," ",入力ｼｰﾄ!G49) ->  | P14: =入力ｼｰﾄ!J49 ->  | Q14: 出場は（ 可 ・ 否 ）
A15: 補欠 | B15: =IF(入力ｼｰﾄ!E29="","",入力ｼｰﾄ!E29) ->  | C15: =CONCATENATE(入力ｼｰﾄ!F29," ",入力ｼｰﾄ!G29) ->  | F15: =入力ｼｰﾄ!J29 ->  | G15: 出場は（ 可 ・ 否 ） | K15: 補欠 | L15: =IF(入力ｼｰﾄ!E50="","",入力ｼｰﾄ!E50) ->  | M15: =CONCATENATE(入力ｼｰﾄ!F50," ",入力ｼｰﾄ!G50) ->  | P15: =入力ｼｰﾄ!J50 ->  | Q15: 出場は（ 可 ・ 否 ）
A16: Ｂチーム | K16: Ｅチーム
A17: 区間 | B17: 登録番号 | D17: 氏名 | F17: 学年 | G17: 健康診断結果 | K17: 区間 | L17: 登録番号 | N17: 氏名 | P17: 学年 | Q17: 健康診断結果
A18: 第１区 | B18: =IF(入力ｼｰﾄ!E31="","",入力ｼｰﾄ!E31) ->  | C18: =CONCATENATE(入力ｼｰﾄ!F31," ",入力ｼｰﾄ!G31) ->  | F18: =入力ｼｰﾄ!J31 ->  | G18: 出場は（ 可 ・ 否 ） | K18: 第１区 | L18: =IF(入力ｼｰﾄ!E52="","",入力ｼｰﾄ!E52) ->  | M18: =CONCATENATE(入力ｼｰﾄ!F52," ",入力ｼｰﾄ!G52) ->  | P18: =入力ｼｰﾄ!J52 ->  | Q18: 出場は（ 可 ・ 否 ）
A19: 第２区 | B19: =IF(入力ｼｰﾄ!E32="","",入力ｼｰﾄ!E32) ->  | C19: =CONCATENATE(入力ｼｰﾄ!F32," ",入力ｼｰﾄ!G32) ->  | F19: =入力ｼｰﾄ!J32 ->  | G19: 出場は（ 可 ・ 否 ） | K19: 第２区 | L19: =IF(入力ｼｰﾄ!E53="","",入力ｼｰﾄ!E53) ->  | M19: =CONCATENATE(入力ｼｰﾄ!F53," ",入力ｼｰﾄ!G53) ->  | P19: =入力ｼｰﾄ!J53 ->  | Q19: 出場は（ 可 ・ 否 ）
A20: 第３区 | B20: =IF(入力ｼｰﾄ!E33="","",入力ｼｰﾄ!E33) ->  | C20: =CONCATENATE(入力ｼｰﾄ!F33," ",入力ｼｰﾄ!G33) ->  | F20: =入力ｼｰﾄ!J33 ->  | G20: 出場は（ 可 ・ 否 ） | K20: 第３区 | L20: =IF(入力ｼｰﾄ!E54="","",入力ｼｰﾄ!E54) ->  | M20: =CONCATENATE(入力ｼｰﾄ!F54," ",入力ｼｰﾄ!G54) ->  | P20: =入力ｼｰﾄ!J54 ->  | Q20: 出場は（ 可 ・ 否 ）
A21: 第４区 | B21: =IF(入力ｼｰﾄ!E34="","",入力ｼｰﾄ!E34) ->  | C21: =CONCATENATE(入力ｼｰﾄ!F34," ",入力ｼｰﾄ!G34) ->  | F21: =入力ｼｰﾄ!J34 ->  | G21: 出場は（ 可 ・ 否 ） | K21: 第４区 | L21: =IF(入力ｼｰﾄ!E55="","",入力ｼｰﾄ!E55) ->  | M21: =CONCATENATE(入力ｼｰﾄ!F55," ",入力ｼｰﾄ!G55) ->  | P21: =入力ｼｰﾄ!J55 ->  | Q21: 出場は（ 可 ・ 否 ）
A22: 補欠 | B22: =IF(入力ｼｰﾄ!E35="","",入力ｼｰﾄ!E35) ->  | C22: =CONCATENATE(入力ｼｰﾄ!F35," ",入力ｼｰﾄ!G35) ->  | F22: =入力ｼｰﾄ!J35 ->  | G22: 出場は（ 可 ・ 否 ） | K22: 補欠 | L22: =IF(入力ｼｰﾄ!E56="","",入力ｼｰﾄ!E56) ->  | M22: =CONCATENATE(入力ｼｰﾄ!F56," ",入力ｼｰﾄ!G56) ->  | P22: =入力ｼｰﾄ!J56 ->  | Q22: 出場は（ 可 ・ 否 ）
A23: 補欠 | B23: =IF(入力ｼｰﾄ!E36="","",入力ｼｰﾄ!E36) ->  | C23: =CONCATENATE(入力ｼｰﾄ!F36," ",入力ｼｰﾄ!G36) ->  | F23: =入力ｼｰﾄ!J36 ->  | G23: 出場は（ 可 ・ 否 ） | K23: 補欠 | L23: =IF(入力ｼｰﾄ!E57="","",入力ｼｰﾄ!E57) ->  | M23: =CONCATENATE(入力ｼｰﾄ!F57," ",入力ｼｰﾄ!G57) ->  | P23: =入力ｼｰﾄ!J57 ->  | Q23: 出場は（ 可 ・ 否 ）
A24: Cチーム
A25: 区間 | B25: 登録番号 | D25: 氏名 | F25: 学年 | G25: 健康診断結果
A26: 第１区 | B26: =IF(入力ｼｰﾄ!E38="","",入力ｼｰﾄ!E38) ->  | C26: =CONCATENATE(入力ｼｰﾄ!F38," ",入力ｼｰﾄ!G38) ->  | F26: =入力ｼｰﾄ!J38 ->  | G26: 出場は（ 可 ・ 否 ）
A27: 第２区 | B27: =IF(入力ｼｰﾄ!E39="","",入力ｼｰﾄ!E39) ->  | C27: =CONCATENATE(入力ｼｰﾄ!F39," ",入力ｼｰﾄ!G39) ->  | F27: =入力ｼｰﾄ!J39 ->  | G27: 出場は（ 可 ・ 否 ）
A28: 第３区 | B28: =IF(入力ｼｰﾄ!E40="","",入力ｼｰﾄ!E40) ->  | C28: =CONCATENATE(入力ｼｰﾄ!F40," ",入力ｼｰﾄ!G40) ->  | F28: =入力ｼｰﾄ!J40 ->  | G28: 出場は（ 可 ・ 否 ）
A29: 第４区 | B29: =IF(入力ｼｰﾄ!E41="","",入力ｼｰﾄ!E41) ->  | C29: =CONCATENATE(入力ｼｰﾄ!F41," ",入力ｼｰﾄ!G41) ->  | F29: =入力ｼｰﾄ!J41 ->  | G29: 出場は（ 可 ・ 否 ）
A30: 補欠 | B30: =IF(入力ｼｰﾄ!E42="","",入力ｼｰﾄ!E42) ->  | C30: =CONCATENATE(入力ｼｰﾄ!F42," ",入力ｼｰﾄ!G42) ->  | F30: =入力ｼｰﾄ!J42 ->  | G30: 出場は（ 可 ・ 否 ）
A31: 補欠 | B31: =IF(入力ｼｰﾄ!E43="","",入力ｼｰﾄ!E43) ->  | C31: =CONCATENATE(入力ｼｰﾄ!F43," ",入力ｼｰﾄ!G43) ->  | F31: =入力ｼｰﾄ!J43 ->  | G31: 出場は（ 可 ・ 否 ）
A32: ＊複数チーム参加する場合には補欠は他のチームのメンバーと同じ者が重なってもよい。
A33: ※ナンバーはチーム別の番号で、後日郵送するプログラム参照のこと。
A35: ロードレース
A37: ナンバー | B37: 登録番号 | D37: 氏名 | F37: 学年 | G37: 健康診断結果
A38: ※ | B38: =IF(入力ｼｰﾄ!E59="","",入力ｼｰﾄ!E59) ->  | C38: =CONCATENATE(入力ｼｰﾄ!F59," ",入力ｼｰﾄ!G59) ->  | F38: =入力ｼｰﾄ!J59 ->  | G38: 出場は（ 可 ・ 否 ）
A39: ※ | B39: =IF(入力ｼｰﾄ!E60="","",入力ｼｰﾄ!E60) ->  | C39: =CONCATENATE(入力ｼｰﾄ!F60," ",入力ｼｰﾄ!G60) ->  | F39: =入力ｼｰﾄ!J60 ->  | G39: 出場は（ 可 ・ 否 ）
A40: ※ | B40: =IF(入力ｼｰﾄ!E61="","",入力ｼｰﾄ!E61) ->  | C40: =CONCATENATE(入力ｼｰﾄ!F61," ",入力ｼｰﾄ!G61) ->  | F40: =入力ｼｰﾄ!J61 ->  | G40: 出場は（ 可 ・ 否 ）
A41: ※ナンバーは個人別の番号で、後日郵送するプログラム参照のこと。
A43: 顧問名 （審判） | C43: =入力ｼｰﾄ!F10 -> 0 | G43: 希望審判 | I43: =IF(入力ｼｰﾄ!F11="","",入力ｼｰﾄ!F11) -> 
A44: ＊複数名の審判をお願いできる場合にはすべての方のお名前をお書きください。
B46: 駅伝参加費 | E46: ﾛｰﾄﾞﾚｰｽ参加費 | H46: プログラム冊数
C47: =入力ｼｰﾄ!F14 -> 0 | F47: =入力ｼｰﾄ!F15 -> 0 | I47: =入力ｼｰﾄ!F16 -> 1 | J47: 冊 | L47: 合計
B48: =C47*3000 -> 0 | E48: =F47*600 -> 0 | H48: =I47*600 -> 600 | K48: =B48+E48+H48 -> 600

Sheet 女子申込書
A1: 令和４年度 新春駅伝競走大会（４・５・６支部）申込書 女子用
A3: =CONCATENATE("第",入力ｼｰﾄ!F17,"支部 学校番号",入力ｼｰﾄ!F18) -> 第支部 学校番号
A4: 学校名 | C4: =入力ｼｰﾄ!F2 -> 0 | K4: 学校 所在地 | M4: =CONCATENATE("〒",入力ｼｰﾄ!F4) -> 〒
M5: =入力ｼｰﾄ!F5 -> 0
A6: 学校長名 | C6: =入力ｼｰﾄ!F3 -> 0 | I6: 印 | K6: 顧問名 | M6: =入力ｼｰﾄ!F8 -> 0 | S6: 印
A7: 省略 学校名 | C7: =入力ｼｰﾄ!O19 ->  | H7: 電話番号 （学校） | J7: =入力ｼｰﾄ!F6 -> 0 | N7: 顧問 連絡先 | P7: =入力ｼｰﾄ!F9 -> 0
A8: Ａチーム | K8: Ｄチーム
A9: 区間 | B9: 登録番号 | D9: 氏名 | F9: 学年 | G9: 健康診断結果 | K9: 区間 | L9: 登録番号 | N9: 氏名 | P9: 学年 | Q9: 健康診断結果
A10: 第１区 | B10: =IF(入力ｼｰﾄ!E66="","",入力ｼｰﾄ!E66) ->  | C10: =CONCATENATE(入力ｼｰﾄ!F66," ",入力ｼｰﾄ!G66) ->  | F10: =入力ｼｰﾄ!J66 ->  | G10: 出場は（ 可 ・ 否 ） | K10: 第１区 | L10: =IF(入力ｼｰﾄ!E87="","",入力ｼｰﾄ!E87) ->  | M10: =CONCATENATE(入力ｼｰﾄ!F87," ",入力ｼｰﾄ!G87) ->  | P10: =入力ｼｰﾄ!J87 ->  | Q10: 出場は（ 可 ・ 否 ）
A11: 第２区 | B11: =IF(入力ｼｰﾄ!E67="","",入力ｼｰﾄ!E67) ->  | C11: =CONCATENATE(入力ｼｰﾄ!F67," ",入力ｼｰﾄ!G67) ->  | F11: =入力ｼｰﾄ!J67 ->  | G11: 出場は（ 可 ・ 否 ） | K11: 第２区 | L11: =IF(入力ｼｰﾄ!E88="","",入力ｼｰﾄ!E88) ->  | M11: =CONCATENATE(入力ｼｰﾄ!F88," ",入力ｼｰﾄ!G88) ->  | P11: =入力ｼｰﾄ!J88 ->  | Q11: 出場は（ 可 ・ 否 ）
A12: 第３区 | B12: =IF(入力ｼｰﾄ!E68="","",入力ｼｰﾄ!E68) ->  | C12: =CONCATENATE(入力ｼｰﾄ!F68," ",入力ｼｰﾄ!G68) ->  | F12: =入力ｼｰﾄ!J68 ->  | G12: 出場は（ 可 ・ 否 ） | K12: 第３区 | L12: =IF(入力ｼｰﾄ!E89="","",入力ｼｰﾄ!E89) ->  | M12: =CONCATENATE(入力ｼｰﾄ!F89," ",入力ｼｰﾄ!G89) ->  | P12: =入力ｼｰﾄ!J89 ->  | Q12: 出場は（ 可 ・ 否 ）
A13: 第４区 | B13: =IF(入力ｼｰﾄ!E69="","",入力ｼｰﾄ!E69) ->  | C13: =CONCATENATE(入力ｼｰﾄ!F69," ",入力ｼｰﾄ!G69) ->  | F13: =入力ｼｰﾄ!J69 ->  | G13: 出場は（ 可 ・ 否 ） | K13: 第４区 | L13: =IF(入力ｼｰﾄ!E90="","",入力ｼｰﾄ!E90) ->  | M13: =CONCATENATE(入力ｼｰﾄ!F90," ",入力ｼｰﾄ!G90) ->  | P13: =入力ｼｰﾄ!J90 ->  | Q13: 出場は（ 可 ・ 否 ）
A14: 補欠 | B14: =IF(入力ｼｰﾄ!E70="","",入力ｼｰﾄ!E70) ->  | C14: =CONCATENATE(入力ｼｰﾄ!F70," ",入力ｼｰﾄ!G70) ->  | F14: =入力ｼｰﾄ!J70 ->  | G14: 出場は（ 可 ・ 否 ） | K14: 補欠 | L14: =IF(入力ｼｰﾄ!E91="","",入力ｼｰﾄ!E91) ->  | M14: =CONCATENATE(入力ｼｰﾄ!F91," ",入力ｼｰﾄ!G91) ->  | P14: =入力ｼｰﾄ!J91 ->  | Q14: 出場は（ 可 ・ 否 ）
A15: 補欠 | B15: =IF(入力ｼｰﾄ!E71="","",入力ｼｰﾄ!E71) ->  | C15: =CONCATENATE(入力ｼｰﾄ!F71," ",入力ｼｰﾄ!G71) ->  | F15: =入力ｼｰﾄ!J71 ->  | G15: 出場は（ 可 ・ 否 ） | K15: 補欠 | L15: =IF(入力ｼｰﾄ!E92="","",入力ｼｰﾄ!E92) ->  | M15: =CONCATENATE(入力ｼｰﾄ!F92," ",入力ｼｰﾄ!G92) ->  | P15: =入力ｼｰﾄ!J92 ->  | Q15: 出場は（ 可 ・ 否 ）
A16: Ｂチーム | K16: Ｅチーム
A17: 区間 | B17: 登録番号 | D17: 氏名 | F17: 学年 | G17: 健康診断結果 | K17: 区間 | L17: 登録番号 | N17: 氏名 | P17: 学年 | Q17: 健康診断結果
A18: 第１区 | B18: =IF(入力ｼｰﾄ!E73="","",入力ｼｰﾄ!E73) ->  | C18: =CONCATENATE(入力ｼｰﾄ!F73," ",入力ｼｰﾄ!G73) ->  | F18: =入力ｼｰﾄ!J73 ->  | G18: 出場は（ 可 ・ 否 ） | K18: 第１区 | L18: =IF(入力ｼｰﾄ!E94="","",入力ｼｰﾄ!E94) ->  | M18: =CONCATENATE(入力ｼｰﾄ!F94," ",入力ｼｰﾄ!G94) ->  | P18: =入力ｼｰﾄ!J94 ->  | Q18: 出場は（ 可 ・ 否 ）
A19: 第２区 | B19: =IF(入力ｼｰﾄ!E74="","",入力ｼｰﾄ!E74) ->  | C19: =CONCATENATE(入力ｼｰﾄ!F74," ",入力ｼｰﾄ!G74) ->  | F19: =入力ｼｰﾄ!J74 ->  | G19: 出場は（ 可 ・ 否 ） | K19: 第２区 | L19: =IF(入力ｼｰﾄ!E95="","",入力ｼｰﾄ!E95) ->  | M19: =CONCATENATE(入力ｼｰﾄ!F95," ",入力ｼｰﾄ!G95) ->  | P19: =入力ｼｰﾄ!J95 ->  | Q19: 出場は（ 可 ・ 否 ）
A20: 第３区 | B20: =IF(入力ｼｰﾄ!E75="","",入力ｼｰﾄ!E75) ->  | C20: =CONCATENATE(入力ｼｰﾄ!F75," ",入力ｼｰﾄ!G75) ->  | F20: =入力ｼｰﾄ!J75 ->  | G20: 出場は（ 可 ・ 否 ） | K20: 第３区 | L20: =IF(入力ｼｰﾄ!E96="","",入力ｼｰﾄ!E96) ->  | M20: =CONCATENATE(入力ｼｰﾄ!F96," ",入力ｼｰﾄ!G96) ->  | P20: =入力ｼｰﾄ!J96 ->  | Q20: 出場は（ 可 ・ 否 ）
A21: 第４区 | B21: =IF(入力ｼｰﾄ!E76="","",入力ｼｰﾄ!E76) ->  | C21: =CONCATENATE(入力ｼｰﾄ!F76," ",入力ｼｰﾄ!G76) ->  | F21: =入力ｼｰﾄ!J76 ->  | G21: 出場は（ 可 ・ 否 ） | K21: 第４区 | L21: =IF(入力ｼｰﾄ!E97="","",入力ｼｰﾄ!E97) ->  | M21: =CONCATENATE(入力ｼｰﾄ!F97," ",入力ｼｰﾄ!G97) ->  | P21: =入力ｼｰﾄ!J97 ->  | Q21: 出場は（ 可 ・ 否 ）
A22: 補欠 | B22: =IF(入力ｼｰﾄ!E77="","",入力ｼｰﾄ!E77) ->  | C22: =CONCATENATE(入力ｼｰﾄ!F77," ",入力ｼｰﾄ!G77) ->  | F22: =入力ｼｰﾄ!J77 ->  | G22: 出場は（ 可 ・ 否 ） | K22: 補欠 | L22: =IF(入力ｼｰﾄ!E98="","",入力ｼｰﾄ!E98) ->  | M22: =CONCATENATE(入力ｼｰﾄ!F98," ",入力ｼｰﾄ!G98) ->  | P22: =入力ｼｰﾄ!J98 ->  | Q22: 出場は（ 可 ・ 否 ）
A23: 補欠 | B23: =IF(入力ｼｰﾄ!E78="","",入力ｼｰﾄ!E78) ->  | C23: =CONCATENATE(入力ｼｰﾄ!F78," ",入力ｼｰﾄ!G78) ->  | F23: =入力ｼｰﾄ!J78 ->  | G23: 出場は（ 可 ・ 否 ） | K23: 補欠 | L23: =IF(入力ｼｰﾄ!E99="","",入力ｼｰﾄ!E99) ->  | M23: =CONCATENATE(入力ｼｰﾄ!F99," ",入力ｼｰﾄ!G99) ->  | P23: =入力ｼｰﾄ!J99 ->  | Q23: 出場は（ 可 ・ 否 ）
A24: Cチーム
A25: 区間 | B25: 登録番号 | D25: 氏名 | F25: 学年 | G25: 健康診断結果
A26: 第１区 | B26: =IF(入力ｼｰﾄ!E80="","",入力ｼｰﾄ!E80) ->  | C26: =CONCATENATE(入力ｼｰﾄ!F80," ",入力ｼｰﾄ!G80) ->  | F26: =入力ｼｰﾄ!J80 ->  | G26: 出場は（ 可 ・ 否 ）
A27: 第２区 | B27: =IF(入力ｼｰﾄ!E81="","",入力ｼｰﾄ!E81) ->  | C27: =CONCATENATE(入力ｼｰﾄ!F81," ",入力ｼｰﾄ!G81) ->  | F27: =入力ｼｰﾄ!J81 ->  | G27: 出場は（ 可 ・ 否 ）
A28: 第３区 | B28: =IF(入力ｼｰﾄ!E82="","",入力ｼｰﾄ!E82) ->  | C28: =CONCATENATE(入力ｼｰﾄ!F82," ",入力ｼｰﾄ!G82) ->  | F28: =入力ｼｰﾄ!J82 ->  | G28: 出場は（ 可 ・ 否 ）
A29: 第４区 | B29: =IF(入力ｼｰﾄ!E83="","",入力ｼｰﾄ!E83) ->  | C29: =CONCATENATE(入力ｼｰﾄ!F83," ",入力ｼｰﾄ!G83) ->  | F29: =入力ｼｰﾄ!J83 ->  | G29: 出場は（ 可 ・ 否 ）
A30: 補欠 | B30: =IF(入力ｼｰﾄ!E84="","",入力ｼｰﾄ!E84) ->  | C30: =CONCATENATE(入力ｼｰﾄ!F84," ",入力ｼｰﾄ!G84) ->  | F30: =入力ｼｰﾄ!J84 ->  | G30: 出場は（ 可 ・ 否 ）
A31: 補欠 | B31: =IF(入力ｼｰﾄ!E85="","",入力ｼｰﾄ!E85) ->  | C31: =CONCATENATE(入力ｼｰﾄ!F85," ",入力ｼｰﾄ!G85) ->  | F31: =入力ｼｰﾄ!J85 ->  | G31: 出場は（ 可 ・ 否 ）
A32: ＊複数チーム参加する場合には補欠は他のチームのメンバーと同じ者が重なってもよい。
A33: ※ナンバーはチーム別の番号で、後日郵送するプログラム参照のこと。
A35: ロードレース
A37: ナンバー | B37: 登録番号 | D37: 氏名 | F37: 学年 | G37: 健康診断結果
A38: ※ | B38: =IF(入力ｼｰﾄ!E101="","",入力ｼｰﾄ!E101) ->  | C38: =CONCATENATE(入力ｼｰﾄ!F101," ",入力ｼｰﾄ!G101) ->  | F38: =入力ｼｰﾄ!J101 ->  | G38: 出場は（ 可 ・ 否 ）
A39: ※ | B39: =IF(入力ｼｰﾄ!E102="","",入力ｼｰﾄ!E102) ->  | C39: =CONCATENATE(入力ｼｰﾄ!F102," ",入力ｼｰﾄ!G102) ->  | F39: =入力ｼｰﾄ!J102 ->  | G39: 出場は（ 可 ・ 否 ）
A40: ※ | B40: =IF(入力ｼｰﾄ!E103="","",入力ｼｰﾄ!E103) ->  | C40: =CONCATENATE(入力ｼｰﾄ!F103," ",入力ｼｰﾄ!G103) ->  | F40: =入力ｼｰﾄ!J103 ->  | G40: 出場は（ 可 ・ 否 ）
A41: ※ナンバーは個人別の番号で、後日郵送するプログラム参照のこと。
A43: 顧問名 （審判） | C43: =入力ｼｰﾄ!F10 -> 0 | G43: 希望審判 | I43: =IF(入力ｼｰﾄ!F11="","",入力ｼｰﾄ!F11) -> 
A44: ＊複数名の審判をお願いできる場合にはすべての方のお名前をお書きください。
B46: 駅伝参加費 | E46: ﾛｰﾄﾞﾚｰｽ参加費 | H46: プログラム冊数
C47: =入力ｼｰﾄ!G14 -> 0 | F47: =入力ｼｰﾄ!G15 -> 0 | I47: =入力ｼｰﾄ!G16 -> 1 | J47: 冊 | L47: 合計
B48: =C47*3000 -> 0 | E48: =F47*600 -> 0 | H48: =I47*600 -> 600 | K48: =B48+E48+H48 -> 600

Sheet 省略学校名
A1: 支部 | B1: 1 | C1: コード | D1: ﾌﾘｶﾞﾅ | E1: 正式名称 | F1: 省略 | G1: 支部
A2: 学校番号 | B2: 2 | C2: ＤＢ | D2: N1 | E2: N2 | F2: N3 | G2: KC
A3: 101 | B3: 101 | C3: =500000+B3+LEFT(B3,1)*10000 -> 510101 | E3: 東京工業大学附属科学技術高校 | F3: 東工大附 | G3: =50+LEFT(B3,1) -> 51
A4: 103 | B4: 103 | C4: 510103 | E4: 東京都立芝商業高等学校 | F4: 都芝商 | G4: 51
A5: 105 | B5: 105 | C5: 510105 | E5: 東京都立三田高等学校 | F5: 都三田 | G5: 51
A6: 106 | B6: 106 | C6: 510106 | E6: 千代田区立九段中等教育学校 | F6: 九段中等 | G6: 51
A7: 107 | B7: 107 | C7: 510107 | E7: 麻布高等学校 | F7: 麻布 | G7: 51
A8: 108 | B8: 108 | C8: 510108 | E8: 慶應女子高等学校 | F8: 慶應女 | G8: 51
A9: 109 | B9: 109 | C9: 510109 | E9: 芝高等学校 | F9: 芝 | G9: 51
A10: 110 | B10: 110 | C10: 510110 | E10: 広尾学園高等学校 | F10: 広尾学園 | G10: 51
A11: 111 | B11: 111 | C11: 510111 | E11: 頌栄女子学院高等学校 | F11: 頌栄女 | G11: 51
A12: 112 | B12: 112 | C12: 510112 | E12: 正則高等学校 | F12: 正則 | G12: 51
A13: 113 | B13: 113 | C13: 510113 | E13: 聖心女子学院高等学校 | F13: 聖心女 | G13: 51
A14: 114 | B14: 114 | C14: 510114 | E14: 高輪高等学校 | F14: 高輪 | G14: 51
A15: 115 | B15: 115 | C15: 510115 | E15: 東海大高輪台高等学校 | F15: 東海大高輪台 | G15: 51
A16: 118 | B16: 118 | C16: 510118 | E16: 普連土学園高等学校 | F16: 普連土 | G16: 51
A17: 119 | B17: 119 | C17: 510119 | E17: 明治学院高等学校 | F17: 明治学院 | G17: 51
A18: 121 | B18: 121 | C18: 510121 | E18: 東京都立大田桜台高等学校 | F18: 都大田桜台 | G18: 51
A19: 122 | B19: 122 | C19: 510122 | E19: 東京都立大森高等学校 | F19: 都大森 | G19: 51
A20: 123 | B20: 123 | C20: 510123 | E20: 東京都立美原高等学校 | F20: 都美原 | G20: 51
A21: 124 | B21: 124 | C21: 510124 | E21: 東京都立蒲田高等学校 | F21: 都蒲田 | G21: 51
A22: 125 | B22: 125 | C22: 510125 | E22: 東京都立田園調布高等学校 | F22: 都田園調布 | G22: 51
A23: 127 | B23: 127 | C23: 510127 | E23: 東京都立つばさ総合高等学校 | F23: 都つばさ総合 | G23: 51
A24: 128 | B24: 128 | C24: 510128 | E24: 東京都立六郷工科高等学校 | F24: 都六郷工科 | G24: 51
A25: 129 | B25: 129 | C25: 510129 | E25: 東京都立雪谷高等学校 | F25: 都雪谷 | G25: 51
A26: 130 | B26: 130 | C26: 510130 | E26: 大森学園高等学校 | F26: 大森学園 | G26: 51
A27: 131 | B27: 131 | C27: 510131 | E27: 東京高等学校 | F27: 東京 | G27: 51
A28: 132 | B28: 132 | C28: 510132 | E28: 東京高等学校 | F28: 東京 | G28: 51
A29: 133 | B29: 133 | C29: 510133 | E29: 東京実業高等学校 | F29: 東京実 | G29: 51
A30: 134 | B30: 134 | C30: 510134 | E30: 日本体育大学荏原高等学校 | F30: 日体大荏原 | G30: 51
A31: 135 | B31: 135 | C31: 510135 | E31: 蒲田女子高等学校 | F31: 蒲田女 | G31: 51
A32: 136 | B32: 136 | C32: 510136 | E32: 東京都立国際高等学校 | F32: 都国際 | G32: 51
A33: 137 | B33: 137 | C33: 510137 | E33: 東京都立駒場高等学校 | F33: 都駒場 | G33: 51
A34: 138 | B34: 138 | C34: 510138 | E34: 東京都立駒場高等学校 | F34: 都駒場 | G34: 51
A35: 139 | B35: 139 | C35: 510139 | E35: 東京都立目黒高等学校 | F35: 都目黒 | G35: 51
A36: 140 | B36: 140 | C36: 510140 | E36: 自由ヶ丘学園高等学校 | F36: 自由ヶ丘学園 | G36: 51
A37: 141 | B37: 141 | C37: 510141 | E37: 東京都立桜修館中等教育学校 | F37: 都桜修館中等 | G37: 51
A38: 142 | B38: 142 | C38: 510142 | E38: 日本工業大学駒場高等学校 | F38: 日本工大駒場 | G38: 51
A39: 143 | B39: 143 | C39: 510143 | E39: 東京学園高等学校 | F39: 東京学園 | G39: 51
A40: 145 | B40: 145 | C40: 510145 | E40: 目黒日本大学高等学校 | F40: 目黒日大 | G40: 51
A41: 146 | B41: 146 | C41: 510146 | E41: 目黒学院高等学校 | F41: 目黒学院 | G41: 51
A42: 147 | B42: 147 | C42: 510147 | E42: 多摩大学目黒高等学校 | F42: 多摩大目黒 | G42: 51
A43: 148 | B43: 148 | C43: 510148 | E43: 八雲学園高等学校 | F43: 八雲学園 | G43: 51
A44: 149 | B44: 149 | C44: 510149 | E44: 東京都立大崎高等学校 | F44: 都大崎 | G44: 51
A45: 150 | B45: 150 | C45: 510150 | E45: 東京都立小山台高等学校 | F45: 都小山台 | G45: 51
A46: 152 | B46: 152 | C46: 510152 | E46: 東京都立八潮高等学校 | F46: 都八潮 | G46: 51
A47: 153 | B47: 153 | C47: 510153 | E47: 東京都立産業技術高等専門学校品川 | F47: 産技高専品川 | G47: 51
A48: 154 | B48: 154 | C48: 510154 | E48: 品川翔英高等学校 | F48: 品川翔英 | G48: 51
A49: 155 | B49: 155 | C49: 510155 | E49: 攻玉社高等学校 | F49: 攻玉社 | G49: 51
A50: 156 | B50: 156 | C50: 510156 | E50: 香蘭女学校 | F50: 香蘭女 | G50: 51
A51: 158 | B51: 158 | C51: 510158 | E51: 青稜高等学校 | F51: 青稜 | G51: 51
A52: 159 | B52: 159 | C52: 510159 | E52: 朋優学院高等学校 | F52: 朋優 | G52: 51
A53: 161 | B53: 161 | C53: 510161 | E53: 立正高等学校 | F53: 立正 | G53: 51
A54: 162 | B54: 162 | C54: 510162 | E54: 文教大学付属高等学校 | F54: 文教大付 | G54: 51
A55: 166 | B55: 166 | C55: 510166 | E55: 東京都立日比谷高等学校 | F55: 都日比谷 | G55: 51
A56: 167 | B56: 167 | C56: 510167 | E56: 大妻高等学校 | F56: 大妻 | G56: 51
A57: 170 | B57: 170 | C57: 510170 | E57: 共立女子高等学校 | F57: 共立女 | G57: 51
A58: 171 | B58: 171 | C58: 510171 | E58: 錦城学園高等学校 | F58: 錦城学園 | G58: 51
A59: 172 | B59: 172 | C59: 510172 | E59: 暁星高等学校 | F59: 暁星 | G59: 51
A60: 174 | B60: 174 | C60: 510174 | E60: 白百合学園高等学校 | F60: 白百合 | G60: 51
A61: 175 | B61: 175 | C61: 510175 | E61: 女子学院高等学校 | F61: 女子学院 | G61: 51
A62: 176 | B62: 176 | C62: 510176 | E62: 正則学園高等学校 | F62: 正則学園 | G62: 51
A63: 179 | B63: 179 | C63: 510179 | E63: 東洋高等学校 | F63: 東洋 | G63: 51
A64: 180 | B64: 180 | C64: 510180 | E64: 二松學舍大学附属高等学校 | F64: 二松學舍大附 | G64: 51
A65: 184 | B65: 184 | C65: 510184 | E65: 和洋九段女子高等学校 | F65: 和洋九段女 | G65: 51
A66: 186 | B66: 186 | C66: 510186 | E66: 東京都立晴海総合高等学校 | F66: 都晴海総合 | G66: 51
A67: 188 | B67: 188 | C67: =500000+B67+LEFT(B67,1)*10000 -> 510188 | E67: 開智日本橋学園高等学校 | F67: 開智日本橋 | G67: =50+LEFT(B67,1) -> 51
A68: 189 | B68: 189 | C68: 510189 | E68: 東京都立青山高等学校 | F68: 都青山 | G68: 51
A69: 192 | B69: 192 | C69: 510192 | E69: 東京都立広尾高等学校 | F69: 都広尾 | G69: 51
A70: 194 | B70: 194 | C70: 510194 | E70: 青山学院高等学校 | F70: 青山学院 | G70: 51
A71: 195 | B71: 195 | C71: 510195 | E71: 関東国際高等学校 | F71: 関東国際 | G71: 51
A72: 196 | B72: 196 | C72: 510196 | E72: 國學院高等学校 | F72: 國學院 | G72: 51
A73: 199 | B73: 199 | C73: 510199 | E73: 渋谷教育学園渋谷高等学校 | F73: 渋谷 | G73: 51
A74: 201 | B74: 201 | C74: 520201 | E74: 東京都立青井高等学校 | F74: 都青井 | G74: 52
A75: 202 | B75: 202 | C75: 520202 | E75: 東京都立足立高等学校 | F75: 都足立 | G75: 52
A76: 203 | B76: 203 | C76: 520203 | E76: 東京都立足立工業高等学校 | F76: 都足立工 | G76: 52
A77: 204 | B77: 204 | C77: 520204 | E77: 東京都立足立新田高等学校 | F77: 都足立新田 | G77: 52
A78: 205 | B78: 205 | C78: 520205 | E78: 東京都立足立西高等学校 | F78: 都足立西 | G78: 52
A79: 206 | B79: 206 | C79: 520206 | E79: 東京都立足立東高等学校 | F79: 都足立東 | G79: 52
A80: 207 | B80: 207 | C80: 520207 | E80: 東京都立荒川商業高等学校 | F80: 都荒川商 | G80: 52
A81: 208 | B81: 208 | C81: 520208 | E81: 東京都立江北高等学校 | F81: 都江北 | G81: 52
A82: 209 | B82: 209 | C82: 520209 | E82: 東京都立淵江高等学校 | F82: 都淵江 | G82: 52
A83: 210 | B83: 210 | C83: 520210 | E83: 足立学園高等学校 | F83: 足立学園 | G83: 52
A84: 212 | B84: 212 | C84: 520212 | E84: 東京都立荒川工業高等学校 | F84: 都荒川工 | G84: 52
A85: 213 | B85: 213 | C85: 520213 | E85: 東京都立竹台高等学校 | F85: 都竹台 | G85: 52
A86: 214 | B86: 214 | C86: 520214 | E86: 開成高等学校 | F86: 開成 | G86: 52
A87: 220 | B87: 220 | C87: 520220 | E87: 東京都立江戸川高等学校 | F87: 都江戸川 | G87: 52
A88: 221 | B88: 221 | C88: 520221 | E88: 東京都立葛西工業高等学校 | F88: 都葛西工 | G88: 52
A89: 222 | B89: 222 | C89: 520222 | E89: 東京都立葛西南高等学校 | F89: 都葛西南 | G89: 52
A90: 223 | B90: 223 | C90: 520223 | E90: 東京都立小岩高等学校 | F90: 都小岩 | G90: 52
A91: 224 | B91: 224 | C91: 520224 | E91: 東京都立小松川高等学校 | F91: 都小松川 | G91: 52
A92: 225 | B92: 225 | C92: 520225 | E92: 東京都立篠崎高等学校 | F92: 都篠崎 | G92: 52
A93: 226 | B93: 226 | C93: 520226 | E93: 東京都立紅葉川高等学校 | F93: 都紅葉川 | G93: 52
A94: 227 | B94: 227 | C94: 520227 | E94: 愛国高等学校 | F94: 愛国 | G94: 52
A95: 228 | B95: 228 | C95: 520228 | E95: 江戸川女子高等学校 | F95: 江戸川女 | G95: 52
A96: 229 | B96: 229 | C96: 520229 | E96: 関東一高等学校 | F96: 関東一 | G96: 52
A97: 230 | B97: 230 | C97: 520230 | E97: 東京都立葛飾商業高等学校 | F97: 都葛飾商 | G97: 52
A98: 231 | B98: 231 | C98: 520231 | E98: 東京都立葛飾野高等学校 | F98: 都葛飾野 | G98: 52
A99: 232 | B99: 232 | C99: 520232 | E99: 東京都立葛飾ろう学校 | F99: 都葛飾ろう | G99: 52
A100: 233 | B100: 233 | C100: 520233 | E100: 東京都立農産高等学校 | F100: 都農産 | G100: 52
A101: 234 | B101: 234 | C101: 520234 | E101: 東京都立葛飾総合高等学校 | F101: 都葛飾総合 | G101: 52
A102: 236 | B102: 236 | C102: 520236 | E102: 東京都立南葛飾高等学校 | F102: 都南葛飾 | G102: 52
A103: 237 | B103: 237 | C103: 520237 | E103: 共栄学園高等学校 | F103: 共栄 | G103: 52
A104: 238 | B104: 238 | C104: 520238 | E104: 修徳高等学校 | F104: 修徳 | G104: 52
A105: 239 | B105: 239 | C105: 520239 | E105: 芝浦工業大学附属高等学校 | F105: 芝浦工大附 | G105: 52
A106: 240 | B106: 240 | C106: 520240 | E106: 東京都立科学技術高等学校 | F106: 科学技術 | G106: 52
A107: 242 | B107: 242 | C107: 520242 | E107: 東京都立城東高等学校 | F107: 都城東 | G107: 52
A108: 243 | B108: 243 | C108: 520243 | E108: 東京都立墨田工業高等学校 | F108: 都墨田工 | G108: 52
A109: 244 | B109: 244 | C109: 520244 | E109: 東京都立第三商業高等学校 | F109: 都三商 | G109: 52
A110: 245 | B110: 245 | C110: 520245 | E110: 東京都立東高等学校 | F110: 都東 | G110: 52
A111: 246 | B111: 246 | C111: 520246 | E111: 東京都立深川高等学校 | F111: 都深川 | G111: 52
A112: 248 | B112: 248 | C112: 520248 | E112: 中央学院大学中央高等学校 | F112: 中央学大中央 | G112: 52
A113: 249 | B113: 249 | C113: 520249 | E113: かえつ有明高等学校 | F113: かえつ有明 | G113: 52
A114: 250 | B114: 250 | C114: 520250 | E114: 東京都立墨田川高等学校 | F114: 都墨田川 | G114: 52
A115: 251 | B115: 251 | C115: 520251 | E115: 東京都立本所高等学校 | F115: 都本所 | G115: 52
A116: 252 | B116: 252 | C116: 520252 | E116: 東京都立橘高等学校 | F116: 都橘 | G116: 52
A117: 254 | B117: 254 | C117: 520254 | E117: 東京都立両国高等学校 | F117: 都両国 | G117: 52
A118: 255 | B118: 255 | C118: 520255 | E118: 日本大学第一高等学校 | F118: 日大一 | G118: 52
A119: 256 | B119: 256 | C119: 520256 | E119: 安田学園高等学校 | F119: 安田 | G119: 52
A120: 257 | B120: 257 | C120: 520257 | E120: 立志舎高等学校 | F120: 立志舎 | G120: 52
A121: 259 | B121: 259 | C121: 520259 | E121: 東京都立日本橋高等学校 | F121: 都日本橋 | G121: 52
A122: 260 | B122: 260 | C122: 520260 | E122: 東京都立上野高等学校 | F122: 都上野 | G122: 52
A123: 261 | B123: 261 | C123: 520261 | E123: 東京都立蔵前工業高等学校 | F123: 都蔵前工 | G123: 52
A124: 262 | B124: 262 | C124: 520262 | E124: 東京都立忍岡高等学校 | F124: 都忍岡 | G124: 52
A125: 263 | B125: 263 | C125: 520263 | E125: 東京都立白高等学校 | F125: 都白 | G125: 52
A126: 264 | B126: 264 | C126: 520264 | E126: 岩倉高等学校 | F126: 岩倉 | G126: 52
A127: 265 | B127: 265 | C127: 520265 | E127: 上野学園高等学校 | F127: 上野学園 | G127: 52
A128: 270 | B128: 270 | C128: 520270 | E128: 筑波大学附属高等学校 | F128: 筑波大附 | G128: 52
A129: 271 | B129: 271 | C129: 520271 | E129: 東京都立小石川中等教育学校 | F129: 都小石川 | G129: 52
A130: 272 | B130: 272 | C130: 520272 | E130: 東京都立工芸高等学校 | F130: 都工芸 | G130: 52
A131: 273 | B131: 273 | C131: =500000+B131+LEFT(B131,1)*10000 -> 520273 | E131: 東京都立竹早高等学校 | F131: 都竹早 | G131: =50+LEFT(B131,1) -> 52
A132: 274 | B132: 274 | C132: 520274 | E132: 東京都立向丘高等学校 | F132: 都向丘 | G132: 52
A133: 275 | B133: 275 | C133: 520275 | E133: 郁文館高等学校 | F133: 郁文館 | G133: 52
A134: 276 | B134: 276 | C134: 520276 | E134: 京華高等学校 | F134: 京華 | G134: 52
A135: 277 | B135: 277 | C135: 520277 | E135: 東洋大学京北高等学校 | F135: 東洋大京北 | G135: 52
A136: 278 | B136: 278 | C136: 520278 | E136: 郁文館グローバル高等学校 | F136: 郁文館G | G136: 52
A137: 279 | B137: 279 | C137: 520279 | E137: 駒込高等学校 | F137: 駒込 | G137: 52
A138: 280 | B138: 280 | C138: 520280 | E138: 昭和第一高等学校 | F138: 昭和一 | G138: 52
A139: 282 | B139: 282 | C139: 520282 | E139: 獨協高等学校 | F139: 獨協 | G139: 52
A140: 283 | B140: 283 | C140: 520283 | E140: 日本大学豊山高等学校 | F140: 日大豊山 | G140: 52
A141: 284 | B141: 284 | C141: 520284 | E141: 文京学院大学女子高等学校 | F141: 文京学院 | G141: 52
A142: 285 | B142: 285 | C142: 520285 | E142: 京華商業高等学校 | F142: 京華商 | G142: 52
A143: 288 | B143: 288 | C143: 520288 | E143: 京華女子高等学校 | F143: 京華女 | G143: 52
A144: 290 | B144: 290 | C144: 520290 | E144: 東京都立大島高等学校 | F144: 都大島 | G144: 52
A145: 291 | B145: 291 | C145: 520291 | E145: 東京都立八丈高等学校 | F145: 都八丈 | G145: 52
A146: 292 | B146: 292 | C146: 520292 | E146: 東京都立産業技術高等専門学校荒川 | F146: 産技高専荒川 | G146: 52
A147: 293 | B147: 293 | C147: 520293 | E147: 東京都立大島海洋国際高等学校 | F147: 都海洋国際 | G147: 52
A148: 298 | B148: 298 | C148: 520298 | E148: 跡見学園高等学校 | F148: 跡見学園 | G148: 52
A149: 299 | B149: 299 | C149: 520299 | E149: お茶の水女子大学附属高等学校 | F149: お茶大附 | G149: 52
A150: 301 | B150: 301 | C150: 530301 | E150: 東京学芸大附属国際中等教育学校 | F150: 学大国際 | G150: 53
A151: 302 | B151: 302 | C151: 530302 | E151: 東京都立板橋高等学校 | F151: 都板橋 | G151: 53
A152: 303 | B152: 303 | C152: 530303 | E152: 東京都立大山高等学校 | F152: 都大山 | G152: 53
A153: 304 | B153: 304 | C153: 530304 | E153: 東京都立北園高等学校 | F153: 都北園 | G153: 53
A154: 305 | B154: 305 | C154: 530305 | E154: 東京都立北豊島工業高等学校 | F154: 都北豊島工 | G154: 53
A155: 306 | B155: 306 | C155: 530306 | E155: 東京都立板橋有徳高等学校 | F155: 都板橋有徳 | G155: 53
A156: 308 | B156: 308 | C156: 530308 | E156: 東京都立高島高等学校 | F156: 都高島 | G156: 53
A157: 310 | B157: 310 | C157: 530310 | E157: 淑徳高等学校 | F157: 淑徳 | G157: 53
A158: 311 | B158: 311 | C158: 530311 | E158: 城北高等学校 | F158: 城北 | G158: 53
A159: 312 | B159: 312 | C159: 530312 | E159: 大東文化大学第一高等学校 | F159: 大東一 | G159: 53
A160: 313 | B160: 313 | C160: 530313 | E160: 帝京高等学校 | F160: 帝京 | G160: 53
A161: 314 | B161: 314 | C161: 530314 | E161: 東京家政大学附属女子高等学校 | F161: 東京家政大附 | G161: 53
A162: 315 | B162: 315 | C162: 530315 | E162: 日本大学豊山女子高等学校 | F162: 日大豊山女 | G162: 53
A163: 316 | B163: 316 | C163: 530316 | E163: 東京都立赤羽商業高等学校 | F163: 都赤羽商 | G163: 53
A164: 317 | B164: 317 | C164: 530317 | E164: 東京都立飛鳥高等学校 | F164: 都飛鳥 | G164: 53
A165: 319 | B165: 319 | C165: 530319 | E165: 東京都立王子総合高等学校 | F165: 都王子総合 | G165: 53
A166: 323 | B166: 323 | C166: 530323 | E166: 順天高等学校 | F166: 順天 | G166: 53
A167: 324 | B167: 324 | C167: 530324 | E167: 女子聖学院高等学校 | F167: 女子聖学院 | G167: 53
A168: 326 | B168: 326 | C168: 530326 | E168: 聖学院高等学校 | F168: 聖学院 | G168: 53
A169: 327 | B169: 327 | C169: 530327 | E169: サレジアン国際学園高等学校 | F169: サレジアン | G169: 53
A170: 328 | B170: 328 | C170: 530328 | E170: 成立学園高等学校 | F170: 成立学園 | G170: 53
A171: 329 | B171: 329 | C171: 530329 | E171: 瀧野川女子学園高等学校 | F171: 瀧野川女 | G171: 53
A172: 330 | B172: 330 | C172: 530330 | E172: 東京成徳大学高等学校 | F172: 東京成徳 | G172: 53
A173: 331 | B173: 331 | C173: 530331 | E173: 武蔵野高等学校 | F173: 武蔵野 | G173: 53
A174: 332 | B174: 332 | C174: 530332 | E174: 東京成徳大学高等学校 | F174: 東京成徳 | G174: 53
A175: 334 | B175: 334 | C175: 530334 | E175: 東京都立戸山高等学校 | F175: 都戸山 | G175: 53
A176: 336 | B176: 336 | C176: 530336 | E176: 海城高等学校 | F176: 海城 | G176: 53
A177: 337 | B177: 337 | C177: 530337 | E177: 学習院女子高等科 | F177: 学習院女 | G177: 53
A178: 339 | B178: 339 | C178: 530339 | E178: 成城高等学校 | F178: 成城 | G178: 53
A179: 340 | B179: 340 | C179: 530340 | E179: 保善高等学校 | F179: 保善 | G179: 53
A180: 341 | B180: 341 | C180: 530341 | E180: 目白研心高等学校 | F180: 目白研心 | G180: 53
A181: 342 | B181: 342 | C181: 530342 | E181: 早稲田高等学校 | F181: 早稲田 | G181: 53
A182: 343 | B182: 343 | C182: 530343 | E182: 東京都立新宿高等学校 | F182: 都新宿 | G182: 53
A183: 344 | B183: 344 | C183: 530344 | E183: 東京都立千早高等学校 | F183: 都千早 | G183: 53
A184: 345 | B184: 345 | C184: 530345 | E184: 東京都立豊島高等学校 | F184: 都豊島 | G184: 53
A185: 346 | B185: 346 | C185: 530346 | E185: 東京都立文京高等学校 | F185: 都文京 | G185: 53
A186: 347 | B186: 347 | C186: 530347 | E186: 川村高等学校 | F186: 川村 | G186: 53
A187: 348 | B187: 348 | C187: 530348 | E187: 学習院高等科 | F187: 学習院 | G187: 53
A188: 349 | B188: 349 | C188: 530349 | E188: 昭和鉄道高等学校 | F188: 昭和鉄道 | G188: 53
A189: 350 | B189: 350 | C189: 530350 | E189: 十文字高等学校 | F189: 十文字 | G189: 53
A190: 351 | B190: 351 | C190: 530351 | E190: 淑徳巣鴨高等学校 | F190: 淑徳巣鴨 | G190: 53
A191: 353 | B191: 353 | C191: 530353 | E191: 巣鴨高等学校 | F191: 巣鴨 | G191: 53
A192: 356 | B192: 356 | C192: 530356 | E192: 豊島学院高等学校 | F192: 豊島学院 | G192: 53
A193: 357 | B193: 357 | C193: 530357 | E193: 豊南高等学校 | F193: 豊南 | G193: 53
A194: 358 | B194: 358 | C194: 530358 | E194: 本郷高等学校 | F194: 本郷 | G194: 53
A195: 359 | B195: 359 | C195: =500000+B195+LEFT(B195,1)*10000 -> 530359 | E195: 立教池袋高等学校 | F195: 立教池袋 | G195: =50+LEFT(B195,1) -> 53
A196: 360 | B196: 360 | C196: 530360 | E196: 東京都立井草高等学校 | F196: 都井草 | G196: 53
A197: 361 | B197: 361 | C197: 530361 | E197: 東京都立大泉高等学校 | F197: 都大泉 | G197: 53
A198: 362 | B198: 362 | C198: 530362 | E198: 東京都立大泉桜高等学校 | F198: 都大泉桜 | G198: 53
A199: 364 | B199: 364 | C199: 530364 | E199: 東京都立石神井高等学校 | F199: 都石神井 | G199: 53
A200: 366 | B200: 366 | C200: 530366 | E200: 東京都立田柄高等学校 | F200: 都田柄 | G200: 53
... 185 more rows

Sheet 氏名ﾃﾞｰﾀ (hidden)
A1: 0 | B1: ５桁 | C1: 2021,09,25現在 | D1: 名 | E1: ﾌﾘｶﾞﾅ（姓） | F1: ﾌﾘｶﾞﾅ（名） | G1: 学年 | I1: 性別
A2: 0.1 | B2: ５桁 | C2: 氏名 | D2: 全角 | E2: ﾌﾘｶﾞﾅ | F2: 半角 | G2: 学年
A3: 0.2 | B3: 半角 | C3: 性 | D3: 名 | E3: 性 | F3: 名 | G3: 半角
A4: 1 | B4: 10102 | C4: 古賀 | D4: 怜太郎 | E4: ｺｶﾞ | F4: ﾘｮｳﾀﾛｳ | G4: 1 | I4: 男
A5: 2 | B5: 10103 | C5: 南雲 | D5: 海斗 | E5: ﾅｸﾞﾓ | F5: ｶｲﾄ | G5: 1 | I5: 男
A6: 3 | B6: 10104 | C6: 大田 | D6: 圭悟 | E6: ｵｵﾀ | F6: ｹｲｺﾞ | G6: 2 | I6: 男
A7: 4 | B7: 10105 | C7: 中村 | D7: 旭 | E7: ﾅｶﾑﾗ | F7: ｱｻﾋ | G7: 1 | I7: 男
A8: 5 | B8: 10107 | C8: 入居 | D8: 泰成 | E8: ｲﾘｲ | F8: ﾀｲｾｲ | G8: 1 | I8: 男
A9: 6 | B9: 10108 | C9: 尾関 | D9: 空翔 | E9: ｵｾﾞｷ | F9: ｱｷﾄ | G9: 2 | I9: 男
A10: 7 | B10: 10109 | C10: 佐藤 | D10: 雄大 | E10: ｻﾄｳ | F10: ﾕｳﾀﾞｲ | G10: 2 | I10: 男
A11: 8 | B11: 10110 | C11: 稻見 | D11: 優和 | E11: ｲﾅﾐ | F11: ﾕｳﾄ | G11: 1 | I11: 男
A12: 9 | B12: 10111 | C12: 呉 | D12: 世成 | E12: ｵ | F12: ｾｿﾝ | G12: 2 | I12: 男
A13: 10 | B13: 10112 | C13: 鈴木 | D13: 聡介 | E13: ｽｽﾞｷ | F13: ｿｳｽｹ | G13: 1 | I13: 男
A14: 11 | B14: 10113 | C14: 磯野 | D14: 浩輝 | E14: ｲｿﾉ | F14: ｺｳｷ | G14: 2 | I14: 男
A15: 12 | B15: 10115 | C15: 一宅 | D15: 隆 | E15: ﾋﾔｹ | F15: ﾀｶｼ | G15: 1 | I15: 男
A16: 13 | B16: 10116 | C16: 菊地 | D16: 勇太 | E16: ｷｸﾁ | F16: ﾕｳﾀ | G16: 3 | I16: 男
A17: 14 | B17: 10117 | C17: 磯崎 | D17: 夏樹 | E17: ｲｿｻﾞｷ | F17: ﾅﾂｷ | G17: 3 | I17: 男
A18: 15 | B18: 10119 | C18: 多田 | D18: 匡志 | E18: ﾀﾀﾞ | F18: ｺｳｼ | G18: 3 | I18: 男
A19: 16 | B19: 10122 | C19: 政近 | D19: 怜汰 | E19: ﾏｻﾁｶ | F19: ﾘｮｳﾀ | G19: 3 | I19: 男
A20: 17 | B20: 10123 | C20: 新間 | D20: 陽太 | E20: ｼﾝﾏ | F20: ﾖｳﾀ | G20: 1 | I20: 男
A21: 18 | B21: 10124 | C21: 下田 | D21: 一颯 | E21: ｼﾓﾀﾞ | F21: ｲｯｻ | G21: 2 | I21: 男
A22: 19 | B22: 10125 | C22: 松本 | D22: 幸大 | E22: ﾏﾂﾓﾄ | F22: ｺｳﾀﾞｲ | G22: 1 | I22: 男
A23: 20 | B23: 10126 | C23: 石島 | D23: 和広 | E23: ｲｼｼﾞﾏ | F23: ｶｽﾞﾋﾛ | G23: 1 | I23: 男
A24: 21 | B24: 10127 | C24: 小野 | D24: 託実 | E24: ｵﾉ | F24: ﾀｸﾐ | G24: 1 | I24: 男
A25: 22 | B25: 10129 | C25: クラークソン | D25: 到漣 | E25: ｸﾗｰｸｿﾝ | F25: ﾄｳﾚﾝ | G25: 1 | I25: 男
A26: 23 | B26: 10151 | C26: 生野 | D26: 茉椰 | E26: ｼｮｳﾉ | F26: ﾏﾔ | G26: 2 | I26: 女
A27: 24 | B27: 10152 | C27: 鈴木 | D27: 望加 | E27: ｽｽﾞｷ | F27: ﾓｶ | G27: 2 | I27: 女
A28: 25 | B28: 10153 | C28: 栗原 | D28: 萌花 | E28: ｸﾘﾊﾗ | F28: ﾓｶ | G28: 1 | I28: 女
A29: 26 | B29: 10155 | C29: 坂口 | D29: 陽菜子 | E29: ｻｶｸﾞﾁ | F29: ﾋﾅｺ | G29: 1 | I29: 女
A30: 27 | B30: 10158 | C30: 上原 | D30: 玲奈 | E30: ｳｴﾊﾗ | F30: ﾚﾅ | G30: 3 | I30: 女
A31: 28 | B31: 10159 | C31: 竹間 | D31: 綾香 | E31: ﾀｹﾏ | F31: ｱﾔｶ | G31: 1 | I31: 女
A32: 29 | B32: 10160 | C32: 竹安 | D32: 結衣 | E32: ﾀｹﾔｽ | F32: ﾕｲ | G32: 1 | I32: 女
A33: 30 | B33: 10162 | C33: 綿貫 | D33: 倖和 | E33: ﾜﾀﾇｷ | F33: ｻﾁﾅ | G33: 1 | I33: 女
A34: 31 | B34: 10164 | C34: 柴原 | D34: 歩美 | E34: ｼﾊﾞﾊﾗ | F34: ｱﾕﾐ | G34: 3 | I34: 女
A35: 32 | B35: 10312 | C35: 髙橋 | D35: 隼人 | E35: ﾀｶﾊｼ | F35: ﾊｲﾄ | G35: 3 | I35: 男
A36: 33 | B36: 10331 | C36: 菊地 | D36: 泰清 | E36: ｷｸﾁ | F36: ﾀｲｾｲ | G36: 1 | I36: 男
A37: 34 | B37: 10332 | C37: 後藤 | D37: 穂高 | E37: ｺﾞﾄｳ | F37: ﾎﾀｶ | G37: 1 | I37: 男
A38: 35 | B38: 10333 | C38: 長谷川 | D38: 真大 | E38: ﾊｾｶﾞﾜ | F38: ﾏｻﾋﾛ | G38: 1 | I38: 男
A39: 36 | B39: 10351 | C39: 増田 | D39: 小桜 | E39: ﾏｽﾀﾞ | F39: ｺﾊﾙ | G39: 1 | I39: 女
A40: 37 | B40: 10352 | C40: 山本 | D40: 梨世 | E40: ﾔﾏﾓﾄ | F40: ﾘｾ | G40: 1 | I40: 女
A41: 38 | B41: 10501 | C41: 横溝 | D41: 祐悟 | E41: ﾖｺﾐｿﾞ | F41: ﾕｳｺﾞ | G41: 3 | I41: 男
A42: 39 | B42: 10502 | C42: 李 | D42: 想 | E42: ﾘ | F42: ｿｳ | G42: 3 | I42: 男
A43: 40 | B43: 10503 | C43: 秋山 | D43: 航太 | E43: ｱｷﾔﾏ | F43: ｺｳﾀ | G43: 2 | I43: 男
A44: 41 | B44: 10506 | C44: 岩﨑 | D44: 大雅 | E44: ｲﾜｻｷ | F44: ﾀｲｶﾞ | G44: 1 | I44: 男
A45: 42 | B45: 10507 | C45: 大澤 | D45: 恒太 | E45: ｵｵｻﾜ | F45: ｺｳﾀ | G45: 1 | I45: 男
A46: 43 | B46: 10508 | C46: 川口 | D46: 讃大 | E46: ｶﾜｸﾞﾁ | F46: ｻﾝﾀ | G46: 1 | I46: 男
A47: 44 | B47: 10509 | C47: 木下 | D47: 耕輔 | E47: ｷﾉｼﾀ | F47: ｺｳｽｹ | G47: 1 | I47: 男
A48: 45 | B48: 10510 | C48: 黒田 | D48: 敏正 | E48: ｸﾛﾀﾞ | F48: ﾄｼﾏｻ | G48: 1 | I48: 男
A49: 46 | B49: 10511 | C49: 下田 | D49: 秀太 | E49: ｼﾓﾀﾞ | F49: ｼｭｳﾀ | G49: 1 | I49: 男
A50: 47 | B50: 10512 | C50: 冨田 | D50: 健介 | E50: ﾄﾐﾀ | F50: ｹﾝｽｹ | G50: 1 | I50: 男
A51: 48 | B51: 10513 | C51: 新名 | D51: 唄二 | E51: ﾆｲﾅ | F51: ﾊｲｼﾞ | G51: 1 | I51: 男
A52: 49 | B52: 10514 | C52: 増田 | D52: 龍 | E52: ﾏｽﾀﾞ | F52: ﾘｮｳ | G52: 1 | I52: 男
A53: 50 | B53: 10515 | C53: 山口 | D53: 博己 | E53: ﾔﾏｸﾞﾁ | F53: ﾋﾛｷ | G53: 1 | I53: 男
A54: 51 | B54: 10516 | C54: 堀 | D54: 英仁 | E54: ﾎﾘ | F54: ﾋﾃﾞﾄ | G54: 1 | I54: 男
A55: 52 | B55: 10517 | C55: 根本 | D55: 寛也 | E55: ﾈﾓﾄ | F55: ﾋﾛﾔ | G55: 1 | I55: 男
A56: 53 | B56: 10518 | C56: 余湖 | D56: 夕真 | E56: ﾖｺﾞ | F56: ﾕｳﾏ | G56: 1 | I56: 男
A57: 54 | B57: 10519 | C57: 関 | D57: 晴弘 | E57: ｾｷ | F57: ﾊﾙﾋﾛ | G57: 1 | I57: 男
A58: 55 | B58: 10545 | C58: 正木 | D58: 優乃介 | E58: ﾏｻｷ | F58: ﾕｳﾉｽｹ | G58: 3 | I58: 男
A59: 56 | B59: 10547 | C59: 釆田 | D59: 聖弥 | E59: ｳﾈﾀﾞ | F59: ｾｲﾔ | G59: 3 | I59: 男
A60: 57 | B60: 10548 | C60: 森 | D60: 陽貴 | E60: ﾓﾘ | F60: ﾊﾙｷ | G60: 3 | I60: 男
A61: 58 | B61: 10549 | C61: 石井 | D61: 健士郎 | E61: ｲｼｲ | F61: ｹﾝｼﾛｳ | G61: 3 | I61: 男
A62: 59 | B62: 10550 | C62: 池田 | D62: 享平 | E62: ｲｹﾀﾞ | F62: ｷｮｳﾍｲ | G62: 3 | I62: 男
A63: 60 | B63: 10576 | C63: 砂井 | D63: 理来 | E63: ｽﾅｲ | F63: ﾘｸ | G63: 3 | I63: 女
A64: 61 | B64: 10577 | C64: 藤田 | D64: ひかり | E64: ﾌｼﾞﾀ | F64: ﾋｶﾘ | G64: 3 | I64: 女
A65: 62 | B65: 10580 | C65: 和田 | D65: 侑佳 | E65: ﾜﾀﾞ | F65: ﾕｳｶ | G65: 1 | I65: 女
A66: 63 | B66: 10602 | C66: 神田 | D66: 瞭 | E66: ｶﾝﾀﾞ | F66: ﾘｮｳ | G66: 3 | I66: 男
A67: 64 | B67: 10603 | C67: 齋藤 | D67: 誠 | E67: ｻｲﾄｳ | F67: ﾏｺﾄ | G67: 3 | I67: 男
A68: 65 | B68: 10604 | C68: 田中 | D68: 耀大 | E68: ﾀﾅｶ | F68: ﾖｳﾀ | G68: 3 | I68: 男
A69: 66 | B69: 10636 | C69: 加藤 | D69: 鴻之介 | E69: ｶﾄｳ | F69: ｺｳﾉｽｹ | G69: 1 | I69: 男
A70: 67 | B70: 10637 | C70: 吉野 | D70: 瑠維 | E70: ﾖｼﾉ | F70: ﾙｲ | G70: 1 | I70: 男
A71: 68 | B71: 10638 | C71: 川島 | D71: 孝太 | E71: ｶﾜｼﾏ | F71: ｺｳﾀ | G71: 1 | I71: 男
A72: 69 | B72: 10652 | C72: 谷崎 | D72: 優帆 | E72: ﾀﾆｻﾞｷ | F72: ﾕｳﾎ | G72: 3 | I72: 女
A73: 70 | B73: 10654 | C73: 福嶋 | D73: 祐梨 | E73: ﾌｸｼﾏ | F73: ﾕﾘ | G73: 3 | I73: 女
A74: 71 | B74: 10665 | C74: 原田 | D74: 麻祐子 | E74: ﾊﾗﾀﾞ | F74: ﾏﾕｺ | G74: 2 | I74: 女
A75: 72 | B75: 10666 | C75: 小林 | D75: 花佳 | E75: ｺﾊﾞﾔｼ | F75: ﾊﾅｶ | G75: 2 | I75: 女
A76: 73 | B76: 10667 | C76: 成瀬 | D76: 潮音 | E76: ﾅﾙｾ | F76: ｼｵﾈ | G76: 2 | I76: 女
A77: 74 | B77: 10668 | C77: 平田 | D77: 真緒 | E77: ﾋﾗﾀ | F77: ﾏｵ | G77: 2 | I77: 女
A78: 75 | B78: 10674 | C78: 三村 | D78: 留加 | E78: ﾐﾂﾑﾗ | F78: ﾙｶ | G78: 1 | I78: 女
A79: 76 | B79: 10675 | C79: 安藤 | D79: こころ | E79: ｱﾝﾄﾞｳ | F79: ｺｺﾛ | G79: 1 | I79: 女
A80: 77 | B80: 10677 | C80: 鈴木 | D80: 日奈子 | E80: ｽｽﾞｷ | F80: ﾋﾅｺ | G80: 1 | I80: 女
A81: 78 | B81: 10678 | C81: 山下 | D81: 紗侑 | E81: ﾔﾏｼﾀ | F81: ｻﾕ | G81: 1 | I81: 女
A82: 79 | B82: 10701 | C82: 竹村 | D82: 陽太郎 | E82: ﾀｹﾑﾗ | F82: ﾖｳﾀﾛｳ | G82: 1 | I82: 男
A83: 80 | B83: 10702 | C83: 澁谷 | D83: 聡志 | E83: ｼﾌﾞﾔ | F83: ｿｳｼ | G83: 1 | I83: 男
A84: 81 | B84: 10703 | C84: 篠原 | D84: 一真 | E84: ｼﾉﾊﾗ | F84: ｶｽﾞﾏ | G84: 1 | I84: 男
A85: 82 | B85: 10704 | C85: 岡本 | D85: 慧人 | E85: ｵｶﾓﾄ | F85: ｹｲﾄ | G85: 1 | I85: 男
A86: 83 | B86: 10706 | C86: 坂口 | D86: 凜太郎 | E86: ｻｶｸﾞﾁ | F86: ﾘﾝﾀﾛｳ | G86: 1 | I86: 男
A87: 84 | B87: 10708 | C87: 吉岡 | D87: 皆那人 | E87: ﾖｼｵｶ | F87: ﾐﾅﾄ | G87: 1 | I87: 男
A88: 85 | B88: 10709 | C88: 加藤 | D88: 万里央 | E88: ｶﾄｳ | F88: ﾏﾘｵ | G88: 1 | I88: 男
A89: 86 | B89: 10710 | C89: 佐野 | D89: 宙輝 | E89: ｻﾉ | F89: ﾋﾛｷ | G89: 1 | I89: 男
A90: 87 | B90: 10730 | C90: 米山 | D90: 昇太郎 | E90: ﾖﾈﾔﾏ | F90: ｼｮｳﾀﾛｳ | G90: 2 | I90: 男
A91: 88 | B91: 10731 | C91: 除野 | D91: 智充 | E91: ﾖｹﾉ | F91: ﾄﾓﾐ | G91: 2 | I91: 男
A92: 89 | B92: 10732 | C92: 武本 | D92: 昇太 | E92: ﾀｹﾓﾄ | F92: ｼｮｳﾀ | G92: 2 | I92: 男
A93: 90 | B93: 10733 | C93: 小川 | D93: 怜基 | E93: ｵｶﾞﾜ | F93: ﾚｲｷ | G93: 2 | I93: 男
A94: 91 | B94: 10734 | C94: 元田 | D94: 睦大 | E94: ﾓﾄﾀﾞ | F94: ﾑﾂｷ | G94: 2 | I94: 男
A95: 92 | B95: 10735 | C95: 前川 | D95: 匠 | E95: ﾏｴｶﾜ | F95: ｼｮｳ | G95: 2 | I95: 男
A96: 93 | B96: 10737 | C96: 西山 | D96: 靖一朗 | E96: ﾆｼﾔﾏ | F96: ｾｲｲﾁﾛｳ | G96: 2 | I96: 男
A97: 94 | B97: 10739 | C97: 丹羽 | D97: 俊尊 | E97: ﾆﾜ | F97: ｼｭﾝﾀﾂ | G97: 2 | I97: 男
A98: 95 | B98: 10740 | C98: 大川 | D98: 要 | E98: ｵｵｶﾜ | F98: ｶﾅﾒ | G98: 2 | I98: 男
A99: 96 | B99: 10741 | C99: 尾藤 | D99: 碩 | E99: ﾋﾞﾄｳ | F99: ｾｷ | G99: 2 | I99: 男
A100: 97 | B100: 10902 | C100: 地引 | D100: 凜 | E100: ｼﾞﾋﾞｷ | F100: ﾘﾝ | G100: 1 | I100: 男
A101: 98 | B101: 10903 | C101: 佐野 | D101: 寛斗 | E101: ｻﾉ | F101: ﾋﾛﾄ | G101: 1 | I101: 男
A102: 99 | B102: 10904 | C102: 深澤 | D102: 真隆 | E102: ﾌｶｻﾞﾜ | F102: ﾏﾙ | G102: 1 | I102: 男
A103: 100 | B103: 10905 | C103: 寺田 | D103: 湊 | E103: ﾃﾗﾀﾞ | F103: ﾐﾅﾄ | G103: 1 | I103: 男
A104: 101 | B104: 10906 | C104: 岡本 | D104: 容 | E104: ｵｶﾓﾄ | F104: ﾖｳ | G104: 1 | I104: 男
A105: 102 | B105: 10907 | C105: 木村 | D105: 貴一 | E105: ｷﾑﾗ | F105: ｷｲﾁ | G105: 2 | I105: 男
A106: 103 | B106: 10911 | C106: 上山 | D106: 達也 | E106: ｳｴﾔﾏ | F106: ﾀﾂﾔ | G106: 3 | I106: 男
A107: 104 | B107: 10914 | C107: 岸本 | D107: 醍知 | E107: ｷｼﾓﾄ | F107: ﾀﾞｲﾁ | G107: 3 | I107: 男
A108: 105 | B108: 10918 | C108: 三井 | D108: 悠暉 | E108: ﾐﾂｲ | F108: ﾕｳｷ | G108: 3 | I108: 男
A109: 106 | B109: 10930 | C109: 松本 | D109: 修造 | E109: ﾏﾂﾓﾄ | F109: ｼｭｳｿﾞｳ | G109: 2 | I109: 男
A110: 107 | B110: 10931 | C110: 斉藤 | D110: 光矢 | E110: ｻｲﾄｳ | F110: ｺｳﾔ | G110: 2 | I110: 男
A111: 108 | B111: 10932 | C111: 新藤 | D111: 悠眞 | E111: ｼﾝﾄﾞｳ | F111: ﾕｳﾏ | G111: 2 | I111: 男
A112: 109 | B112: 10933 | C112: 飯田 | D112: 隆介 | E112: ｲｲﾀﾞ | F112: ﾘｭｳｽｹ | G112: 2 | I112: 男
A113: 110 | B113: 10934 | C113: 村上 | D113: 秀太 | E113: ﾑﾗｶﾐ | F113: ｼｭｳﾀ | G113: 2 | I113: 男
A114: 111 | B114: 10935 | C114: 土井 | D114: 陽太 | E114: ﾄﾞｲ | F114: ﾖｳﾀ | G114: 2 | I114: 男
A115: 112 | B115: 10936 | C115: 渡邉 | D115: 和真 | E115: ﾜﾀﾅﾍﾞ | F115: ｶｽﾞﾏ | G115: 2 | I115: 男
A116: 113 | B116: 10938 | C116: 安達 | D116: 洸大 | E116: ｱﾀﾞﾁ | F116: ｺｳﾀ | G116: 2 | I116: 男
A117: 114 | B117: 10939 | C117: 柿沼 | D117: 颯太朗 | E117: ｶｷﾇﾏ | F117: ｿｳﾀﾛｳ | G117: 2 | I117: 男
A118: 115 | B118: 10940 | C118: 鈴木 | D118: 駿豊 | E118: ｽｽﾞｷ | F118: ﾊﾔﾄ | G118: 2 | I118: 男
A119: 116 | B119: 10941 | C119: 福島 | D119: 天晴 | E119: ﾌｸｼﾏ | F119: ﾃﾝｾｲ | G119: 2 | I119: 男
A120: 117 | B120: 10942 | C120: 曽我 | D120: 卓丸 | E120: ｿｶﾞ | F120: ﾀｸﾏ | G120: 2 | I120: 男
A121: 118 | B121: 10943 | C121: 青木 | D121: 俊典 | E121: ｱｵｷ | F121: ﾄｼﾉﾘ | G121: 2 | I121: 男
A122: 119 | B122: 10945 | C122: 戸邉 | D122: 洋星 | E122: ﾄﾍﾞ | F122: ﾖｳｾｲ | G122: 1 | I122: 男
A123: 120 | B123: 10946 | C123: 大塚 | D123: 泰裕 | E123: ｵｵﾂｶ | F123: ﾔｽﾋﾛ | G123: 1 | I123: 男
A124: 121 | B124: 10947 | C124: 小川 | D124: 哲生 | E124: ｵｶﾞﾜ | F124: ﾃﾂｵ | G124: 1 | I124: 男
A125: 122 | B125: 10948 | C125: 岡島 | D125: 晟伍 | E125: ｵｶｼﾞﾏ | F125: ｾｲｺﾞ | G125: 1 | I125: 男
A126: 123 | B126: 10949 | C126: 髙松 | D126: 陸人 | E126: ﾀｶﾏﾂ | F126: ﾘｸﾄ | G126: 1 | I126: 男
A127: 124 | B127: 10950 | C127: 村山 | D127: 颯太朗 | E127: ﾑﾗﾔﾏ | F127: ｿｳﾀﾛｳ | G127: 1 | I127: 男
A128: 125 | B128: 11003 | C128: 内田 | D128: 誠也 | E128: ｳﾁﾀﾞ | F128: ｾｲﾔ | G128: 2 | I128: 男
A129: 126 | B129: 11005 | C129: 風間 | D129: 晨 | E129: ｶｻﾞﾏ | F129: ｱｼﾀ | G129: 2 | I129: 男
A130: 127 | B130: 11006 | C130: 横山 | D130: 春陽 | E130: ﾖｺﾔﾏ | F130: ﾊﾙﾋ | G130: 2 | I130: 男
A131: 128 | B131: 11008 | C131: 北田 | D131: 翼 | E131: ｷﾀﾀﾞ | F131: ﾂﾊﾞｻ | G131: 3 | I131: 男
A132: 129 | B132: 11009 | C132: 澁澤 | D132: 遊汰 | E132: ｼﾌﾞｻﾜ | F132: ﾕｳﾀ | G132: 3 | I132: 男
A133: 130 | B133: 11011 | C133: 中山 | D133: 侑飛 | E133: ﾅｶﾔﾏ | F133: ﾕｳﾄ | G133: 1 | I133: 男
A134: 131 | B134: 11018 | C134: 湊 | D134: 寛明 | E134: ﾐﾅﾄ | F134: ﾋﾛｱｷ | G134: 1 | I134: 男
A135: 132 | B135: 11026 | C135: 今西 | D135: 奎豪 | E135: ｲﾏﾆｼ | F135: ｹｲｺﾞ | G135: 1 | I135: 男
A136: 133 | B136: 11030 | C136: 北沢 | D136: 賢ノ介 | E136: ｷﾀｻﾞﾜ | F136: ｹﾝﾉｽｹ | G136: 3 | I136: 男
A137: 134 | B137: 11031 | C137: 山﨑 | D137: 丈 | E137: ﾔﾏｻﾞｷ | F137: ｼﾞｮｳ | G137: 3 | I137: 男
A138: 135 | B138: 11033 | C138: 東 | D138: 勇太 | E138: ｱｽﾞﾏ | F138: ﾕｳﾀ | G138: 2 | I138: 男
A139: 136 | B139: 11038 | C139: 扇澤 | D139: 拓久 | E139: ｵｳｷﾞｻﾜ | F139: ﾋﾗｸ | G139: 1 | I139: 男
A140: 137 | B140: 11041 | C140: 深津 | D140: 裕也 | E140: ﾌｶﾂ | F140: ﾕｳﾔ | G140: 2 | I140: 男
A141: 138 | B141: 11043 | C141: 松野 | D141: 晃大 | E141: ﾏﾂﾉ | F141: ｺｳﾀﾞｲ | G141: 1 | I141: 男
A142: 139 | B142: 11044 | C142: 髙木 | D142: 雅史 | E142: ﾀｶｷﾞ | F142: ﾏｻﾌﾐ | G142: 1 | I142: 男
A143: 140 | B143: 11045 | C143: 井上 | D143: 幹大 | E143: ｲﾉｳｴ | F143: ﾐｷﾄ | G143: 1 | I143: 男
A144: 141 | B144: 11051 | C144: 川野 | D144: 史帆里 | E144: ｶﾜﾉ | F144: ｼﾎﾘ | G144: 3 | I144: 女
A145: 142 | B145: 11064 | C145: 諸永 | D145: こと葉 | E145: ﾓﾛﾅｶﾞ | F145: ｺﾄﾊ | G145: 1 | I145: 女
A146: 143 | B146: 11071 | C146: 伊佐 | D146: 愛 | E146: ｲｻ | F146: ｱｲ | G146: 1 | I146: 女
A147: 144 | B147: 11078 | C147: 町田 | D147: 梨央 | E147: ﾏﾁﾀﾞ | F147: ﾘｵ | G147: 3 | I147: 女
A148: 145 | B148: 11080 | C148: 美和 | D148: 紗佳 | E148: ﾐﾜ | F148: ｻﾔｶ | G148: 3 | I148: 女
A149: 146 | B149: 11081 | C149: 石川 | D149: 希 | E149: ｲｼｶﾜ | F149: ﾉｿﾞﾐ | G149: 3 | I149: 女
A150: 147 | B150: 11082 | C150: 岩間 | D150: 絵里佳 | E150: ｲﾜﾏ | F150: ｴﾘｶ | G150: 3 | I150: 女
A151: 148 | B151: 11083 | C151: 弓指 | D151: 如 | E151: ﾕﾐｻｼ | F151: ﾅｵ | G151: 2 | I151: 女
A152: 149 | B152: 11084 | C152: 亀井 | D152: 奏 | E152: ｶﾒｲ | F152: ｶﾅﾃﾞ | G152: 3 | I152: 女
A153: 150 | B153: 11092 | C153: 瀬戸 | D153: ゆず果 | E153: ｾﾄ | F153: ﾕｽﾞｶ | G153: 1 | I153: 女
A154: 151 | B154: 11174 | C154: 辻本 | D154: 千展 | E154: ﾂｼﾞﾓﾄ | F154: ﾁﾋﾛ | G154: 1 | I154: 女
A155: 152 | B155: 11175 | C155: 森戸 | D155: 楓良 | E155: ﾓﾘﾄ | F155: ｶｴﾗ | G155: 1 | I155: 女
A156: 153 | B156: 11176 | C156: 中道 | D156: 紗彩 | E156: ﾅｶﾐﾁ | F156: ｻﾔ | G156: 1 | I156: 女
A157: 154 | B157: 11177 | C157: 横山 | D157: 佑季 | E157: ﾖｺﾔﾏ | F157: ﾕｷ | G157: 1 | I157: 女
A158: 155 | B158: 11178 | C158: 森島 | D158: 愛音 | E158: ﾓﾘｼﾏ | F158: ｱｲﾈ | G158: 1 | I158: 女
A159: 156 | B159: 11179 | C159: 吉田 | D159: 奈央 | E159: ﾖｼﾀﾞ | F159: ﾅｵ | G159: 1 | I159: 女
A160: 157 | B160: 11180 | C160: 大田 | D160: 和奏 | E160: ｵｵﾀ | F160: ﾜｶﾅ | G160: 1 | I160: 女
A161: 158 | B161: 11181 | C161: 宮西 | D161: ひかり | E161: ﾐﾔﾆｼ | F161: ﾋｶﾘ | G161: 1 | I161: 女
A162: 159 | B162: 11182 | C162: 野﨑 | D162: 美遥 | E162: ﾉｻﾞｷ | F162: ﾐﾊﾙ | G162: 1 | I162: 女
A163: 160 | B163: 11221 | C163: 早﨑 | D163: チャンミン | E163: ﾊﾔｻｷ | F163: ﾁｬﾝﾐﾝ | G163: 2 | I163: 男
A164: 161 | B164: 11222 | C164: 岡 | D164: 攻守 | E164: ｵｶ | F164: ｺｳｼｭ | G164: 2 | I164: 男
A165: 162 | B165: 11223 | C165: 朝倉 | D165: 靖太郎 | E165: ｱｻｸﾗ | F165: ｾｲﾀﾛｳ | G165: 2 | I165: 男
A166: 163 | B166: 11224 | C166: 赤坂 | D166: 春樹 | E166: ｱｶｻｶ | F166: ﾊﾙｷ | G166: 2 | I166: 男
A167: 164 | B167: 11225 | C167: 渡邉 | D167: 悠雅 | E167: ﾜﾀﾅﾍﾞ | F167: ﾕｳｶﾞ | G167: 2 | I167: 男
A168: 165 | B168: 11228 | C168: 川又 | D168: 一希 | E168: ｶﾜﾏﾀ | F168: ｲﾂｷ | G168: 2 | I168: 男
A169: 166 | B169: 11230 | C169: 上野 | D169: 友雅 | E169: ｳｴﾉ | F169: ﾕｳｶﾞ | G169: 1 | I169: 男
A170: 167 | B170: 11231 | C170: 大越 | D170: 護 | E170: ｵｵｺｼ | F170: ﾏﾓﾙ | G170: 1 | I170: 男
A171: 168 | B171: 11232 | C171: 網代 | D171: 晟人 | E171: ｱｼﾞﾛ | F171: ｱｷﾄ | G171: 1 | I171: 男
A172: 169 | B172: 11233 | C172: 伊東 | D172: 宏輔 | E172: ｲﾄｳ | F172: ｺｳｽｹ | G172: 1 | I172: 男
A173: 170 | B173: 11234 | C173: 飯塚 | D173: 千太 | E173: ｲｲﾂﾞｶ | F173: ｾﾝﾀ | G173: 1 | I173: 男
A174: 171 | B174: 11235 | C174: 赤坂 | D174: 眞眸 | E174: ｱｶｻｶ | F174: ﾏﾅﾑ | G174: 1 | I174: 男
A175: 172 | B175: 11236 | C175: 熊田 | D175: 裕貴 | E175: ｸﾏﾀ | F175: ﾕｳｷ | G175: 1 | I175: 男
A176: 173 | B176: 11246 | C176: 井澤 | D176: 宏光 | E176: ｲｻﾞﾜ | F176: ﾋﾛﾐﾂ | G176: 3 | I176: 男
A177: 174 | B177: 11247 | C177: 佐藤 | D177: 昂助 | E177: ｻﾄｳ | F177: ｺｳｽｹ | G177: 3 | I177: 男
A178: 175 | B178: 11249 | C178: 綱島 | D178: 叡仁 | E178: ﾂﾅｼﾏ | F178: ｴｲﾄ | G178: 3 | I178: 男
A179: 176 | B179: 11284 | C179: 鈴木 | D179: 明日香 | E179: ｽｽﾞｷ | F179: ｱｽｶ | G179: 3 | I179: 女
A180: 177 | B180: 11285 | C180: 徳田 | D180: 歩美 | E180: ﾄｸﾀﾞ | F180: ｱﾕﾐ | G180: 3 | I180: 女
A181: 178 | B181: 11286 | C181: 田中 | D181: 里奈 | E181: ﾀﾅｶ | F181: ﾘﾅ | G181: 3 | I181: 女
A182: 179 | B182: 11287 | C182: 岡崎 | D182: 佑宥 | E182: ｵｶｻﾞｷ | F182: ﾕｳ | G182: 1 | I182: 女
A183: 180 | B183: 11289 | C183: 古澤 | D183: 愛華 | E183: ﾌﾙｻﾜ | F183: ﾏﾅｶ | G183: 3 | I183: 女
A184: 181 | B184: 11378 | C184: 岩永 | D184: 聖 | E184: ｲﾜﾅｶﾞ | F184: ﾋｼﾞﾘ | G184: 3 | I184: 女
A185: 182 | B185: 11383 | C185: 久保木 | D185: 日葉 | E185: ｸﾎﾞｷ | F185: ﾋﾖ | G185: 2 | I185: 女
A186: 183 | B186: 11384 | C186: 佐伯 | D186: 世理菜 | E186: ｻｴｷ | F186: ｾﾘﾅ | G186: 2 | I186: 女
A187: 184 | B187: 11387 | C187: 花井 | D187: 沙耶 | E187: ﾊﾅｲ | F187: ｻﾔ | G187: 2 | I187: 女
A188: 185 | B188: 11401 | C188: 水嶋 | D188: 優斗 | E188: ﾐｽﾞｼﾏ | F188: ﾕｳﾄ | G188: 3 | I188: 男
A189: 186 | B189: 11402 | C189: 宮木 | D189: 拓統 | E189: ﾐﾔｷﾞ | F189: ﾀｸﾄ | G189: 1 | I189: 男
A190: 187 | B190: 11410 | C190: 右田 | D190: 泰啓 | E190: ﾐｷﾞﾀ | F190: ﾔｽﾋﾛ | G190: 2 | I190: 男
A191: 188 | B191: 11411 | C191: 濵田 | D191: 夏門 | E191: ﾊﾏﾀﾞ | F191: ｶﾓﾝ | G191: 2 | I191: 男
A192: 189 | B192: 11412 | C192: 宮元 | D192: 蒼 | E192: ﾐﾔﾓﾄ | F192: ｱｵｲ | G192: 2 | I192: 男
A193: 190 | B193: 11413 | C193: 唐津 | D193: 光永 | E193: ｶﾗﾂ | F193: ｺｳｴｲ | G193: 2 | I193: 男
A194: 191 | B194: 11414 | C194: 仲尾 | D194: 至恩 | E194: ﾅｶｵ | F194: ｼｵﾝ | G194: 2 | I194: 男
A195: 192 | B195: 11416 | C195: 前原 | D195: 慧樹 | E195: ﾏｴﾊﾗ | F195: ｹｲｼﾞｭ | G195: 2 | I195: 男
A196: 193 | B196: 11420 | C196: 鈴木 | D196: 惇史 | E196: ｽｽﾞｷ | F196: ｱﾂｼ | G196: 1 | I196: 男
A197: 194 | B197: 11421 | C197: 齋藤 | D197: 輝 | E197: ｻｲﾄｳ | F197: ﾃﾙ | G197: 1 | I197: 男
A198: 195 | B198: 11422 | C198: 萬 | D198: 碧陽 | E198: ﾖﾛｽﾞ | F198: ｱｵｲ | G198: 1 | I198: 男
A199: 196 | B199: 11423 | C199: 入江 | D199: 櫂伊 | E199: ｲﾘｴ | F199: ｶｲ | G199: 1 | I199: 男
A200: 197 | B200: 11424 | C200: 睦好 | D200: 隆宏 | E200: ﾑﾂﾖｼ | F200: ﾀｶﾋﾛ | G200: 1 | I200: 男
... 6993 more rows
